Workbook

Sheet MPP
B3: Mini Power Pack
F9: v2019.1 CE
B11: =TextPerLanguage(SEL_LANGUAGE,2) -> Bedrijfsnaam: | E11: =TextPerLanguage(SEL_LANGUAGE,5) -> Artikel:
B12: =TextPerLanguage(SEL_LANGUAGE,3) -> Contactpersoon: | E12: =TextPerLanguage(SEL_LANGUAGE,20) -> Aantal units: | F12: 1
A13: =DoValidation(SEL_FINISH,SEL_LANGUAGE_INPUT) ->  | B13: =TextPerLanguage(SEL_LANGUAGE,34) -> Referentie: | E13: =TextPerLanguage(SEL_LANGUAGE,207) -> Afwerking: | F13: <ongespoten>
B14: =TextPerLanguage(SEL_LANGUAGE,1) -> Taal | C14: Nederlands | G14: =IF(LEFT(C14,1)="N",1,IF(LEFT(C14,1)="D",3,IF(LEFT(C14,1)="F",4,2))) -> 1
E16: =TODAY() -> 2019-03-13
A20: =DoValidation(C20:C35,SEL_LANGUAGE_INPUT) ->  | B20: =TextPerLanguage(SEL_LANGUAGE,7) -> Tank: | C20: C1 : Tank 5 liter horizontale opst. met voet | E20: =TextPerLanguage(SEL_LANGUAGE,12) -> Max. werkdruk: | F20: =SYS_CLC_MAX_WP -> 110 bar (4 min.)
B21: =TextPerLanguage(SEL_LANGUAGE,8) -> Pomp: | C21: 32 : Pomp 3.2 cc D gr.1 | D21: =VLOOKUP(SEL_PUMP,DBS_PUMP,8,0) -> 1 | E21: =TextPerLanguage(SEL_LANGUAGE,13) -> Flow: | F21: =SYS_CLC_FLOW -> Niet van toepassing
B22: =TextPerLanguage(SEL_LANGUAGE,9) -> Motor: | C22: B : DC-motor 24 Volt, 2100 Watt | E22: =TextPerLanguage(SEL_LANGUAGE,15)&" (x)" -> Lengte (x) | F22: 536
B23: =TextPerLanguage(SEL_LANGUAGE,19) -> Voltage opbouw: | C23: 024C | D23: =MATCH(SEL_VOLTAGE,LST_VOLTAGE,0) -> 2 | E23: =TextPerLanguage(SEL_LANGUAGE,16)&" (y)" -> Breedte (y) | F23: 234.5
B24: =TextPerLanguage(SEL_LANGUAGE,10) -> Opbouw: | C24: 00 : Zonder opbouw | D24: =IF(ISERROR(VALUE(LEFT(SEL_MOUNTING,1))),0,VALUE(LEFT(SEL_MOUNTING,1))) -> 0 | E24: =TextPerLanguage(SEL_LANGUAGE,17)&" (z)" -> Hoogte (z) | F24: 222.5
B25: =TextPerLanguage(SEL_LANGUAGE,156) -> Lantaarnstuk: | C25: <Geen>
B28: =TextPerLanguage(SEL_LANGUAGE,14)&" C0:" -> Keuze C0: | C28: 1 : Terugslagklep
B29: =TextPerLanguage(SEL_LANGUAGE,14)&" C1:" -> Keuze C1: | C29: 1 : Veiligheid 25 - 250 bar
B30: =TextPerLanguage(SEL_LANGUAGE,14)&" C2:" -> Keuze C2: | C30: A : Plug
B31: =TextPerLanguage(SEL_LANGUAGE,14)&" C2:" -> Keuze C2: | C31: A : 4/3 klep AB dicht
B32: =TextPerLanguage(SEL_LANGUAGE,14)&" C3:" -> Keuze C3: | C32: A : Plug
B33: =TextPerLanguage(SEL_LANGUAGE,14)&" C4:" -> Keuze C4: | C33: A : Plug
B34: =TextPerLanguage(SEL_LANGUAGE,18) -> Manometer: | C34: <Geen manometer>
A35: =AND(IF(ISERROR(FIND(LEFT(SEL_MOTOR,1),"ABCDG")),FALSE,TRUE),IF(ISERROR(FIND(LEFT(SEL_CHOICE_3,1),"DEHI")),FALSE,TRUE)) -> FALSE | B35: =TextPerLanguage(SEL_LANGUAGE,190) -> Afstandsbediening: | C35: <Geen>
B37: =IF(SEL_MOUNT_COUNT>0,TextPerLanguage(SEL_LANGUAGE,21),"") -> 
B39: =IF(SEL_MOUNT_COUNT>0,TextPerLanguage(SEL_LANGUAGE,143),"") -> 
B40: =IF(SEL_MOUNT_COUNT>0,TextPerLanguage(SEL_LANGUAGE,142),"") -> 
B41: =IF(SEL_MOUNT_COUNT>0,TextPerLanguage(SEL_LANGUAGE,141),"") -> 
B42: =IF(SEL_MOUNT_COUNT>0,TextPerLanguage(SEL_LANGUAGE,140),"") -> 
B45: =IF(SEL_MOUNT_COUNT>1,TextPerLanguage(SEL_LANGUAGE,147),"") -> 
B46: =IF(SEL_MOUNT_COUNT>1,TextPerLanguage(SEL_LANGUAGE,146),"") -> 
B47: =IF(SEL_MOUNT_COUNT>1,TextPerLanguage(SEL_LANGUAGE,145),"") -> 
B48: =IF(SEL_MOUNT_COUNT>1,TextPerLanguage(SEL_LANGUAGE,144),"") -> 
B51: =IF(SEL_MOUNT_COUNT>2,TextPerLanguage(SEL_LANGUAGE,151),"") -> 
B52: =IF(SEL_MOUNT_COUNT>2,TextPerLanguage(SEL_LANGUAGE,150),"") -> 
B53: =IF(SEL_MOUNT_COUNT>2,TextPerLanguage(SEL_LANGUAGE,149),"") -> 
B54: =IF(SEL_MOUNT_COUNT>2,TextPerLanguage(SEL_LANGUAGE,148),"") -> 
B57: =IF(SEL_MOUNT_COUNT>3,TextPerLanguage(SEL_LANGUAGE,155),"") -> 
B58: =IF(SEL_MOUNT_COUNT>3,TextPerLanguage(SEL_LANGUAGE,154),"") -> 
B59: =IF(SEL_MOUNT_COUNT>3,TextPerLanguage(SEL_LANGUAGE,153),"") -> 
B60: =IF(SEL_MOUNT_COUNT>3,TextPerLanguage(SEL_LANGUAGE,152),"") -> 
E62: =TextPerLanguage(SEL_LANGUAGE,202)&":" -> Opmerkingen:
B63: =TextPerLanguage(SEL_LANGUAGE,26) -> De unit is compleet gemonteerd, getest op de max. werkdruk.
B64: =TextPerLanguage(SEL_LANGUAGE,27) -> De unit is excl. olie en bekabeling.
B65: =TextPerLanguage(SEL_LANGUAGE,207)&" "&SUBSTITUTE(SUBSTITUTE(SEL_FINISH,"<",""),">","") -> Afwerking: ongespoten
B66: =TextPerLanguage(SEL_LANGUAGE,32) -> Levering volgens onze algemene leverings- en montagevoorwaarden
B67: =LEFT(TextPerLanguage(SEL_LANGUAGE,24)&" "&TextPerLanguage(SEL_LANGUAGE,30),50+SEL_QUANTITY) -> Levertijd: gereed voor verzending in 3 dagen

Sheet Tekening
IV1: Basis
IV14: Basis: keuzes 1 t/m 5
C31: =MPP!B20 -> Tank: | D31: =MID(SEL_TANK,6,40) -> Tank 5 liter horizontale opst. met voet
C32: =MPP!B21 -> Pomp: | D32: =MID(SEL_PUMP,6,40) -> Pomp 3.2 cc D gr.1
C33: =MPP!B22 -> Motor: | D33: =MID(SEL_MOTOR,6,40) -> DC-motor 24 Volt, 2100 Watt
C34: =MPP!E20 -> Max. werkdruk: | D34: =SEL_MAX_WP -> 110 bar (4 min.)
C35: =MPP!E21 -> Flow: | D35: =SEL_FLOW -> Niet van toepassing
C36: =MPP!E13 -> Afwerking: | D36: =SEL_FINISH -> <ongespoten>
C37: =IF(TRIM(T(SEL_PARTNO))="","- - -",T(SEL_PARTNO)) -> - - -
C39: =MPP!B11 -> Bedrijfsnaam: | D39: =T(MPP!C11) -> 
C40: =MPP!B12 -> Contactpersoon: | D40: =T(MPP!C12) ->  | IV40: Opbouw: voetplaten
C41: =MPP!E11 -> Artikel: | D41: =T(SEL_PARTNO) -> 
C42: =TextPerLanguage(SEL_LANGUAGE,6) -> Datum: | D42: =MPP!E16 -> 2019-03-13
IV48: Opbouw: ventielen
IV81: Cetop02
IV107: Configuratie informatie

Sheet Cetop02 (hidden)
A1: Artikel | B1: Aantal | D1: V.Links | E1: V.Rechts
A2: - | B2: 0 | D2: - | E2: -
A3: - | B3: 0 | D3: - | E3: -
A4: - | B4: 0 | D4: - | E4: -
A5: - | B5: 0 | D5: - | E5: -
A6: - | B6: 0 | D6: - | E6: -
A7: - | B7: 0 | D7: - | E7: -
A8: - | B8: 0
A9: - | B9: 0
A10: - | B10: 0
A11: - | B11: 0
A12: - | B12: 0
A13: - | B13: 0
A14: - | B14: 0
A15: - | B15: 0
A255: SEV902012C

Sheet Tables (hidden)
A1: LST_TANK & DBS_TANK & LDF_TANK | B1: Artikel1 | C1: Artikel2 | D1: Artikel3 | E1: Artikel4 | F1: Artikel5 | G1: Artikel6 | H1: OpstellingVertHor | I1: Material | J1: PastOpHondaMotor | AC1: Code | AD1: Oms_DUT | AE1: Oms_ENG | AF1: Oms_GER | AG1: Oms_FRE
A2: =AC2&" : "&CHOOSE(SEL_LANGUAGE,AD2,AE2,AF2,AG2) -> A1 : Tank 1 liter horizontale opst. met voet | B2: MPPT001 | C2: MPPBF | D2: - | E2: - | F2: - | G2: - | H2: H | I2: Steel | J2: FALSE | AC2: A1 | AD2: Tank 1 liter horizontale opst. met voet | AE2: Tank 1 litre hor. mounting with baseframe | AF2: Ölbehalter 1 Liter horiz. Anbau mit Fuss | AG2: Réservoir 1 litre montage horizontale avec pied
A3: A2 : Tank 1 liter horizontale opst. zonder voet | B3: MPPT001 | C3: - | D3: - | E3: - | F3: - | G3: - | H3: H | I3: Steel | J3: TRUE | AC3: A2 | AD3: Tank 1 liter horizontale opst. zonder voet | AE3: Tank 1 litre hor. mounting without baseframe | AF3: Ölbehalter 1 Liter horiz. Anbau ohne Fuss | AG3: Réservoir 1 litre montage horizontale sans pied
A4: A3 : Tank 1 liter verticale opst. met voet | B4: MPPT001 | C4: MPPBF | D4: EMF12 | E4: MPPSFEP01D | F4: - | G4: - | H4: V | I4: Steel | J4: FALSE | AC4: A3 | AD4: Tank 1 liter verticale opst. met voet | AE4: Tank 1 litre ver. mounting with baseframe | AF4: Ölbehalter 1 Liter vert. Anbau mit Fuss | AG4: Réservoir 1 litre montage verticale avec pied
A5: A4 : Tank 1 liter verticale opst. zonder voet | B5: MPPT001 | C5: - | D5: EMF12 | E5: MPPSFEP01D | F5: - | G5: - | H5: V | I5: Steel | J5: FALSE | AC5: A4 | AD5: Tank 1 liter verticale opst. zonder voet | AE5: Tank 1 litre ver. mounting without baseframe | AF5: Ölbehalter 1 Liter vert. Anbau ohne Fuss | AG5: Réservoir 1 litre montage verticale sans pied
A6: B1 : Tank 2.5 liter horizontale opst. met voet | B6: MPPT002 | C6: MPPBF | D6: - | E6: - | F6: - | G6: - | H6: H | I6: Steel | J6: FALSE | AC6: B1 | AD6: Tank 2.5 liter horizontale opst. met voet | AE6: Tank 2.5 litre hor. mounting with baseframe | AF6: Ölbehalter 2.5 Liter horiz. Anbau mit Fuss | AG6: Réservoir 2.5 litres montage horizontale avec pied
A7: B2 : Tank 2.5 liter horizontale opst. zonder voet | B7: MPPT002 | C7: - | D7: - | E7: - | F7: - | G7: - | H7: H | I7: Steel | J7: TRUE | AC7: B2 | AD7: Tank 2.5 liter horizontale opst. zonder voet | AE7: Tank 2.5 litre hor. mounting without baseframe | AF7: Ölbehalter 2.5 Liter horiz. Anbau ohne Fuss | AG7: Réservoir 2.5 litres montage horizontale sans pied
A8: B3 : Tank 2.5 liter verticale opst. met voet | B8: MPPT002 | C8: MPPBF | D8: EMF12 | E8: MPPSFEP01D | F8: - | G8: - | H8: V | I8: Steel | J8: FALSE | AC8: B3 | AD8: Tank 2.5 liter verticale opst. met voet | AE8: Tank 2.5 litre ver. mounting with baseframe | AF8: Ölbehalter 2.5 Liter vert. Anbau mit Fuss | AG8: Réservoir 2.5 litres montage verticale avec pied
A9: B4 : Tank 2.5 liter verticale opst. zonder voet | B9: MPPT002 | C9: - | D9: EMF12 | E9: MPPSFEP01D | F9: - | G9: - | H9: V | I9: Steel | J9: FALSE | AC9: B4 | AD9: Tank 2.5 liter verticale opst. zonder voet | AE9: Tank 2.5 litre ver. mounting without baseframe | AF9: Ölbehalter 2.5 Liter vert. Anbau ohne Fuss | AG9: Réservoir 2.5 litres montage verticale sans pied
A10: J1 : Tank 3.5 liter horizontale opst. met voet | B10: MPPT003 | C10: MPPBF | D10: - | E10: - | F10: MPP9TP | G10: MPP9FC | H10: H | I10: Steel | J10: FALSE | AC10: J1 | AD10: Tank 3.5 liter horizontale opst. met voet | AE10: Tank 3.5 litre hor. mounting with baseframe | AF10: Ölbehalter 3.5 Liter horiz. Anbau mit Fuss | AG10: Réservoir 3.5 litres montage horizontale avec pied
A11: J2 : Tank 3.5 liter horizontale opst. zonder voet | B11: MPPT003 | C11: - | D11: - | E11: - | F11: MPP9TP | G11: MPP9FC | H11: H | I11: Steel | J11: TRUE | AC11: J2 | AD11: Tank 3.5 liter horizontale opst. zonder voet | AE11: Tank 3.5 litre hor. mounting without baseframe | AF11: Ölbehalter 3.5 Liter horiz. Anbau ohne Fuss | AG11: Réservoir 3.5 litres montage horizontale avec pied
A12: J3 : Tank 3.5 liter verticale opst. met voet | B12: MPPT003 | C12: MPPBF | D12: EMF12 | E12: MPPSFEP01D | F12: MPP9TP | G12: MPP9FC | H12: V | I12: Steel | J12: FALSE | AC12: J3 | AD12: Tank 3.5 liter verticale opst. met voet | AE12: Tank 3.5 litre ver. mounting with baseframe | AF12: Ölbehalter 3.5 Liter vert. Anbau mit Fuss | AG12: Réservoir 3.5 litres montage horizontale avec pied
A13: J4 : Tank 3.5 liter verticale opst. zonder voet | B13: MPPT003 | C13: - | D13: EMF12 | E13: MPPSFEP01D | F13: MPP9TP | G13: MPP9FC | H13: V | I13: Steel | J13: FALSE | AC13: J4 | AD13: Tank 3.5 liter verticale opst. zonder voet | AE13: Tank 3.5 litre ver. mounting without baseframe | AF13: Ölbehalter 3.5 Liter vert. Anbau ohne Fuss | AG13: Réservoir 3.5 litres montage horizontale avec pied
A14: C1 : Tank 5 liter horizontale opst. met voet | B14: MPPT005 | C14: MPPBF | D14: - | E14: - | F14: - | G14: - | H14: H | I14: Steel | J14: FALSE | AC14: C1 | AD14: Tank 5 liter horizontale opst. met voet | AE14: Tank 5 litre hor. mounting with baseframe | AF14: Ölbehalter 5 Liter horiz. Anbau mit Fuss | AG14: Réservoir 5 litres montage horizontale avec pied
A15: C2 : Tank 5 liter horizontale opst. zonder voet | B15: MPPT005 | C15: - | D15: - | E15: - | F15: - | G15: - | H15: H | I15: Steel | J15: TRUE | AC15: C2 | AD15: Tank 5 liter horizontale opst. zonder voet | AE15: Tank 5 litre hor. mounting without baseframe | AF15: Ölbehalter 5 Liter horiz. Anbau ohne Fuss | AG15: Réservoir 5 litres montage horizontale sans pied
A16: C3 : Tank 5 liter verticale opst. met voet | B16: MPPT005 | C16: MPPBF | D16: EMF12 | E16: MPPSFEP01D | F16: - | G16: - | H16: V | I16: Steel | J16: FALSE | AC16: C3 | AD16: Tank 5 liter verticale opst. met voet | AE16: Tank 5 litre ver. mounting with baseframe | AF16: Ölbehalter 5 Liter vert. Anbau mit Fuss | AG16: Réservoir 5 litres montage verticale avec pied
A17: C4 : Tank 5 liter verticale opst. zonder voet | B17: MPPT005 | C17: - | D17: EMF12 | E17: MPPSFEP01D | F17: - | G17: - | H17: V | I17: Steel | J17: FALSE | AC17: C4 | AD17: Tank 5 liter verticale opst. zonder voet | AE17: Tank 5 litre ver. mounting without baseframe | AF17: Ölbehalter 5 Liter vert. Anbau ohne Fuss | AG17: Réservoir 5 litres montage verticale sans pied
A18: D1 : Tank 8 liter horizontale opst. met voet | B18: MPPT008 | C18: MPPBF | D18: - | E18: - | F18: - | G18: - | H18: H | I18: Steel | J18: FALSE | AC18: D1 | AD18: Tank 8 liter horizontale opst. met voet | AE18: Tank 8 litre hor. mounting with baseframe | AF18: Ölbehalter 8 Liter horiz. Anbau mit Fuss | AG18: Réservoir 8 litres montage horizontale avec pied
A19: D2 : Tank 8 liter horizontale opst. zonder voet | B19: MPPT008 | C19: - | D19: - | E19: - | F19: - | G19: - | H19: H | I19: Steel | J19: TRUE | AC19: D2 | AD19: Tank 8 liter horizontale opst. zonder voet | AE19: Tank 8 litre hor. mounting without baseframe | AF19: Ölbehalter 8 Liter horiz. Anbau ohne Fuss | AG19: Réservoir 8 litres montage horizontale sans pied
A20: D3 : Tank 8 liter verticale opst. met voet | B20: MPPT008 | C20: MPPBF | D20: EMF12 | E20: MPPSFEP01D | F20: - | G20: - | H20: V | I20: Steel | J20: FALSE | AC20: D3 | AD20: Tank 8 liter verticale opst. met voet | AE20: Tank 8 litre ver. mounting with baseframe | AF20: Ölbehalter 8 Liter vert. Anbau mit Fuss | AG20: Réservoir 8 litres montage verticale avec pied
A21: D4 : Tank 8 liter verticale opst. zonder voet | B21: MPPT008 | C21: - | D21: EMF12 | E21: MPPSFEP01D | F21: - | G21: - | H21: V | I21: Steel | J21: FALSE | AC21: D4 | AD21: Tank 8 liter verticale opst. zonder voet | AE21: Tank 8 litre ver. mounting without baseframe | AF21: Ölbehalter 8 Liter vert. Anbau ohne Fuss | AG21: Réservoir 8 litres montage verticale sans pied
A22: E1 : Tank 10 liter horizontale opst. met voet | B22: MPPT010 | C22: MPPBF | D22: - | E22: - | F22: - | G22: - | H22: H | I22: Steel | J22: FALSE | AC22: E1 | AD22: Tank 10 liter horizontale opst. met voet | AE22: Tank 10 litre hor. mounting with baseframe | AF22: Ölbehalter 10 Liter horiz. Anbau mit Fuss | AG22: Réservoir 10 litres montage horizontale avec pied
A23: E2 : Tank 10 liter horizontale opst. zonder voet | B23: MPPT010 | C23: - | D23: - | E23: - | F23: - | G23: - | H23: H | I23: Steel | J23: TRUE | AC23: E2 | AD23: Tank 10 liter horizontale opst. zonder voet | AE23: Tank 10 litre hor. mounting without baseframe | AF23: Ölbehalter 10 Liter horiz. Anbau ohne Fuss | AG23: Réservoir 10 litres montage horizontale sans pied
A24: E3 : Tank 10 liter verticale opst. met voet | B24: MPPT010 | C24: MPPBF | D24: EMF12 | E24: MPPSFEP01D | F24: - | G24: - | H24: V | I24: Steel | J24: FALSE | AC24: E3 | AD24: Tank 10 liter verticale opst. met voet | AE24: Tank 10 litre ver. mounting with baseframe | AF24: Ölbehalter 10 Liter vert. Anbau mit Fuss | AG24: Réservoir 10 litres montage verticale avec pied
A25: E4 : Tank 10 liter verticale opst. zonder voet | B25: MPPT010 | C25: - | D25: EMF12 | E25: MPPSFEP01D | F25: - | G25: - | H25: V | I25: Steel | J25: FALSE | AC25: E4 | AD25: Tank 10 liter verticale opst. zonder voet | AE25: Tank 10 litre ver. mounting without baseframe | AF25: Ölbehalter 10 Liter vert. Anbau ohne Fuss | AG25: Réservoir 10 litres montage verticale sans pied
A26: F1 : Tank 12 liter horizontale opst. met voet | B26: MPPT012 | C26: MPPBF | D26: - | E26: - | F26: - | G26: - | H26: H | I26: Steel | J26: FALSE | AC26: F1 | AD26: Tank 12 liter horizontale opst. met voet | AE26: Tank 12 litre hor. mounting with baseframe | AF26: Ölbehalter 12 Liter horiz. Anbau mit Fuss | AG26: Réservoir 12 litres montage horizontale avec pied
A27: F2 : Tank 12 liter horizontale opst. zonder voet | B27: MPPT012 | C27: - | D27: - | E27: - | F27: - | G27: - | H27: H | I27: Steel | J27: TRUE | AC27: F2 | AD27: Tank 12 liter horizontale opst. zonder voet | AE27: Tank 12 litre hor. mounting without baseframe | AF27: Ölbehalter 12 Liter horiz. Anbau ohne Fuss | AG27: Réservoir 12 litres montage horizontale sans pied
A28: F3 : Tank 12 liter verticale opst. met voet | B28: MPPT012 | C28: MPPBF | D28: EMF12 | E28: MPPSFEP01D | F28: - | G28: - | H28: V | I28: Steel | J28: FALSE | AC28: F3 | AD28: Tank 12 liter verticale opst. met voet | AE28: Tank 12 litre ver. mounting with baseframe | AF28: Ölbehalter 12 Liter vert. Anbau mit Fuss | AG28: Réservoir 12 litres montage verticale avec pied
A29: F4 : Tank 12 liter verticale opst. zonder voet | B29: MPPT012 | C29: - | D29: EMF12 | E29: MPPSFEP01D | F29: - | G29: - | H29: V | I29: Steel | J29: FALSE | AC29: F4 | AD29: Tank 12 liter verticale opst. zonder voet | AE29: Tank 12 litre ver. mounting without baseframe | AF29: Ölbehalter 12 Liter vert. Anbau ohne Fuss | AG29: Réservoir 12 litres montage verticale sans pied
A30: G1 : Tank 15 liter | B30: MPPT015 | C30: - | D30: - | E30: MPPSFEP01D | F30: MPP9TP | G30: MPP9FC | H30: V | I30: T015/Steel | J30: FALSE | AC30: G1 | AD30: Tank 15 liter | AE30: Tank 15 litre | AF30: Ölbehalter 15 Liter | AG30: Réservoir 15 litres
A31: G2 : Tank 20 liter | B31: MPPT020 | C31: - | D31: - | E31: MPPSFEP01D | F31: MPP9TP | G31: MPP9FC | H31: V | I31: T020/Steel | J31: FALSE | AC31: G2 | AD31: Tank 20 liter | AE31: Tank 20 litre | AF31: Ölbehalter 20 Liter | AG31: Réservoir 20 litres
A32: G3 : Tank 22 liter | B32: MPPT022 | C32: MPPBF | D32: - | E32: - | F32: - | G32: - | H32: H | I32: T022/Steel | J32: TRUE | AC32: G3 | AD32: Tank 22 liter | AE32: Tank 22 litre | AF32: Ölbehalter 22 Liter | AG32: Réservoir 22 litres
A33: M1 : Kunststof tank 1 liter horizontale opst. met voet | B33: MPPT001P | C33: MPPBF | D33: - | E33: - | F33: - | G33: - | H33: H | I33: Plastic | J33: FALSE | AC33: M1 | AD33: Kunststof tank 1 liter horizontale opst. met voet | AE33: Plastic tank 1 litre hor. mounting with baseframe | AF33: Plastik Ölbehalter 1 Liter horiz. Anbau mit Fuss | AG33: Réservoir en plastique 1 litres montage horizontale avec pied
A34: =AC34&" : "&CHOOSE(SEL_LANGUAGE,AD34,AE34,AF34,AG34) -> M2 : Kunststof tank 1 liter horizontale opst. zonder voet | B34: MPPT001P | C34: - | D34: - | E34: - | F34: - | G34: - | H34: H | I34: Plastic | J34: TRUE | AC34: M2 | AD34: Kunststof tank 1 liter horizontale opst. zonder voet | AE34: Plastic tank 1 litre hor. mounting without baseframe | AF34: Plastik Ölbehalter 1 Liter horiz. Anbau ohne Fuss | AG34: Réservoir en plastique 1 litres montage horizontale sans pied
A35: M3 : Kunststof tank 1 liter verticale opst. met voet | B35: MPPT001P | C35: MPPBF | D35: EMF12 | E35: MPPSFEP01D | F35: - | G35: - | H35: V | I35: Plastic | J35: FALSE | AC35: M3 | AD35: Kunststof tank 1 liter verticale opst. met voet | AE35: Plastic tank 1 litre ver. mounting with baseframe | AF35: Plastik Ölbehalter 1 Liter vert. Anbau mit Fuss | AG35: Réservoir en plastique 1 litres montage verticale avec pied
A36: M4 : Kunststof tank 1 liter verticale opst. zonder voet | B36: MPPT001P | C36: - | D36: EMF12 | E36: MPPSFEP01D | F36: - | G36: - | H36: V | I36: Plastic | J36: FALSE | AC36: M4 | AD36: Kunststof tank 1 liter verticale opst. zonder voet | AE36: Plastic tank 1 litre ver. mounting without baseframe | AF36: Plastik Ölbehalter 1 Liter vert. Anbau ohne Fuss | AG36: Réservoir en plastique 1 litres montage verticale sans pied
A37: N1 : Kunststof tank 3.5 liter horizontale opst. met voet | B37: MPPT003P | C37: MPPBF | D37: - | E37: - | F37: - | G37: - | H37: H | I37: Plastic | J37: FALSE | AC37: N1 | AD37: Kunststof tank 3.5 liter horizontale opst. met voet | AE37: Plastic tank 3.5 litre hor. mounting with baseframe | AF37: Plastik Ölbehalter 3.5 Liter horiz. Anbau mit Fuss | AG37: Réservoir en plastique 3.5 litres montage horizontale avec pied
A38: N2 : Kunststof tank 3.5 liter horizontale opst. zonder voet | B38: MPPT003P | C38: - | D38: - | E38: - | F38: - | G38: - | H38: H | I38: Plastic | J38: TRUE | AC38: N2 | AD38: Kunststof tank 3.5 liter horizontale opst. zonder voet | AE38: Plastic tank 3.5 litre hor. mounting without baseframe | AF38: Plastik Ölbehalter 3.5 Liter horiz. Anbau ohne Fuss | AG38: Réservoir en plastique 3.5 litres montage horizontale sans pied
A39: N3 : Kunststof tank 3.5 liter verticale opst. met voet | B39: MPPT003P | C39: MPPBF | D39: EMF12 | E39: MPPSFEP01D | F39: - | G39: - | H39: V | I39: Plastic | J39: FALSE | AC39: N3 | AD39: Kunststof tank 3.5 liter verticale opst. met voet | AE39: Plastic tank 3.5 litre ver. mounting with baseframe | AF39: Plastik Ölbehalter 3.5 Liter vert. Anbau mit Fuss | AG39: Réservoir en plastique 3.5 litres montage verticale avec pied
A40: N4 : Kunststof tank 3.5 liter verticale opst. zonder voet | B40: MPPT003P | C40: - | D40: EMF12 | E40: MPPSFEP01D | F40: - | G40: - | H40: V | I40: Plastic | J40: FALSE | AC40: N4 | AD40: Kunststof tank 3.5 liter verticale opst. zonder voet | AE40: Plastic tank 3.5 litre ver. mounting without baseframe | AF40: Plastik Ölbehalter 3.5 Liter vert. Anbau ohne Fuss | AG40: Réservoir en plastique 3.5 litres montage verticale sans pied
A41: I1 : Kunststof tank 5 liter horizontale opst. met voet | B41: MPPT005P | C41: MPPBF | D41: - | E41: - | F41: - | G41: - | H41: H | I41: Plastic | J41: FALSE | AC41: I1 | AD41: Kunststof tank 5 liter horizontale opst. met voet | AE41: Plastic tank 5 litre hor. mounting with baseframe | AF41: Plastik Ölbehalter 5 Liter horiz. Anbau mit Fuss | AG41: Réservoir en plastique 5 litres montage horizontale avec pied
A42: I2 : Kunststof tank 5 liter horizontale opst. zonder voet | B42: MPPT005P | C42: - | D42: - | E42: - | F42: - | G42: - | H42: H | I42: Plastic | J42: TRUE | AC42: I2 | AD42: Kunststof tank 5 liter horizontale opst. zonder voet | AE42: Plastic tank 5 litre hor. mounting without baseframe | AF42: Plastik Ölbehalter 5 Liter horiz. Anbau ohne Fuss | AG42: Réservoir en plastique 5 litres montage horizontale sans pied
A43: I3 : Kunststof tank 5 liter verticale opst. met voet | B43: MPPT005P | C43: MPPBF | D43: EMF12 | E43: MPPSFEP01D | F43: - | G43: - | H43: V | I43: Plastic | J43: FALSE | AC43: I3 | AD43: Kunststof tank 5 liter verticale opst. met voet | AE43: Plastic tank 5 litre ver. mounting with baseframe | AF43: Plastik Ölbehalter 5 Liter vert. Anbau mit Fuss | AG43: Réservoir en plastique 5 litres montage verticale avec pied
A44: I4 : Kunststof tank 5 liter verticale opst. zonder voet | B44: MPPT005P | C44: - | D44: EMF12 | E44: MPPSFEP01D | F44: - | G44: - | H44: V | I44: Plastic | J44: FALSE | AC44: I4 | AD44: Kunststof tank 5 liter verticale opst. zonder voet | AE44: Plastic tank 5 litre ver. mounting without baseframe | AF44: Plastik Ölbehalter 5 Liter vert. Anbau ohne Fuss | AG44: Réservoir en plastique 5 litres montage verticale sans pied
A45: L1 : Kunststof tank 8 liter horizontale opst. met voet | B45: MPPT008P | C45: MPPBF | D45: - | E45: - | F45: - | G45: - | H45: H | I45: Plastic | J45: FALSE | AC45: L1 | AD45: Kunststof tank 8 liter horizontale opst. met voet | AE45: Plastic tank 8 litre hor. mounting with baseframe | AF45: Plastik Ölbehalter 8 Liter horiz. Anbau mit Fuss | AG45: Réservoir en plastique 8 litres montage horizontale avec pied
A46: L2 : Kunststof tank 8 liter horizontale opst. zonder voet | B46: MPPT008P | C46: - | D46: - | E46: - | F46: - | G46: - | H46: H | I46: Plastic | J46: TRUE | AC46: L2 | AD46: Kunststof tank 8 liter horizontale opst. zonder voet | AE46: Plastic tank 8 litre hor. mounting without baseframe | AF46: Plastik Ölbehalter 8 Liter horiz. Anbau ohne Fuss | AG46: Réservoir en plastique 8 litres montage horizontale sans pied
A47: L3 : Kunststof tank 8 liter verticale opst. met voet | B47: MPPT008P | C47: MPPBF | D47: EMF12 | E47: MPPSFEP01D | F47: - | G47: - | H47: V | I47: Plastic | J47: FALSE | AC47: L3 | AD47: Kunststof tank 8 liter verticale opst. met voet | AE47: Plastic tank 8 litre ver. mounting with baseframe | AF47: Plastik Ölbehalter 8 Liter vert. Anbau mit Fuss | AG47: Réservoir en plastique 8 litres montage verticale avec pied
A48: L4 : Kunststof tank 8 liter verticale opst. zonder voet | B48: MPPT008P | C48: - | D48: EMF12 | E48: MPPSFEP01D | F48: - | G48: - | H48: V | I48: Plastic | J48: FALSE | AC48: L4 | AD48: Kunststof tank 8 liter verticale opst. zonder voet | AE48: Plastic tank 8 litre ver. mounting without baseframe | AF48: Plastik Ölbehalter 8 Liter vert. Anbau ohne Fuss | AG48: Réservoir en plastique 8 litres montage verticale sans pied
A49: O1 : Aluminium tank 6 liter | B49: MPPT006A | C49: - | D49: - | E49: MPPSFEP01D | F49: - | G49: - | H49: V | I49: Aluminium | J49: FALSE | AC49: O1 | AD49: Aluminium tank 6 liter | AE49: Aluminium tank 6 litre | AF49: Alu Ölbehalter 6 Liter | AG49: Réservoir en Aluminium 6 litres
A50: P1 : Aluminium tank 10 liter | B50: MPPT010A | C50: - | D50: - | E50: MPPSFEP01D | F50: - | G50: - | H50: V | I50: Aluminium | J50: FALSE | AC50: P1 | AD50: Aluminium tank 10 liter | AE50: Aluminium tank 10 litre | AF50: Alu Ölbehalter 10 Liter | AG50: Réservoir en Aluminium 10 litres
A51: Z1 : Losse aanlasflens (zonder tank) | B51: MPPTC | C51: - | D51: - | E51: - | F51: - | G51: - | I51: - | J51: FALSE | AC51: Z1 | AD51: Losse aanlasflens (zonder tank) | AE51: Separate welding collar (without tank) | AF51: Anschweissflansch (lose geliefert, ohne Ölbehalter ) | AG51: Sans reservoir adapteur a souder
A53: LST_PUMP & DBS_PUMP & LDF_PUMP | B53: Artikel1 | C53: Artikel2 | D53: Artikel3 | E53: Artikel4 | F53: CC | G53: MaxWP | H53: PompGroep | AA53: Code | AB53: Oms_DUT | AC53: Oms_ENG | AD53: Oms_GER | AE53: Oms_FRE
A54: =AA54&" : "&CHOOSE(SEL_LANGUAGE,AB54,AC54,AD54,AE54) -> 02 : Pomp 0.26 cc D gr. 0.5 | B54: MPP02D | C54: MPPPA05 | D54: - | E54: - | F54: 0.26 | G54: 210 | H54: 0.5 | AA54: 02 | AB54: Pomp 0.26 cc D gr. 0.5 | AC54: Pump 0.26 cc D gr. 0.5 | AD54: Pumpe 0.26 cc D gr. 0.5 | AE54: Pompe 0.26 cc D gr. 0.5
A55: =AA55&" : "&CHOOSE(SEL_LANGUAGE,AB55,AC55,AD55,AE55) -> 04 : Pomp 0.38 cc D gr. 0.5 | B55: MPP04D | C55: MPPPA05 | D55: - | E55: - | F55: 0.38 | G55: 210 | H55: 0.5 | AA55: 04 | AB55: Pomp 0.38 cc D gr. 0.5 | AC55: Pump 0.38 cc D gr. 0.5 | AD55: Pumpe 0.38 cc D gr. 0.5 | AE55: Pompe 0.38 cc D gr. 0.5
A56: =AA56&" : "&CHOOSE(SEL_LANGUAGE,AB56,AC56,AD56,AE56) -> 06 : Pomp 0.64 cc D gr. 0.5 | B56: MPP06D | C56: MPPPA05 | D56: - | E56: - | F56: 0.64 | G56: 210 | H56: 0.5 | AA56: 06 | AB56: Pomp 0.64 cc D gr. 0.5 | AC56: Pump 0.64 cc D gr. 0.5 | AD56: Pumpe 0.64 cc D gr. 0.5 | AE56: Pompe 0.64 cc D gr. 0.5
A57: =AA57&" : "&CHOOSE(SEL_LANGUAGE,AB57,AC57,AD57,AE57) -> 09 : Pomp 0.85 cc D gr.1 | B57: MPP09D | C57: - | D57: - | E57: - | F57: 0.85 | G57: 210 | H57: 1 | AA57: 09 | AB57: Pomp 0.85 cc D gr.1 | AC57: Pump 0.85 cc D gr.1 | AD57: Pumpe 0.85 cc D Gr.1 | AE57: Pompe 0.85 cc D Gr.1
A58: 12 : Pomp 1.2 cc D gr.1 | B58: MPP12D | C58: - | D58: - | E58: - | F58: 1.2 | G58: 210 | H58: 1 | AA58: 12 | AB58: Pomp 1.2 cc D gr.1 | AC58: Pump 1.2 cc D gr.1 | AD58: Pumpe 1.2 cc D Gr.1 | AE58: Pompe 1.2 cc D Gr.1
A59: 16 : Pomp 1.7 cc D gr.1 | B59: MPP16D | C59: - | D59: - | E59: - | F59: 1.7 | G59: 210 | H59: 1 | AA59: 16 | AB59: Pomp 1.7 cc D gr.1 | AC59: Pump 1.7 cc D gr.1 | AD59: Pumpe 1.7 cc D Gr.1 | AE59: Pompe 1.7 cc D Gr.1
A60: 20 : Pomp 2.0 cc D gr.1 | B60: MPP20D | C60: - | D60: - | E60: - | F60: 2 | G60: 210 | H60: 1 | AA60: 20 | AB60: Pomp 2.0 cc D gr.1 | AC60: Pump 2.0 cc D gr.1 | AD60: Pumpe 2.0 cc D Gr.1 | AE60: Pompe 2.0 cc D Gr.1
A61: 2A : Pomp 2.0 cc D gr.1 *stil* | B61: MPP2DS | C61: - | D61: - | E61: - | F61: 2 | G61: 210 | H61: 1 | AA61: 2A | AB61: Pomp 2.0 cc D gr.1 *stil* | AC61: Pump 2.0 cc D gr.1 *silent* | AD61: Pumpe 2.0 cc D Gr.1 *still* | AE61: Pompe 2.0 cc D Gr.1 *silencieux*
A62: 2B : Pomp 2.2 cc D gr.1 *stil* | B62: MPP22DS | C62: - | D62: - | E62: - | F62: 2.2 | G62: 210 | H62: 1 | AA62: 2B | AB62: Pomp 2.2 cc D gr.1 *stil* | AC62: Pump 2.2 cc D gr.1 *silent* | AD62: Pumpe 2.2 cc D Gr.1 *still* | AE62: Pompe 2.2 cc D Gr.1 *silencieux*
A63: =AA63&" : "&CHOOSE(SEL_LANGUAGE,AB63,AC63,AD63,AE63) -> 25 : Pomp 2.6 cc D gr.1 | B63: MPP25D | C63: - | D63: - | E63: - | F63: 2.6 | G63: 210 | H63: 1 | AA63: 25 | AB63: Pomp 2.6 cc D gr.1 | AC63: Pump 2.6 cc D gr.1 | AD63: Pumpe 2.6 cc D Gr.1 | AE63: Pompe 2.6 cc D Gr.1
A64: =AA64&" : "&CHOOSE(SEL_LANGUAGE,AB64,AC64,AD64,AE64) -> 2C : Pomp 2.6 cc D gr.1 *stil* | B64: MPP26DS | C64: - | D64: - | E64: - | F64: 2.6 | G64: 210 | H64: 1 | AA64: 2C | AB64: Pomp 2.6 cc D gr.1 *stil* | AC64: Pump 2.6 cc D gr.1 *silent* | AD64: Pumpe 2.6 cc D Gr.1 *still* | AE64: Pompe 2.6 cc D Gr.1 *silencieux*
A65: 32 : Pomp 3.2 cc D gr.1 | B65: MPP32D | C65: - | D65: - | E65: - | F65: 3.2 | G65: 210 | H65: 1 | AA65: 32 | AB65: Pomp 3.2 cc D gr.1 | AC65: Pump 3.2 cc D gr.1 | AD65: Pumpe 3.2 cc D Gr.1 | AE65: Pompe 3.2 cc D Gr.1
A66: 3A : Pomp 3.2 cc D gr.1 *stil* | B66: MPP32DS | C66: - | D66: - | E66: - | F66: 3.2 | G66: 210 | H66: 1 | AA66: 3A | AB66: Pomp 3.2 cc D gr.1 *stil* | AC66: Pump 3.2 cc D gr.1 *silent* | AD66: Pumpe 3.2 cc D Gr.1 *still* | AE66: Pompe 3.2 cc D Gr.1 *silencieux*
A67: 37 : Pomp 3.8 cc D gr.1 | B67: MPP37D | C67: - | D67: - | E67: - | F67: 3.8 | G67: 210 | H67: 1 | AA67: 37 | AB67: Pomp 3.8 cc D gr.1 | AC67: Pump 3.8 cc D gr.1 | AD67: Pumpe 3.8 cc D Gr.1 | AE67: Pompe 3.8 cc D Gr.1
A68: 3B : Pomp 3.8 cc D gr.1 *stil* | B68: MPP38DS | C68: - | D68: - | E68: - | F68: 3.8 | G68: 210 | H68: 1 | AA68: 3B | AB68: Pomp 3.8 cc D gr.1 *stil* | AC68: Pump 3.8 cc D gr.1 *silent* | AD68: Pumpe 3.8 cc D Gr.1 *still* | AE68: Pompe 3.8 cc D Gr.1 *silencieux*
A69: 42 : Pomp 4.3 cc D gr.1 | B69: MPP42D | C69: - | D69: - | E69: - | F69: 4.3 | G69: 210 | H69: 1 | AA69: 42 | AB69: Pomp 4.3 cc D gr.1 | AC69: Pump 4.3 cc D gr.1 | AD69: Pumpe 4.3 cc D Gr.1 | AE69: Pompe 4.3 cc D Gr.1
A70: 4A : Pomp 4.3 cc D gr.1 *stil* | B70: MPP43DS | C70: - | D70: - | E70: - | F70: 4.3 | G70: 210 | H70: 1 | AA70: 4A | AB70: Pomp 4.3 cc D gr.1 *stil* | AC70: Pump 4.3 cc D gr.1 *silent* | AD70: Pumpe 4.3 cc D Gr.1 *still* | AE70: Pompe 4.3 cc D Gr.1 *silencieux*
A71: 50 : Pomp 5.0 cc D gr.1 | B71: MPP50D | C71: - | D71: - | E71: - | F71: 5 | G71: 210 | H71: 1 | AA71: 50 | AB71: Pomp 5.0 cc D gr.1 | AC71: Pump 5.0 cc D gr.1 | AD71: Pumpe 5.0 cc D Gr.1 | AE71: Pompe 5.0 cc D Gr.1
A72: 5A : Pomp 5.0 cc D gr.1 *stil* | B72: MPP5DS | C72: - | D72: - | E72: - | F72: 5 | G72: 210 | H72: 1 | AA72: 5A | AB72: Pomp 5.0 cc D gr.1 *stil* | AC72: Pump 5.0 cc D gr.1 *silent* | AD72: Pumpe 5.0 cc D Gr.1 *still* | AE72: Pompe 5.0 cc D Gr.1 *silencieux*
A73: 63 : Pomp 6.0 cc D gr.1 | B73: MPP63D | C73: - | D73: - | E73: - | F73: 6 | G73: 210 | H73: 1 | AA73: 63 | AB73: Pomp 6.0 cc D gr.1 | AC73: Pump 6.0 cc D gr.1 | AD73: Pumpe 6.0 cc D Gr.1 | AE73: Pompe 6.0 cc D Gr.1
A74: 78 : Pomp 7.8 cc D gr.1 | B74: MPP78D | C74: - | D74: - | E74: - | F74: 7.8 | G74: 160 | H74: 1 | AA74: 78 | AB74: Pomp 7.8 cc D gr.1 | AC74: Pump 7.8 cc D gr.1 | AD74: Pumpe 7.8 cc D Gr.1 | AE74: Pompe 7.8 cc D Gr.1
A75: 98 : Pomp 9.8 cc D gr.1 | B75: MPP98D | C75: 9128110129B | D75: - | E75: - | F75: 9.8 | G75: 150 | H75: 1 | AA75: 98 | AB75: Pomp 9.8 cc D gr.1 | AC75: Pump 9.8 cc D gr.1 | AD75: Pumpe 9.8 cc D Gr.1 | AE75: Pompe 9.8 cc D Gr.1
A76: D2 : Dubbelpomp 2.6-4.9 cc D | B76: MPP2649D | C76: 9128130129BP001 | D76: - | E76: - | F76: 2.6 | G76: 210 | H76: 1 | AA76: D2 | AB76: Dubbelpomp 2.6-4.9 cc D | AC76: Double pump 2.6-4.9 cc D | AD76: Doppelpumpe 2.6-4.9 cc D | AE76: Pompe double 2.6-4.9 cc D
A78: LST_MOUNTING & DBS_MOUNTING | B78: Artikel1 | C78: Artikel2 | D78: Artikel3 | E78: Artikel4 | F78: Aantal4 | G78: Vulplaat | AA78: Code | AB78: Oms_DUT | AC78: Oms_ENG | AD78: Oms_GER | AE78: Oms_FRE
A79: =AA79&" : "&CHOOSE(SEL_LANGUAGE,AB79,AC79,AD79,AE79) -> 00 : Zonder opbouw | B79: - | C79: - | D79: - | E79: VSR04WD | F79: 1 | G79: TRUE | AA79: 00 | AB79: Zonder opbouw | AC79: Without cetop mounting | AD79: ohne Zwischenplatten | AE79: sans montage cetop
A80: C2 : Cetop02 | B80: - | C80: - | D80: - | E80: VSR04WD | F80: =IF(LEFT(SEL_GAUGE,1)="<",1,0) -> 1 | G80: TRUE | AA80: C2 | AB80: Cetop02 | AC80: Cetop02 | AD80: Cetop02 | AE80: Cetop02
A81: FC : Flens FC Cavity SAE 8/4 | B81: - | C81: - | D81: - | E81: - | F81: 0 | G81: FALSE | AA81: FC | AB81: Flens FC Cavity SAE 8/4 | AC81: Flange FC Cavity SAE 8/4 | AD81: Flansch FC Cavity SAE 8/4 | AE81: Bride FC Cavity SAE 8/4
A82: 10 : 1-ledige opbouw | B82: MPPM01 | C82: - | D82: 912890129B | E82: VSR04WD | F82: =IF(LEFT(SEL_GAUGE,1)="<",1,0) -> 1 | G82: FALSE | AA82: 10 | AB82: 1-ledige opbouw | AC82: 1-Function | AD82: 1 Funktion | AE82: 1 fonction
A83: 1A : 1-ledige opbouw met vulplaat | B83: MPPM01 | C83: MPPSP48 | D83: 9128140129B | E83: VSR04WD | F83: 1 | G83: TRUE | AA83: 1A | AB83: 1-ledige opbouw met vulplaat | AC83: 1-Function with heightening plate | AD83: 1 Funktion mit Distanzplatte | AE83: 1 fonction avec plaque intermédiaire
A84: 1B : 1-ledige opbouw met retourfilter | B84: MPPM01 | C84: MPPRF | D84: 9128145129B | E84: VSR04WD | F84: 1 | G84: TRUE | AA84: 1B | AB84: 1-ledige opbouw met retourfilter | AC84: 1-Function with return filtre | AD84: 1 Funktion mit Rucklauffilter | AE84: 1 fonction avec filtre retour
A85: 20 : 2-ledige opbouw | B85: MPPM02 | C85: - | D85: 912840129B | E85: VSR04WD | F85: 1 | G85: FALSE | AA85: 20 | AB85: 2-ledige opbouw | AC85: 2-Functions | AD85: 2 Funktionen | AE85: 2 fonction
A86: 2A : 2-ledige opbouw met vulplaat | B86: MPPM02 | C86: MPPSP48 | D86: 912890129B | E86: VSR04WD | F86: 1 | G86: TRUE | AA86: 2A | AB86: 2-ledige opbouw met vulplaat | AC86: 2-Functions with heightening plate | AD86: 2 Funktionen mit Distanzplatte | AE86: 2 fonction avec plaque intermédiaire
A87: 2B : 2-ledige opbouw met retourfilter | B87: MPPM02 | C87: MPPRF | D87: 912890129B | E87: VSR04WD | F87: 1 | G87: TRUE | AA87: 2B | AB87: 2-ledige opbouw met retourfilter | AC87: 2-Function with return filtre | AD87: 2 Funktion mit Rucklauffilter | AE87: 2 fonction avec filtre retour
A88: 30 : 3-ledige opbouw | B88: MPPM03 | C88: - | D88: 912840129B | E88: VSR04WD | F88: 1 | G88: FALSE | AA88: 30 | AB88: 3-ledige opbouw | AC88: 3-Functions | AD88: 3 Funktionen | AE88: 3 fonction
A89: 3A : 3-ledige opbouw met vulplaat | B89: MPPM03 | C89: MPPSP48 | D89: 912890129B | E89: VSR04WD | F89: 1 | G89: TRUE | AA89: 3A | AB89: 3-ledige opbouw met vulplaat | AC89: 3-Functions with heightening plate | AD89: 3 Funktionen mit Distanzplatte | AE89: 3 fonction avec plaque intermédiaire
A90: 3B : 3-ledige opbouw met retourfilter | B90: MPPM03 | C90: MPPRF | D90: 912890129B | E90: VSR04WD | F90: 1 | G90: TRUE | AA90: 3B | AB90: 3-ledige opbouw met retourfilter | AC90: 3-Function with return filtre | AD90: 3 Funktion mit Rucklauffilter | AE90: 3 fonction avec filtre retour
A91: 40 : 4-ledige opbouw | B91: MPPM04 | C91: - | D91: 912840129B | E91: VSR04WD | F91: 1 | G91: FALSE | AA91: 40 | AB91: 4-ledige opbouw | AC91: 4-Functions | AD91: 4 Funktionen | AE91: 4 fonction
A92: 4A : 4-ledige opbouw met vulplaat | B92: MPPM04 | C92: MPPSP48 | D92: 912890129B | E92: VSR04WD | F92: 1 | G92: TRUE | AA92: 4A | AB92: 4-ledige opbouw met vulplaat | AC92: 4-Functions with heightening plate | AD92: 4 Funktionen mit Distanzplatte | AE92: 4 fonction avec plaque intermédiaire
A93: 4B : 4-ledige opbouw met retourfilter | B93: MPPM04 | C93: MPPRF | D93: 912890129B | E93: VSR04WD | F93: 1 | G93: TRUE | AA93: 4B | AB93: 4-ledige opbouw met retourfilter | AC93: 4-Function with return filtre | AD93: 4 Funktion mit Rucklauffilter | AE93: 4 fonction avec filtre retour
A95: LST_MOTOR & DBS_MOTOR & LDF_MOTOR | B95: Artikel1 | C95: Artikel2 | D95: Artikel3 | E95: Artikel4 | F95: Artikel5 | G95: Artikel6 | H95: Artikel7 | I95: Artikel8 | J95: Artikel8.Aantal | K95: kW | L95: Rendement | M95: Toerental | N95: Flow | O95: VulplaatVerplicht | P95: ExtraMontagetijd | Q95: AcDc | R95: ConnectImage | S95: PompGroepHalf | AA95: Code | AB95: Oms_DUT | AC95: Oms_ENG | AD95: Oms_GER | AE95: Oms_FRE
A96: =MID(AA96&" ",1,2)&" : "&CHOOSE(SEL_LANGUAGE,AB96,AC96,AD96,AE96) -> A : DC-motor 12 Volt, 2100 Watt | B96: MPPDCM12V2100N | C96: MPPDCMC2200 | D96: - | E96: - | F96: - | G96: - | H96: - | I96: - | J96: 0 | K96: 2.1 | L96: 0.85 | N96: nvt | O96: FALSE | P96: 5 | Q96: DC | R96: INF_EM_DC | S96: FALSE | AA96: A | AB96: DC-motor 12 Volt, 2100 Watt | AC96: DC-motor 12 Volt, 2100 Watt | AD96: DC-Motor 12 Volt, 2100 Watt | AE96: Moteur-DC 12 Volt, 2100 Watt
A97: A1 : DC-motor 12 Volt, 2100 Watt met beschermkap | B97: MPPDCM12V2100N | C97: MPPDCMC2200 | D97: MPPDCMPC | E97: - | F97: - | G97: - | H97: - | I97: - | J97: 0 | K97: 2.1 | L97: 0.85 | N97: nvt | O97: FALSE | P97: 5 | Q97: DC | R97: INF_EM_DC | S97: FALSE | AA97: A1 | AB97: DC-motor 12 Volt, 2100 Watt met beschermkap | AC97: DC-motor 12 Volt, 2100 Watt with protection cap | AD97: DC-Motor 12 Volt, 2100 Watt mit Schutzkappe | AE97: Moteur-DC 12 Volt, 2100 Watt avec casque de protection
A98: B : DC-motor 24 Volt, 2100 Watt | B98: MPPDCM24V2100N | C98: MPPDCMC2200 | D98: - | E98: - | F98: - | G98: - | H98: - | I98: - | J98: 0 | K98: 2.1 | L98: 0.85 | N98: nvt | O98: FALSE | P98: 5 | Q98: DC | R98: INF_EM_DC | S98: FALSE | AA98: B | AB98: DC-motor 24 Volt, 2100 Watt | AC98: DC-motor 24 Volt, 2100 Watt | AD98: DC-Motor 24 Volt, 2100 Watt | AE98: Moteur-DC 24 Volt, 2100 Watt
A99: B1 : DC-motor 24 Volt, 2100 Watt met beschermkap | B99: MPPDCM24V2100N | C99: MPPDCMC2200 | D99: MPPDCMPC | E99: - | F99: - | G99: - | H99: - | I99: - | J99: 0 | K99: 2.1 | L99: 0.85 | N99: nvt | O99: FALSE | P99: 5 | Q99: DC | R99: INF_EM_DC | S99: FALSE | AA99: B1 | AB99: DC-motor 24 Volt, 2100 Watt met beschermkap | AC99: DC-motor 24 Volt, 2100 Watt with protection cap | AD99: DC-Motor 24 Volt, 2100 Watt mit Schutzkappe | AE99: Moteur-DC 24 Volt, 2100 Watt avec casque de protection
A100: C : DC-motor 12 Volt, 800 Watt | B100: MPPDCM12V800N | C100: =IF(SEL_PUMP_GROUP<>1,"MPPDCMC805","MPPDCMC800") -> MPPDCMC800 | D100: - | E100: - | F100: - | G100: - | H100: - | I100: - | J100: 0 | K100: 0.8 | L100: 0.85 | N100: nvt | O100: FALSE | P100: 5 | Q100: DC | R100: INF_EM_DC | S100: TRUE | AA100: C | AB100: DC-motor 12 Volt, 800 Watt | AC100: DC-motor 12 Volt, 800 Watt | AD100: DC-Motor 12 Volt, 800 Watt | AE100: Moteur-DC 12 Volt, 800 Watt
A101: D : DC-motor 24 Volt, 800 Watt | B101: MPPDCM24V800N | C101: =IF(SEL_PUMP_GROUP<>1,"MPPDCMC805","MPPDCMC800") -> MPPDCMC800 | D101: - | E101: - | F101: - | G101: - | H101: - | I101: - | J101: 0 | K101: 0.8 | L101: 0.85 | N101: nvt | O101: FALSE | P101: 5 | Q101: DC | R101: INF_EM_DC | S101: TRUE | AA101: D | AB101: DC-motor 24 Volt, 800 Watt | AC101: DC-motor 24 Volt, 800 Watt | AD101: DC-Motor 24 Volt, 800 Watt | AE101: Moteur-DC 24 Volt, 800 Watt
A102: G1 : DC-motor 12 Volt, 2500 Watt | B102: MPPDCM12V2500N | C102: MPP9MF71 | D102: MPP9MC71HD | E102: =IF(SEL_PUMP_GROUP<>1,"MPP9PCAC05","MPP9PCAC") -> MPP9PCAC | F102: MPPDCMR12VHD | G102: MPPDCMCB2200 | H102: - | I102: - | J102: 0 | K102: 2.5 | L102: 0.85 | N102: nvt | O102: TRUE | P102: 5 | Q102: DC | R102: INF_EM_DC | S102: FALSE | AA102: G1 | AB102: DC-motor 12 Volt, 2500 Watt | AC102: DC-motor 12 Volt, 2500 Watt | AD102: DC-Motor 12 Volt, 2500 Watt | AE102: Moteur-DC 12 Volt, 2500 Watt
A103: G : DC-motor 24 Volt, 3000 Watt | B103: MPPDCM24V3000N | C103: MPP9MF71 | D103: MPP9MC71HD | E103: MPP9PCAC | F103: MPPDCMR24VHD | G103: MPPDCMCB2200 | H103: - | I103: - | J103: 0 | K103: 3 | L103: 0.85 | N103: nvt | O103: TRUE | P103: 5 | Q103: DC | R103: INF_EM_DC | S103: FALSE | AA103: G | AB103: DC-motor 24 Volt, 3000 Watt | AC103: DC-motor 24 Volt, 3000 Watt | AD103: DC-Motor 24 Volt, 3000 Watt | AE103: Moteur-DC 24 Volt, 3000 Watt
A104: E : E-motor 0.37 kW - 4-B14-300 - 240/400 Volt | B104: EM71B4B14300IE1AKR | C104: MPP9MF71 | D104: MPP9MC71 | E104: MPP9PCAC | F104: - | G104: - | H104: - | I104: - | J104: 0 | K104: 0.37 | L104: 0.85 | M104: 1.37 | N104: =ROUND(TableSearch(DBS_PUMP,SEL_PUMP,"CC")*M104,1) -> 4.4 | O104: FALSE | P104: 0 | Q104: AC | R104: INF_EM_AC_3F_STAR | S104: TRUE | AA104: E | AB104: E-motor 0.37 kW - 4-B14-300 - 240/400 Volt | AC104: E-motor 0.37 kW - 4-B14-300 - 240/400 Volt | AD104: E-Motor 0.37 kW - 4-B14-300 - 240/400 Volt | AE104: Moteur-Electr. 0.37 kW - 4-B14-300 - 240/400 Volt
A105: F : E-motor 0.55 kW - 4-1B0 - 230 Volt | B105: EM80A4MPP1B0 | C105: - | D105: - | E105: MPP9PCAC | F105: - | G105: - | H105: - | I105: - | J105: 0 | K105: 0.55 | L105: 0.8 | M105: 1.37 | N105: =ROUND(TableSearch(DBS_PUMP,SEL_PUMP,"CC")*M105,1) -> 4.4 | O105: FALSE | P105: 0 | Q105: AC | R105: INF_EM_AC_1F | S105: TRUE | V105: EM80A4B141B0AKR | W105: MPP9MF80 | X105: MPP9MC80 | AA105: F | AB105: E-motor 0.55 kW - 4-1B0 - 230 Volt | AC105: E-motor 0.55 kW - 4-1B0 - 230 Volt | AD105: E-Motor 0.55 kW - 4-1B0 - 230 Volt | AE105: Moteur-Electr. 0.55 kW - 4-1B0 - 230 Volt | AH105: E-motor 0.55 kW - 4-B14-1B0 - 230 Volt | AI105: E-motor 0.55 kW - 4-B14-1B0 - 230 Volt | AJ105: E-Motor 0.55 kW - 4-B14-1B0 - 230 Volt | AK105: Moteur-Electr. 0.55 kW - 4-B14-1B0 - 230 Volt
A106: H : E-motor 0.55 kW - 4-B14-300 - 230/400 Volt | B106: EM80A4B14300IE1AKR | C106: MPP9MF80 | D106: MPP9MC80 | E106: MPP9PCAC | F106: - | G106: - | H106: - | I106: - | J106: 0 | K106: 0.55 | L106: 0.85 | M106: 1.38 | N106: =ROUND(TableSearch(DBS_PUMP,SEL_PUMP,"CC")*M106,1) -> 4.4 | O106: FALSE | P106: 0 | Q106: AC | R106: INF_EM_AC_3F_STAR | S106: TRUE | AA106: H | AB106: E-motor 0.55 kW - 4-B14-300 - 230/400 Volt | AC106: E-motor 0.55 kW - 4-B14-300 - 230/400 Volt | AD106: E-Motor 0.55 kW - 4-B14-300 - 230/400 Volt | AE106: Moteur-Electr. 0.55 kW - 4-B14-300 - 230/400 Volt
A107: I : E-motor 0.75 kW - 4-1B0 - 230 Volt | B107: EM80B4MPP1B0 | C107: - | D107: - | E107: MPP9PCAC | F107: - | G107: - | H107: - | I107: - | J107: 0 | K107: 0.75 | L107: 0.8 | M107: 1.37 | N107: 4.4 | O107: FALSE | P107: 0 | Q107: AC | R107: INF_EM_AC_1F | S107: TRUE | V107: EM80B4B141B0AKR | W107: MPP9MF80 | X107: MPP9MC80 | AA107: I | AB107: E-motor 0.75 kW - 4-1B0 - 230 Volt | AC107: E-motor 0.75 kW - 4-1B0 - 230 Volt | AD107: E-Motor 0.75 kW - 4-1B0 - 230 Volt | AE107: Moteur-Electr. 0.75 kW - 4-1B0 - 230 Volt | AH107: E-motor 0.75 kW - 4-B14-1B0 - 230 Volt | AI107: E-motor 0.75 kW - 4-B14-1B0 - 230 Volt | AJ107: E-Motor 0.75 kW - 4-B14-1B0 - 230 Volt | AK107: Moteur-Electr. 0.75 kW - 4-B14-1B0 - 230 Volt
A108: K : E-motor 0.75 kW - 4-B14-300 - 230/400 Volt | B108: EM80B4B14300IE3AKR | C108: MPP9MF80 | D108: MPP9MC80 | E108: MPP9PCAC | F108: - | G108: - | H108: - | I108: - | J108: 0 | K108: 0.75 | L108: 0.85 | M108: 1.4 | N108: 4.5 | O108: FALSE | P108: 0 | Q108: AC | R108: INF_EM_AC_3F_STAR | S108: TRUE | AA108: K | AB108: E-motor 0.75 kW - 4-B14-300 - 230/400 Volt | AC108: E-motor 0.75 kW - 4-B14-300 - 230/400 Volt | AD108: E-Motor 0.75 kW - 4-B14-300 - 230/400 Volt | AE108: Moteur-Electr. 0.75 kW - 4-B14-300 - 230/400 Volt
A109: M : E-motor 1.1 kW - 4-B14-1A0 - 230 Volt | B109: EM90S4B141A0AKR | C109: MPP9MF90 | D109: MPP9MC90 | E109: MPP9PCAC | F109: - | G109: - | H109: - | I109: - | J109: 0 | K109: 1.1 | L109: 0.8 | M109: 1.4 | N109: 4.5 | O109: TRUE | P109: 0 | Q109: AC | R109: INF_EM_AC_1F | S109: FALSE | AA109: M | AB109: E-motor 1.1 kW - 4-B14-1A0 - 230 Volt | AC109: E-motor 1.1 kW - 4-B14-1A0 - 230 Volt | AD109: E-Motor 1.1 kW - 4-B14-1A0 - 230Volt | AE109: Moteur-Electr. 1.1 kW - 4-B14-1A0 - 230 Volt
A110: N : E-motor 1.1 kW - 4-300 - 230/400 Volt | B110: EM90S4MPP300IE2 | C110: - | D110: - | E110: MPP9PCAC | F110: - | G110: - | H110: - | I110: - | J110: 0 | K110: 1.1 | L110: 0.85 | M110: 1.42 | N110: 4.5 | O110: TRUE | P110: 0 | Q110: AC | R110: INF_EM_AC_3F_STAR | S110: FALSE | V110: EM90S4B14300IE3AKR | W110: MPP9MF90 | X110: MPP9MC90 | AA110: N | AB110: E-motor 1.1 kW - 4-300 - 230/400 Volt | AC110: E-motor 1.1 kW - 4-300 - 230/400 Volt | AD110: E-Motor 1.1 kW - 4-300 - 230/400 Volt | AE110: Moteur-Electr. 1.1 kW - 4-300 - 230/400 Volt | AH110: E-motor 1.1 kW - 4-B14-300 - 230/400 Volt | AI110: E-motor 1.1 kW - 4-B14-300 - 230/400 Volt | AJ110: E-Motor 1.1 kW - 4-B14-300 - 230/400 Volt | AK110: Moteur-Electr. 1.1 kW - 4-B14-300 - 230/400 Volt
A111: O : E-motor 1.5 kW - 4-B14-1A0 - 230 Volt | B111: EM90L4B141A0AKR | C111: MPP9MF90 | D111: MPP9MC90 | E111: MPP9PCAC | F111: - | G111: - | H111: - | I111: - | J111: 0 | K111: 1.5 | L111: 0.8 | M111: 1.44 | N111: 4.6 | O111: TRUE | P111: 0 | Q111: AC | R111: INF_EM_AC_1F | S111: FALSE | AA111: O | AB111: E-motor 1.5 kW - 4-B14-1A0 - 230 Volt | AC111: E-motor 1.5 kW - 4-B14-1A0 - 230 Volt | AD111: E-Motor 1.5 kW - 4-B14-1A0 - 230 Volt | AE111: Moteur-Electr. 1.5 kW - 4-B14-1A0 - 230 Volt
A112: P : E-motor 1.5 kW - 4-300 - 230/400 Volt | B112: EM90L4B14300IE3AKR | C112: MPP9MF90 | D112: MPP9MC90 | E112: MPP9PCAC | F112: - | G112: - | H112: - | I112: - | J112: 0 | K112: 1.5 | L112: 0.85 | M112: 1.42 | N112: 4.5 | O112: TRUE | P112: 0 | Q112: AC | R112: INF_EM_AC_3F_STAR | S112: FALSE | AA112: P | AB112: E-motor 1.5 kW - 4-300 - 230/400 Volt | AC112: E-motor 1.5 kW - 4-300 - 230/400 Volt | AD112: E-Motor 1.5 kW - 4-300 - 230/400 Volt | AE112: Moteur-Electr. 1.5 kW - 4-300 - 230/400 Volt | AH112: E-motor 1.5 kW - 4-B14-300 - 230/400 Volt | AI112: E-motor 1.5 kW - 4-B14-300 - 230/400 Volt | AJ112: E-Motor 1.5 kW - 4-B14-300 - 230/400 Volt | AK112: Moteur-Electr. 1.5 kW - 4-B14-300 - 230/400 Volt
A113: Q : E-motor 2.2 kW - 4-B14-300 - 230/400 Volt | B113: EM100LA4B14300IE3A | C113: MPP9MF100 | D113: MPP9MC100 | E113: MPP9PCAC | F113: - | G113: - | H113: - | I113: - | J113: 0 | K113: 2.2 | L113: 0.85 | M113: 1.42 | N113: 4.5 | O113: TRUE | P113: 0 | Q113: AC | R113: INF_EM_AC_3F_STAR | S113: FALSE | AA113: Q | AB113: E-motor 2.2 kW - 4-B14-300 - 230/400 Volt | AC113: E-motor 2.2 kW - 4-B14-300 - 230/400 Volt | AD113: E-Motor 2.2kW - 4-B14-300 - 230/400 Volt | AE113: Moteur-Electr. 2.2 kW - 4-B14-300 - 230/400 Volt
A114: R : E-motor 3 kW - 4-B14-500 - 400/690 Volt | B114: EM100LB4B14500IE3A | C114: MPP9MF100 | D114: MPP9MC100 | E114: MPP9PCAC | F114: - | G114: - | H114: - | I114: - | J114: 0 | K114: 3 | L114: 0.85 | M114: 1.42 | N114: 4.5 | O114: TRUE | P114: 0 | Q114: AC | R114: INF_EM_AC_3F_DELTA | S114: FALSE | AA114: R | AB114: E-motor 3 kW - 4-B14-500 - 400/690 Volt | AC114: E-motor 3 kW - 4-B14-500 - 400/690 Volt | AD114: E-Motor 3 kW - 4-B14-500 - 400/690 Volt | AE114: Moteur-Electr. 3 kW - 4-B14-500 - 400/690 Volt
A115: T : E-motor 2.2 kW - 4-B14-1A0 - 230 Volt | B115: EM100LA4B141A0AKR | C115: MPP9MF100 | D115: MPP9MC100 | E115: MPP9PCAC | F115: - | G115: - | H115: - | I115: - | J115: 0 | K115: 2.2 | L115: 0.85 | M115: 1.44 | N115: 4.6 | O115: TRUE | P115: 0 | Q115: AC | R115: INF_EM_AC_1F | S115: FALSE | AA115: T | AB115: E-motor 2.2 kW - 4-B14-1A0 - 230 Volt | AC115: E-motor 2.2 kW - 4-B14-1A0 - 230 Volt | AD115: E-Motor 2.2 kW - 4-B14-1A0 - 230 Volt | AE115: Moteur-Electr. 2.2 kW - 4-B14-1A0 - 230 Volt
A116: U : E-motor 0.55 kW - 2-B14-1B0 - 230 Volt 3000 rpm | B116: EM71B2B141B0AKR | C116: MPP9MF71 | D116: MPP9MC71 | E116: MPP9PCAC | F116: - | G116: - | H116: - | I116: - | J116: 0 | K116: 0.55 | L116: 0.85 | M116: 2.76 | N116: 8.8 | O116: FALSE | P116: 0 | Q116: AC | R116: INF_EM_AC_1F | S116: TRUE | AA116: U | AB116: E-motor 0.55 kW - 2-B14-1B0 - 230 Volt 3000 rpm | AC116: E-motor 0.55 kW - 2-B14-1B0 - 230 Volt 3000 rpm | AD116: E-Motor 0.55 kW - 2-B14-1B0 - 230 Volt 3000 rpm | AE116: Moteur-Electr. 0.55 kW - 2-B14-1B0 - 230 Volt 3000 rpm
A117: V : E-motor 0.75 kW - 2-B14-1B0 - 230 Volt 3000 rpm | B117: EM80A2B141B0AKR | C117: MPP9MF80 | D117: MPP9MC80 | E117: MPP9PCAC | F117: - | G117: - | H117: - | I117: - | J117: 0 | K117: 0.75 | L117: 0.85 | M117: 2.76 | N117: 8.8 | O117: FALSE | P117: 0 | Q117: AC | R117: INF_EM_AC_1F | S117: TRUE | AA117: V | AB117: E-motor 0.75 kW - 2-B14-1B0 - 230 Volt 3000 rpm | AC117: E-motor 0.75 kW - 2-B14-1B0 - 230 Volt 3000 rpm | AD117: E-Motor 0.75 kW - 2-B14-1B0 - 230 Volt 3000 rpm | AE117: Moteur-Electr. 0.75 kW - 2-B14-1B0 - 230 Volt 3000 rpm
A118: L : E-motor 1.1 kW - 2-B14-1A0 - 230 Volt 3000 rpm | B118: EM80B2B141A0AKR | C118: MPP9MF80 | D118: MPP9MC80 | E118: MPP9PCAC | F118: - | G118: - | H118: - | I118: - | J118: 0 | K118: 1.1 | L118: 0.8 | M118: 2.76 | N118: =ROUND(TableSearch(DBS_PUMP,SEL_PUMP,"CC")*M118,1) -> 8.8 | O118: TRUE | P118: 0 | Q118: AC | R118: INF_EM_AC_1F | S118: TRUE | AA118: L | AB118: E-motor 1.1 kW - 2-B14-1A0 - 230 Volt 3000 rpm | AC118: E-motor 1.1 kW - 2-B14-1A0 - 230 Volt 3000 rpm | AD118: E-Motor 1.1 kW - 2-B14-1A0 - 230 Volt 3000 rpm | AE118: Moteur-Electr. 1.1 kW - 2-B14-1A0 - 230 Volt 3000 rpm
A119: W : E-motor 1.5 kW - 2-B14-1A0 - 230 Volt 3000 rpm | B119: EM90S2B141A0AKR | C119: MPP9MF90 | D119: MPP9MC90 | E119: MPP9PCAC | F119: - | G119: - | H119: - | I119: - | J119: 0 | K119: 1.5 | L119: 0.8 | M119: 2.76 | N119: 8.8 | O119: TRUE | P119: 0 | Q119: AC | R119: INF_EM_AC_1F | S119: TRUE | AA119: W | AB119: E-motor 1.5 kW - 2-B14-1A0 - 230 Volt 3000 rpm | AC119: E-motor 1.5 kW - 2-B14-1A0 - 230 Volt 3000 rpm | AD119: E-Motor 1.5 kW - 2-B14-1A0 - 230 Volt 3000 rpm | AE119: Moteur-Electr. 1.5 kW - 2-B14-1A0 - 230 Volt 3000 rpm
A120: X : E-motor 2.2 kW - 2-B14-1A0 - 230 Volt 3000 rpm | B120: EM90L2B141A0 | C120: MPP9MF90 | D120: MPP9MC90 | E120: MPP9PCAC | F120: - | G120: - | H120: - | I120: - | J120: 0 | K120: 2.2 | L120: 0.85 | M120: 2.76 | N120: 8.8 | O120: TRUE | P120: 0 | Q120: AC | R120: INF_EM_AC_1F | S120: FALSE | AA120: X | AB120: E-motor 2.2 kW - 2-B14-1A0 - 230 Volt 3000 rpm | AC120: E-motor 2.2 kW - 2-B14-1A0 - 230 Volt 3000 rpm | AD120: E-Motor 2.2 kW - 2-B14-1A0 - 230 Volt 3000 rpm | AE120: Moteur-Electr. 2.2 kW - 2-B14-1A0 - 230 Volt 3000 rpm
A121: Z : Motor Honda 5.5. pk 3/4" | B121: GX160UT2QX4OH | C121: MPP9MF90 | D121: MPP9MCBSH | E121: MPP9PCAC | F121: MPPMF90H | G121: - | H121: - | I121: - | J121: 0 | K121: =ROUND(5.5*0.75,1) -> 4.1 | L121: 1 | M121: 3 | N121: 9.6 | O121: TRUE | P121: 0 | Q121: BZ | R121: - | S121: FALSE | AA121: Z | AB121: Motor Honda 5.5. pk 3/4" | AC121: Motor Honda 5.5. hp 3/4" | AD121: Motor Honda 5.5. ps 3/4" | AE121: Motor Honda 5.5. cv 3/4"
A122: S : Geen Elektromotor, geen Koppelbus | B122: - | C122: - | D122: - | E122: - | F122: - | G122: - | H122: - | I122: - | J122: 0 | N122: nvt | O122: FALSE | P122: 5 | Q122: -- | R122: - | S122: TRUE | AA122: S | AB122: Geen Elektromotor, geen Koppelbus | AC122: No Electric motor, No coupling sleeve | AD122: ohne Elektromotor, Kein Kupplung | AE122: Sans moteur électrique, sans accouplement
A123: Y : Voorzetlager t.b.v. poelie-aandrijving | B123: MPPSUPP | C123: =IF(SEL_PUMP_GROUP<>1,"MPPDCMC805","MPPDCMC800") -> MPPDCMC800 | D123: - | E123: - | F123: - | G123: - | H123: - | I123: - | J123: 0 | N123: nvt | O123: FALSE | P123: 5 | Q123: -- | R123: - | S123: TRUE | AA123: Y | AB123: Voorzetlager t.b.v. poelie-aandrijving | AC123: Support-bearing for v-belt pulley | AD123: Vorsetzlager für Riemenscheibe | AE123: Palier pour entraînement par courroie
A125: LST_BELL_HOUSING & DBS_BELL_HOUSING | B125: Artikel1 | C125: Artikel2 | D125: Artikel3 | AA125: Code | AB125: Oms_DUT | AC125: Oms_ENG | AD125: Oms_GER | AE125: Oms_FRE
A126: =CHOOSE(SEL_LANGUAGE,AB126,AC126,AD126,AE126) -> <Geen> | B126: - | C126: - | D126: - | AB126: <Geen> | AC126: <None> | AD126: <Frei> | AE126: <Sans>
A127: =CHOOSE(SEL_LANGUAGE,AB127,AC127,AD127,AE127) -> Voor L71 motor + koppelbussen | B127: MPP9MF71 | C127: MPP9MC71 | D127: =IF(SEL_PUMP_GROUP<>1,"MPP9PCAC05","MPP9PCAC") -> MPP9PCAC | AB127: Voor L71 motor + koppelbussen | AC127: For L71 motor + coupling sleeve | AD127: für L71 Motor + Kupplung | AE127: Pour moteur L71 + accouplement
A128: =CHOOSE(SEL_LANGUAGE,AB128,AC128,AD128,AE128) -> Voor M80 motor + koppelbussen | B128: MPP9MF80 | C128: MPP9MC80 | D128: =IF(SEL_PUMP_GROUP<>1,"MPP9PCAC05","MPP9PCAC") -> MPP9PCAC | AB128: Voor M80 motor + koppelbussen | AC128: For M80 motor + coupling sleeve | AD128: für M80 Motor + Kupplung | AE128: Pour moteur M80 + accouplement
A129: =CHOOSE(SEL_LANGUAGE,AB129,AC129,AD129,AE129) -> Voor N90 motor + koppelbussen | B129: MPP9MF90 | C129: MPP9MC90 | D129: =IF(SEL_PUMP_GROUP<>1,"MPP9PCAC05","MPP9PCAC") -> MPP9PCAC | AB129: Voor N90 motor + koppelbussen | AC129: For N90 motor + coupling sleeve | AD129: für N90 Motor + Kupplung | AE129: Pour moteur N90 + accouplement
A130: =CHOOSE(SEL_LANGUAGE,AB130,AC130,AD130,AE130) -> Voor P100 motor + koppelbussen | B130: MPP9MF100 | C130: MPP9MC100 | D130: =IF(SEL_PUMP_GROUP<>1,"MPP9PCAC05","MPP9PCAC") -> MPP9PCAC | AB130: Voor P100 motor + koppelbussen | AC130: For P100 motor + coupling sleeve | AD130: für P100 Motor + Kupplung | AE130: Pour moteur P100 + accouplement
A132: LST_CHOICE_1 & DBS_CHOICE_1 | B132: Artikel1 | C132: Artikel2 | AA132: Code | AB132: Oms_DUT | AC132: Oms_ENG | AD132: Oms_GER | AE132: Oms_FRE
A133: =AA133&" : "&CHOOSE(SEL_LANGUAGE,AB133,AC133,AD133,AE133) -> 1 : Veiligheid 25 - 250 bar | B133: MPPRVC | C133: MPPRVCBLOCK | AA133: 1 | AB133: Veiligheid 25 - 250 bar | AC133: Relief valve 25 - 250 bar | AD133: Druckbegrenzungsventil 25 - 250 bar | AE133: Sécurité 25 - 250 bar
A135: LST_CHOICE_2 & DBS_CHOICE_2 | B135: Artikel1 | C135: Artikel2 | AA135: Code | AB135: Oms_DUT | AC135: Oms_ENG | AD135: Oms_GER | AE135: Oms_FRE
A136: =AA136&" : "&CHOOSE(SEL_LANGUAGE,AB136,AC136,AD136,AE136) -> 1 : Terugslagklep | B136: MPPCV | C136: - | AA136: 1 | AB136: Terugslagklep | AC136: Check valve | AD136: Rückschlagventil | AE136: Clapet anti-retour
A137: =AA137&" : "&CHOOSE(SEL_LANGUAGE,AB137,AC137,AD137,AE137) -> 2 : Plug | B137: MPPP34UNF | C137: - | AA137: 2 | AB137: Plug | AC137: Plug | AD137: Stopfen | AE137: Bouchon
A138: =AA138&" : "&CHOOSE(SEL_LANGUAGE,AB138,AC138,AD138,AE138) -> 3 : Plug + extra 1/4 aansluiting | B138: MPPPSAE82PT | C138: - | AA138: 3 | AB138: Plug + extra 1/4 aansluiting | AC138: Plug + extra 1/4 connection | AD138: Stopfen + extra 1/4 Anschluss | AE138: Bouchon + connection supplémentaire 1/4"
A139: =AA139&" : "&CHOOSE(SEL_LANGUAGE,AB139,AC139,AD139,AE139) -> 4 : Terugslagklep met meetpunt | B139: MPPCVMP | C139: MEV2018 | AA139: 4 | AB139: Terugslagklep met meetpunt | AC139: Check valve with measure con. | AD139: Rückschlagventil met messpunkt | AE139: Clapet anti-retour avec point de mesure
A141: LST_CHOICE_3 & DBS_CHOICE_3 | B141: Artikel1 | C141: Artikel2 | D141: 12v | E141: 24v | F141: 230v | AA141: Code | AB141: Oms_DUT | AC141: Oms_ENG | AD141: Oms_GER | AE141: Oms_FRE
A142: =AA142&" : "&CHOOSE(SEL_LANGUAGE,AB142,AC142,AD142,AE142) -> A : Plug | B142: =IF(SEL_CHOICE_4=A159,"MPPPSAE82","MPPP34UNF") -> MPPPSAE82 | C142: - | AA142: A | AB142: Plug | AC142: Plug | AD142: Stopfen | AE142: Bouchon
A143: B : Plug + extra 1/4 aansluiting P | B143: MPPPSAE82P | C143: - | AA143: B | AB143: Plug + extra 1/4 aansluiting P | AC143: Plug + extra 1/4 connection P | AD143: Stopfen + extra 1/4 Anschluss P | AE143: Bouchon + connection supplémentaire 1/4" P
A144: C : Plug + extra 1/4 aansluiting T | B144: MPPPSAE82T | C144: - | AA144: C | AB144: Plug + extra 1/4 aansluiting T | AC144: Plug + extra 1/4 connection T | AD144: Stopfen + extra 1/4 Anschluss T | AE144: Bouchon + connection supplémentaire 1/4" T
A145: =AA145&" : "&CHOOSE(SEL_LANGUAGE,AB145,AC145,AD145,AE145) -> D : 2/2 klep NC | B145: LSV2082NCP | C145: =CHOOSE(SEL_VOLTAGE_INDEX,D145,E145,F145) -> LC08C2H | D145: LC08C1H | E145: LC08C2H | F145: LC08C4H | AA145: D | AB145: 2/2 klep NC | AC145: 2/2 valve NC | AD145: 2/2 Wegeventil NC | AE145: vanne 2/2 NC
A146: =AA146&" : "&CHOOSE(SEL_LANGUAGE,AB146,AC146,AD146,AE146) -> E : 2/2 klep NC + noodhandbediening | B146: LSV2082NCPM | C146: =CHOOSE(SEL_VOLTAGE_INDEX,D146,E146,F146) -> LC08C2H | D146: LC08C1H | E146: LC08C2H | F146: LC08C4H | AA146: E | AB146: 2/2 klep NC + noodhandbediening | AC146: 2/2 valve NC + emergency knob | AD146: 2/2 Wegeventil NC + Notbedienung | AE146: vanne 2/2 NC + emergency knob
A147: =AA147&" : "&CHOOSE(SEL_LANGUAGE,AB147,AC147,AD147,AE147) -> F : 2/2 klep NO | B147: LSV2082NOP | C147: =CHOOSE(SEL_VOLTAGE_INDEX,D147,E147,F147) -> LC08C2H | D147: LC08C1H | E147: LC08C2H | F147: LC08C4H | AA147: F | AB147: 2/2 klep NO | AC147: 2/2 valve NO | AD147: 2/2 Wegeventil NO | AE147: vanne 2/2 NO
A148: G : 2/2 klep NC handbediening | B148: MPPMVENC | C148: - | AA148: G | AB148: 2/2 klep NC handbediening | AC148: 2/2 valve NC hand operated | AD148: 2/2 Wegeventil NC handbetätigt | AE148: vanne 2/2 NC commande manuelle
A149: H : 2/2 klep NC handbediening met microswitch | B149: MPPMVNC | C149: - | AA149: H | AB149: 2/2 klep NC handbediening met microswitch | AC149: 2/2 valve NC hand operated with microswitch | AD149: 2/2 Wegeventil NC handbetätigt mit Mikroschalter | AE149: vanne 2/2 NC commande manuelle avec microrupteur
A152: LST_CHOICE_3_FC & DBS_CHOICE_3_FC | B152: Artikel1 | C152: Artikel2 | D152: Artikel3 | E152: Artikel4 | F152: 12v | G152: 24v | H152: 230v | AA152: Code | AB152: Oms_DUT | AC152: Oms_ENG | AD152: Oms_GER | AE152: Oms_FRE
A153: =AA153&" : "&CHOOSE(SEL_LANGUAGE,AB153,AC153,AD153,AE153) -> A : 4/3 klep AB dicht | B153: LSV0834T | C153: - | D153: - | E153: =CHOOSE(SEL_VOLTAGE_INDEX,F153,G153,H153) -> LC08C2H | F153: LC08C1H | G153: LC08C2H | H153: LC08C4H | AA153: A | AB153: 4/3 klep AB dicht | AC153: 4/3 valve AB closed | AD153: 4/3 Wegeventil AB geschlossen | AE153: 4/3 vanne AB closed
A154: =AA154&" : "&CHOOSE(SEL_LANGUAGE,AB154,AC154,AD154,AE154) -> B : 4/3 klep AB open | B154: LSV0834O | C154: - | D154: - | E154: =CHOOSE(SEL_VOLTAGE_INDEX,F154,G154,H154) -> LC08C2H | F154: LC08C1H | G154: LC08C2H | H154: LC08C4H | AA154: B | AB154: 4/3 klep AB open | AC154: 4/3 valve AB open | AD154: 4/3 Wegeventil AB offen | AE154: 4/3 vanne AB open
A155: =AA155&" : "&CHOOSE(SEL_LANGUAGE,AB155,AC155,AD155,AE155) -> C : 4/3 klep incl. gestuurde-terugslagklep | B155: LSV0834O | C155: MPPPOCV | D155: 912840 | E155: =CHOOSE(SEL_VOLTAGE_INDEX,F155,G155,H155) -> LC08C2H | F155: LC08C1H | G155: LC08C2H | H155: LC08C4H | AA155: C | AB155: 4/3 klep incl. gestuurde-terugslagklep | AC155: 4/3 valve with non return valve | AD155: 4/3 Wegeventil mit Rückschlagventil | AE155: 4/3 vanne avec non anti-retour piloté
A156: =AA156&" : "&CHOOSE(SEL_LANGUAGE,AB156,AC156,AD156,AE156) -> D : 4/2 klep | B156: LSV2084CO | C156: - | D156: - | E156: =CHOOSE(SEL_VOLTAGE_INDEX,F156,G156,H156) -> LC08C2H | F156: LC08C1H | G156: LC08C2H | H156: LC08C4H | AA156: D | AB156: 4/2 klep | AC156: 4/2 valve | AD156: 4/2 Wegeventil | AE156: 4/2 vanne
A158: LST_CHOICE_4 & DBS_CHOICE_4 | B158: Artikel1 | C158: Artikel2 | AA158: Code | AB158: Oms_DUT | AC158: Oms_ENG | AD158: Oms_GER | AE158: Oms_FRE
A159: =AA159&" : "&CHOOSE(SEL_LANGUAGE,AB159,AC159,AD159,AE159) -> A : Plug | B159: MPPP34UNF | C159: - | AA159: A | AB159: Plug | AC159: Plug | AD159: Stopfen | AE159: Bouchon
A160: B : Plug + extra 1/4 aansluiting P | B160: MPPPSAE82T | C160: - | AA160: B | AB160: Plug + extra 1/4 aansluiting P | AC160: Plug + extra 1/4 connection P | AD160: Stopfen + extra 1/4 Anschluss P | AE160: Bouchon + connection supplémentaire 1/4" P
A161: C : Plug + extra 1/4 aansluiting T | B161: MPPPSAE82P | C161: - | AA161: C | AB161: Plug + extra 1/4 aansluiting T | AC161: Plug + extra 1/4 connection T | AD161: Stopfen + extra 1/4 Anschluss T | AE161: Bouchon + connection supplémentaire 1/4" T
A162: D : Smoring drukgecomp. 1 ltr | B162: MPPTH1L | C162: - | AA162: D | AB162: Smoring drukgecomp. 1 ltr | AC162: Throttle pressure comp. 1 ltr | AD162: Drosselventil druckkompensiert 1 l/min | AE162: Etrangleur compensé en pression 1 litre
A163: E : Smoring drukgecomp. 2 ltr | B163: MPPTH2L | C163: - | AA163: E | AB163: Smoring drukgecomp. 2 ltr | AC163: Throttle pressure comp. 2 ltr | AD163: Drosselventil druckkompensiert 2 l/min | AE163: Etrangleur compensé en pression 2 litres
A164: F : Smoring drukgecomp. 3 ltr | B164: MPPTH3L | C164: - | AA164: F | AB164: Smoring drukgecomp. 3 ltr | AC164: Throttle pressure comp. 3 ltr | AD164: Drosselventil druckkompensiert 3 l/min | AE164: Etrangleur compensé en pression 3 litres
A165: G : Smoring drukgecomp. 4 ltr | B165: MPPTH4L | C165: - | AA165: G | AB165: Smoring drukgecomp. 4 ltr | AC165: Throttle pressure comp. 4 ltr | AD165: Drosselventil druckkompensiert 4 l/min | AE165: Etrangleur compensé en pression 4 litres
A166: H : Smoring drukgecomp. 5 ltr | B166: MPPTH5L | C166: - | AA166: H | AB166: Smoring drukgecomp. 5 ltr | AC166: Throttle pressure comp. 5 ltr | AD166: Drosselventil druckkompensiert 5 l/min | AE166: Etrangleur compensé en pression 5 litres
A167: I : Smoring drukgecomp. 6 ltr | B167: MPPTH6L | C167: - | AA167: I | AB167: Smoring drukgecomp. 6 ltr | AC167: Throttle pressure comp. 6 ltr | AD167: Drosselventil druckkompensiert 6 l/min | AE167: Etrangleur compensé en pression 6 litres
A168: J : Smoring drukgecomp. 9 ltr | B168: MPPTH9L | C168: - | AA168: J | AB168: Smoring drukgecomp. 9 ltr | AC168: Throttle pressure comp. 9 ltr | AD168: Drosselventil druckkompensiert 9 l/min | AE168: Etrangleur compensé en pression 9 litres
A169: K : Smoring drukgecomp. 12 ltr | B169: MPPTH12L | C169: - | AA169: K | AB169: Smoring drukgecomp. 12 ltr | AC169: Throttle pressure comp. 12 ltr | AD169: Drosselventil druckkompensiert 12 l/min | AE169: Etrangleur compensé en pression 12 litres
A170: L : Smoring imbus verstelling 0-16 | B170: MPPTHEN | C170: - | AA170: L | AB170: Smoring imbus verstelling 0-16 | AC170: Throttle externel adjustment 0-16 | AD170: Drosselventil Verstellung/Innensechskant 0-16 | AE170: Etrangleur 0-16 à six pans creux
A171: M : Smoring knop verstelling 0-12 | B171: MPPTHK | C171: - | AA171: M | AB171: Smoring knop verstelling 0-12 | AC171: Throttle knob adjustment 0-12 | AD171: Drosselventil Verstellung/Drehknopf 0-12 | AE171: Etrangleur 0-12 avec bouton
A172: N : Smoring drukgecomp. knopverstelling | B172: MPPTHPCK | C172: - | AA172: N | AB172: Smoring drukgecomp. knopverstelling | AC172: Throttle pressure comp. knob-adjustment | AD172: Drosselventil druckkompensiert Drehknopf | AE172: Etranlgeur compensé en pression avec bouton
A173: O : Smoring drukgecomp. imbus-verstelling | B173: MPPTHPC | C173: - | AA173: O | AB173: Smoring drukgecomp. imbus-verstelling | AC173: Throttle pressure comp. external adjustment | AD173: Drosselventil druckkompensiert Innensechskant | AE173: Etrangleur compensé en pression à six pans creux
A175: LST_CHOICE_5 & DBS_CHOICE_5 | B175: Artikel1 | C175: Artikel2 | D175: 12v | E175: 24v | F175: 230v | AA175: Code | AB175: Oms_DUT | AC175: Oms_ENG | AD175: Oms_GER | AE175: Oms_FRE
A176: =AA176&" : "&CHOOSE(SEL_LANGUAGE,AB176,AC176,AD176,AE176) -> A : Plug | B176: MPPPSAE82 | C176: - | AA176: A | AB176: Plug | AC176: Plug | AD176: Stopfen | AE176: Bouchon
A177: B : Plug + extra 1/4 aansluiting P | B177: MPPPSAE82P | C177: - | AA177: B | AB177: Plug + extra 1/4 aansluiting P | AC177: Plug + extra 1/4 connection P | AD177: Stopfen + extra 1/4 Anschluss P | AE177: Bouchon + connection supplémentaire 1/4" P
A178: C : Plug + extra 1/4 aansluiting T | B178: MPPPSAE82T | C178: - | AA178: C | AB178: Plug + extra 1/4 aansluiting T | AC178: Plug + extra 1/4 connection T | AD178: Stopfen + extra 1/4 Anschluss T | AE178: Bouchon + connection supplémentaire 1/4" T
A179: =AA179&" : "&CHOOSE(SEL_LANGUAGE,AB179,AC179,AD179,AE179) -> D : 2/2 klep NC | B179: LSV2082NCP | C179: =CHOOSE(SEL_VOLTAGE_INDEX,D179,E179,F179) -> LC08C2H | D179: LC08C1H | E179: LC08C2H | F179: LC08C4H | AA179: D | AB179: 2/2 klep NC | AC179: 2/2 valve NC | AD179: 2/2 Wegeventil NC | AE179: vanne 2/2 NC
A180: =AA180&" : "&CHOOSE(SEL_LANGUAGE,AB180,AC180,AD180,AE180) -> E : 2/2 klep NC + noodhandbediening | B180: LSV2082NCPM | C180: =CHOOSE(SEL_VOLTAGE_INDEX,D180,E180,F180) -> LC08C2H | D180: LC08C1H | E180: LC08C2H | F180: LC08C4H | AA180: E | AB180: 2/2 klep NC + noodhandbediening | AC180: 2/2 valve NC + emergency knob | AD180: 2/2 Wegeventil NC + Notbedienung | AE180: vanne 2/2 NC + emergency knob
A181: =AA181&" : "&CHOOSE(SEL_LANGUAGE,AB181,AC181,AD181,AE181) -> F : 2/2 klep NO | B181: LSV2082NOP | C181: =CHOOSE(SEL_VOLTAGE_INDEX,D181,E181,F181) -> LC08C2H | D181: LC08C1H | E181: LC08C2H | F181: LC08C4H | AA181: F | AB181: 2/2 klep NO | AC181: 2/2 valve NO | AD181: 2/2 Wegeventil NO | AE181: vanne 2/2 NO
A182: G : 2/2 klep NC handbediening | B182: MPPMVENC | C182: - | AA182: G | AB182: 2/2 klep NC handbediening | AC182: 2/2 valve NC hand operated | AD182: 2/2 Wegeventil NC handbetätigt | AE182: vanne 2/2 NC commande manuelle
A183: H : 2/2 klep NC handbediening met microswitch | B183: MPPMVNC | C183: - | AA183: H | AB183: 2/2 klep NC handbediening met microswitch | AC183: 2/2 valve NC hand operated with microswitch | AD183: 2/2 Wegeventil NC handbetätigt mit Mikroschalter | AE183: vanne 2/2 NC commande manuelle avec microrupteur
A184: J : Handpomp 2cc | B184: MPPHP2 | C184: - | AA184: J | AB184: Handpomp 2cc | AC184: Handpump 2cc | AD184: Hand pumpe 2cc | AE184: pompe à main 2cc
A186: LST_GAUGE & DBS_GAUGE | B186: Artikel1 | AA186: Code | AB186: Oms_DUT | AC186: Oms_ENG | AD186: Oms_GER | AE186: Oms_FRE
A187: ="<"&CHOOSE(SEL_LANGUAGE,AB187,AC187,AD187,AE187)&">" -> <Geen manometer> | B187: - | AB187: Geen manometer | AC187: No pressure gauge | AD187: ohne Manometer | AE187: Sans manomètre
A188: =CHOOSE(SEL_LANGUAGE,AB188,AC188,AD188,AE188) -> Manometer 250 bar met afsluiter | B188: MA63250L04PLGF | AB188: Manometer 250 bar met afsluiter | AC188: Pressure gauge 250 bar with shut of valve | AD188: Manometer 250 bar mit Absperrhahn | AE188: Manomètre 250 bar avec robinet de fermeture
A189: =CHOOSE(SEL_LANGUAGE,AB189,AC189,AD189,AE189) -> Manometer 160 bar met afsluiter | B189: MA63160L04PLGF | AB189: Manometer 160 bar met afsluiter | AC189: Pressure gauge 160 bar with shut of valve | AD189: Manometer 160 bar mit Absperrhahn | AE189: Manomètre 160 bar avec robinet de fermeture
A190: =CHOOSE(SEL_LANGUAGE,AB190,AC190,AD190,AE190) -> Manometer 100 bar met afsluiter | B190: MA63100L04PLGF | AB190: Manometer 100 bar met afsluiter | AC190: Pressure gauge 100 bar with shut of valve | AD190: Manometer 100 bar mit Absperrhahn | AE190: Manomètre 100 bar avec robinet de fermeture
A192: LST_REMOTE_CONTROL & DBS_REMOTE_CONTROL | B192: Artikel1 | AA192: Code | AB192: Oms_DUT | AC192: Oms_ENG | AD192: Oms_GER | AE192: Oms_FRE
A193: ="<"&CHOOSE(SEL_LANGUAGE,AB193,AC193,AD193,AE193)&">" -> <Geen> | B193: - | AB193: Geen | AC193: None | AD193: Keine | AE193: Sans
A194: =CHOOSE(SEL_LANGUAGE,AB194,AC194,AD194,AE194) -> Draadloos afstandbediening | B194: H12PBTRAILER | AB194: Draadloos afstandbediening | AC194: Wireless remote control | AD194: Drahtlose Fernbedienung | AE194: Télécommande
A195: =CHOOSE(SEL_LANGUAGE,AB195,AC195,AD195,AE195) -> Hangende-drukknopkast met 4m kabel | B195: COB81400 | AB195: Hangende-drukknopkast met 4m kabel | AC195: Hanging-pushbutton-control with 4m cable | AD195: Hangende-druckknopf-steuerung mit 4m Kabel | AE195: Boîtier électrique avec 4 mètres de cable
A196: =CHOOSE(SEL_LANGUAGE,AB196,AC196,AD196,AE196) -> Hangende-drukknopkast met 6m kabel | B196: COB81600 | AB196: Hangende-drukknopkast met 6m kabel | AC196: Hanging-pushbutton-control with 6m cable | AD196: Hangende-druckknopf-steuerung mit 6m Kabel | AE196: Boîtier électrique avec 6 mètres de cable
A198: LST_VOLTAGE
A199: 012C
A200: 024C
A201: 230A
A203: LST_VALVE & DBS_VALVE | B203: Artikel1 | C203: Artikel2 | D203: Artikel1 (12v) | E203: Artikel1 (24v) | F203: Artikel1 (230v) | AA203: Code | AB203: Oms_DUT | AC203: Oms_ENG | AD203: Oms_GER | AE203: Oms_FRE
B204: - | C204: -
A205: =CHOOSE(SEL_LANGUAGE,AB205,AC205,AD205,AE205) -> Elek. stuurschuif NG6 - Plunger B2 | B205: =CHOOSE(SEL_VOLTAGE_INDEX,D205,E205,F205) -> KREV03B2024C | C205: - | D205: KREV03B2012C | E205: KREV03B2024C | F205: KREV03B2230A | AB205: Elek. stuurschuif NG6 - Plunger B2 | AC205: Elec. control valve NG6 - Spool B2 | AD205: Elektromagnetventil NG6 - Schieber B2 | AE205: Distributeur électrique NG6 - Tiroir B2
A206: Elek. stuurschuif NG6 - Plunger B20 | B206: KREV03SB20024C | C206: - | D206: KREV03SB20012C | E206: KREV03SB20024C | F206: KREV03B20230A | AB206: Elek. stuurschuif NG6 - Plunger B20 | AC206: Elec. control valve NG6 - Spool B20 | AD206: Elektromagnetventil NG6 - Schieber B20 | AE206: Distributeur électrique NG6 - Tiroir B20
A207: Elek. stuurschuif NG6 - Plunger B3 | B207: KREV03SB3024C | C207: - | D207: KREV03SB3012C | E207: KREV03SB3024C | F207: KREV03B3230A | AB207: Elek. stuurschuif NG6 - Plunger B3 | AC207: Elec. control valve NG6 - Spool B3 | AD207: Elektromagnetventil NG6 - Schieber B3 | AE207: Distributeur électrique NG6 - Tiroir B3
A208: Elek. stuurschuif NG6 - Plunger B3S | B208: KREV03SB3S024C | C208: - | D208: KREV03SB3S012C | E208: KREV03SB3S024C | F208: KREV03B3S230A | AB208: Elek. stuurschuif NG6 - Plunger B3S | AC208: Elec. control valve NG6 - Spool B3S | AD208: Elektromagnetventil NG6 - Schieber B3S | AE208: Distributeur électrique NG6 - Tiroir B3S
A209: Elek. stuurschuif NG6 - Plunger C2 | B209: KREV03SC2024C | C209: - | D209: KREV03SC2012C | E209: KREV03SC2024C | F209: KREV03C2230A | AB209: Elek. stuurschuif NG6 - Plunger C2 | AC209: Elec. control valve NG6 - Spool C2 | AD209: Elektromagnetventil NG6 - Schieber C2 | AE209: Distributeur électrique NG6 - Tiroir C2
A210: Elek. stuurschuif NG6 - Plunger C3 | B210: KREV03SC3024C | C210: - | D210: KREV03SC3012C | E210: KREV03SC3024C | F210: KREV03C3230A | AB210: Elek. stuurschuif NG6 - Plunger C3 | AC210: Elec. control valve NG6 - Spool C3 | AD210: Elektromagnetventil NG6 - Schieber C3 | AE210: Distributeur électrique NG6 - Tiroir C3
A211: Elek. stuurschuif NG6 - Plunger C3B | B211: KREV03SC3B024C | C211: - | D211: KREV03SC3B012C | E211: KREV03SC3B024C | F211: KREV03C3B230A | AB211: Elek. stuurschuif NG6 - Plunger C3B | AC211: Elec. control valve NG6 - Spool C3B | AD211: Elektromagnetventil NG6 - Schieber C3B | AE211: Distributeur électrique NG6 - Tiroir C3B
A212: Elek. stuurschuif NG6 - Plunger C4 | B212: KREV03SC4024C | C212: - | D212: KREV03SC4012C | E212: KREV03SC4024C | F212: KREV03C4230A | AB212: Elek. stuurschuif NG6 - Plunger C4 | AC212: Elec. control valve NG6 - Spool C4 | AD212: Elektromagnetventil NG6 - Schieber C4 | AE212: Distributeur électrique NG6 - Tiroir C4
A213: Elek. stuurschuif NG6 - Plunger C6 | B213: KREV03SC6024C | C213: - | D213: KREV03SC6012C | E213: KREV03SC6024C | F213: KREV03C6230A | AB213: Elek. stuurschuif NG6 - Plunger C6 | AC213: Elec. control valve NG6 - Spool C6 | AD213: Elektromagnetventil NG6 - Schieber C6 | AE213: Distributeur électrique NG6 - Tiroir C6
A214: =CHOOSE(SEL_LANGUAGE,AB214,AC214,AD214,AE214) -> Elek. stuurschuif NG6 - Plunger D2 | B214: KREV03D2024C | C214: - | D214: KREV03D2012C | E214: KREV03D2024C | F214: KREV03D2230A | AB214: Elek. stuurschuif NG6 - Plunger D2 | AC214: Elec. control valve NG6 - Spool D2 | AD214: Elektromagnetventil NG6 - Schieber D2 | AE214: Distributeur électrique NG6 - Tiroir D2
A215: Handb. Stuurschuif NG6 - Plunger C6 | B215: KREV03C6LO | C215: - | AB215: Handb. Stuurschuif NG6 - Plunger C6 | AC215: Man. Control valve NG6 - Spool C6 | AD215: Handbetätigt ventil NG6 - Schieber C6 | AE215: Distributeur manuel NG6 - Tiroir C6
... 44 more rows

Sheet BOM (hidden)
E1: Mini-Power-Pack | G1: =MPP!F9 -> v2019.1 CE
E5: =TextPerLanguage(SEL_LANGUAGE,157) -> Stuklijst | F5: 2 | G5: - | H5: 15 | I5: 13 | J5: 14 | K5: 3 | L5: 4 | M5: 5 | N5: 7 | O5: =N5+1 -> 8 | P5: 9 | Q5: 10 | R5: 11 | S5: 12 | T5: 13
A7: Opmerking | B7: Cond. | C7: Db.Veld | D7: Db.Pos. | E7: =" "&TextPerLanguage(SEL_LANGUAGE,196) -> Materiaal | F7: =" "&TextPerLanguage(SEL_LANGUAGE,186) -> Omschrijving | G7: =TextPerLanguage(SEL_LANGUAGE,158)&" " -> Aantal | I7: Eenheid | J7: Magazijn | L7: Inb.Hoogte | M7: SP666 | N7: Type | O7: Eff.X | P7: Eff.Y1 | Q7: Eff.Y2 | R7: Eff.Z1 | S7: Eff.Z2 | T7: Extra.Info
A8: Tank | E8: -*
A9: Artikel 1 - Tank | C9: ARTIKEL1 | D9: =MATCH(C9,OFFSET(DBS_TANK,0,0,1,COLUMNS(DBS_TANK)),0) -> 2 | E9: =VLOOKUP(SEL_TANK,DBS_TANK,D9,FALSE) -> MPPT005 | F9: =VLOOKUP(E9,DBS_PARTLIST,$F$5,FALSE) -> Stalen tank 5 liter | G9: 1 | I9: =VLOOKUP($E9,DBS_PARTLIST,$I$5,FALSE) -> EA | J9: =VLOOKUP($E9,DBS_PARTLIST,$J$5,FALSE) -> 300 | N9: =T(VLOOKUP($E9,DBS_PARTLIST,N$5,FALSE)) -> TB | O9: =VLOOKUP($E9,DBS_PARTLIST,O$5,FALSE) -> 295 | P9: 87 | Q9: 87 | R9: 108 | S9: 87 | T9: =VLOOKUP(SEL_TANK,DBS_TANK,MATCH("OpstellingVertHor",OFFSET(DBS_TANK,0,0,1,COLUMNS(DBS_TANK)),0),FALSE) -> H
A10: Artikel 2 - Montage-voet | C10: ARTIKEL2 | D10: 3 | E10: MPPBF | F10: Montagevoet | G10: 1 | I10: EA | J10: 300 | N10: =T(VLOOKUP($E10,DBS_PARTLIST,N$5,FALSE)) -> FE | O10: 0 | P10: 0 | Q10: 0 | R10: 0 | S10: 48
A11: Artikel 3 - Koppeling | C11: ARTIKEL3 | D11: 4 | E11: - | G11: 1 | N11: =T(VLOOKUP($E11,DBS_PARTLIST,N$5,FALSE)) ->  | O11: 0 | P11: 0 | Q11: 0 | R11: 0 | S11: 0
A12: Artikel 4 - Anti-schuim filter | C12: ARTIKEL4 | D12: 5 | E12: - | G12: 1
A13: Artikel 5 - Aflaatstop | C13: ARTIKEL5 | D13: 6 | E13: - | G13: 1
A14: Artikel 6 - Tankvuldop | C14: ARTIKEL6 | D14: 7 | E14: - | G14: 1
A15: Pomp | E15: -*
A16: Artikel 1 - Pomp | C16: ARTIKEL1 | D16: =MATCH(C16,OFFSET(DBS_PUMP,0,0,1,COLUMNS(DBS_PUMP)),0) -> 2 | E16: =VLOOKUP(SEL_PUMP,DBS_PUMP,D16,FALSE) -> MPP32D | F16: =VLOOKUP(E16,DBS_PARTLIST,$F$5,FALSE) -> Pump 3.2 cc D gr.1 | G16: 1 | I16: =VLOOKUP($E16,DBS_PARTLIST,$I$5,FALSE) -> EA | J16: =VLOOKUP($E16,DBS_PARTLIST,$J$5,FALSE) -> 300 | N16: =T(VLOOKUP($E16,DBS_PARTLIST,N$5,FALSE)) ->  | O16: =VLOOKUP($E16,DBS_PARTLIST,O$5,FALSE) -> 0 | P16: 0 | Q16: 0 | R16: 0 | S16: 0
A17: Artikel 2 - Pomp-adapter | C17: ARTIKEL2 | D17: =MATCH(C17,OFFSET(DBS_PUMP,0,0,1,COLUMNS(DBS_PUMP)),0) -> 3 | E17: =VLOOKUP(SEL_PUMP,DBS_PUMP,D17,FALSE) -> - | F17: =VLOOKUP(E17,DBS_PARTLIST,$F$5,FALSE) ->  | G17: 1 | I17: =VLOOKUP($E17,DBS_PARTLIST,$I$5,FALSE) ->  | J17: =VLOOKUP($E17,DBS_PARTLIST,$J$5,FALSE) ->  | N17: =T(VLOOKUP($E17,DBS_PARTLIST,N$5,FALSE)) ->  | O17: 0 | P17: 0 | Q17: 0 | R17: 0 | S17: 0
A18: Electromotor | E18: -*
A19: Artikel 1 - (Elektro)motor | C19: ARTIKEL1 | D19: =MATCH(C19,OFFSET(DBS_MOTOR,0,0,1,COLUMNS(DBS_MOTOR)),0) -> 2 | E19: =VLOOKUP(SEL_MOTOR,DBS_MOTOR,D19,FALSE) -> MPPDCM24V2100N | F19: =VLOOKUP(E19,DBS_PARTLIST,$F$5,FALSE) -> DC-motor 24VDC 2100W incl. relais | G19: 1 | I19: =VLOOKUP($E19,DBS_PARTLIST,$I$5,FALSE) -> EA | J19: =VLOOKUP($E19,DBS_PARTLIST,$J$5,FALSE) -> 300 | N19: =T(VLOOKUP($E19,DBS_PARTLIST,N$5,FALSE)) -> EB | O19: =VLOOKUP($E19,DBS_PARTLIST,O$5,FALSE) -> 201 | P19: 56 | Q19: 118 | R19: 56 | S19: 56
A20: Artikel 2 | C20: ARTIKEL2 | D20: =MATCH(C20,OFFSET(DBS_MOTOR,0,0,1,COLUMNS(DBS_MOTOR)),0) -> 3 | E20: MPPDCMC2200 | F20: DC-motor koppeling 2200 W | G20: 1 | I20: EA | J20: 300 | N20: =T(VLOOKUP($E20,DBS_PARTLIST,N$5,FALSE)) ->  | O20: 0 | P20: 0 | Q20: 0 | R20: 0 | S20: 0
A21: Artikel 3 | C21: ARTIKEL3 | D21: 4 | E21: - | G21: 1 | O21: 0 | P21: 0 | Q21: 0 | R21: 0 | S21: 0
A22: Artikel 4 | C22: ARTIKEL4 | D22: 5 | E22: - | G22: 1 | O22: 0 | P22: 0 | Q22: 0 | R22: 0 | S22: 0
A23: Artikel 5 | C23: ARTIKEL5 | D23: 6 | E23: - | G23: 1 | O23: 0 | P23: 0 | Q23: 0 | R23: 0 | S23: 0
A24: Artikel 6 | C24: ARTIKEL6 | D24: 7 | E24: - | G24: 1 | O24: 0 | P24: 0 | Q24: 0 | R24: 0 | S24: 0
A25: Artikel 7 | C25: ARTIKEL7 | D25: 8 | E25: - | G25: 1 | N25: =T(VLOOKUP($E25,DBS_PARTLIST,N$5,FALSE)) ->  | O25: 0 | P25: 0 | Q25: 0 | R25: 0 | S25: 0
A26: Artikel 8 | C26: ARTIKEL8 | D26: =MATCH(C26,OFFSET(DBS_MOTOR,0,0,1,COLUMNS(DBS_MOTOR)),0) -> 9 | E26: - | G26: =VLOOKUP(SEL_MOTOR,DBS_MOTOR,MATCH("ARTIKEL8.Aantal",OFFSET(DBS_MOTOR,0,0,1,COLUMNS(DBS_MOTOR)),0),FALSE) -> 0 | N26: =T(VLOOKUP($E26,DBS_PARTLIST,N$5,FALSE)) ->  | O26: 0 | P26: 0 | Q26: 0 | R26: 0 | S26: 0
A27: Lantaarnstuk (handm. sel. indien geen elektr. motor) | E27: -*
A28: Artikel 1 | C28: ARTIKEL1 | D28: =MATCH(C28,OFFSET(DBS_BELL_HOUSING,0,0,1,COLUMNS(DBS_BELL_HOUSING)),0) -> 2 | E28: =TableSearch(DBS_BELL_HOUSING,SEL_BELL_HOUSING,C28,"-") -> - | F28: =VLOOKUP(E28,DBS_PARTLIST,$F$5,FALSE) ->  | G28: 1 | I28: =VLOOKUP($E28,DBS_PARTLIST,$I$5,FALSE) ->  | J28: =VLOOKUP($E28,DBS_PARTLIST,$J$5,FALSE) ->  | N28: =T(VLOOKUP($E28,DBS_PARTLIST,N$5,FALSE)) ->  | O28: =VLOOKUP($E28,DBS_PARTLIST,O$5,FALSE) -> 0 | P28: 0 | Q28: 0 | R28: 0 | S28: 0
A29: Artikel 2 | C29: ARTIKEL2 | D29: =MATCH(C29,OFFSET(DBS_BELL_HOUSING,0,0,1,COLUMNS(DBS_BELL_HOUSING)),0) -> 3 | E29: =TableSearch(DBS_BELL_HOUSING,SEL_BELL_HOUSING,C29,"-") -> - | F29: =VLOOKUP(E29,DBS_PARTLIST,$F$5,FALSE) ->  | G29: 1 | I29: =VLOOKUP($E29,DBS_PARTLIST,$I$5,FALSE) ->  | J29: =VLOOKUP($E29,DBS_PARTLIST,$J$5,FALSE) ->  | O29: 0 | P29: 0 | Q29: 0 | R29: 0 | S29: 0
A30: Artikel 3 | C30: ARTIKEL3 | D30: =MATCH(C30,OFFSET(DBS_BELL_HOUSING,0,0,1,COLUMNS(DBS_BELL_HOUSING)),0) -> 4 | E30: =TableSearch(DBS_BELL_HOUSING,SEL_BELL_HOUSING,C30,"-") -> - | F30: =VLOOKUP(E30,DBS_PARTLIST,$F$5,FALSE) ->  | G30: 1 | I30: =VLOOKUP($E30,DBS_PARTLIST,$I$5,FALSE) ->  | J30: =VLOOKUP($E30,DBS_PARTLIST,$J$5,FALSE) ->  | O30: 0 | P30: 0 | Q30: 0 | R30: 0 | S30: 0
A31: Overige | E31: -*
A32: Centrale flens | C32: <Fixed> | E32: =IF(LEFT(SEL_MOUNTING,2)="FC","MPPIFC",IF(LEFT(SEL_CHOICE_4,1)="A","MPPIFA1","MPPIFB1")) -> MPPIFA1 | F32: =VLOOKUP(E32,DBS_PARTLIST,$F$5,FALSE) -> Centraleflens (3 keuzes) | G32: 1 | I32: =VLOOKUP($E32,DBS_PARTLIST,$I$5,FALSE) -> EA | J32: =VLOOKUP($E32,DBS_PARTLIST,$J$5,FALSE) -> 300 | N32: =T(VLOOKUP($E32,DBS_PARTLIST,N$5,FALSE)) -> FB | O32: =VLOOKUP($E32,DBS_PARTLIST,O$5,FALSE) -> 40 | P32: 66.5 | Q32: 66.5 | R32: 66.5 | S32: 66.5
A33: Zuigfilter | C33: <Fixed> | E33: MPPSF | F33: =VLOOKUP(E33,DBS_PARTLIST,$F$5,FALSE) -> Zuigfilter d.60mm 250 micr3/8" | G33: 1 | I33: =VLOOKUP($E33,DBS_PARTLIST,$I$5,FALSE) -> EA | J33: =VLOOKUP($E33,DBS_PARTLIST,$J$5,FALSE) -> 300 | N33: =T(VLOOKUP($E33,DBS_PARTLIST,N$5,FALSE)) ->  | O33: 0 | P33: 0 | Q33: 0 | R33: 0 | S33: 0
A34: Keuze 1 t/m Keuze 5 | E34: -*
A35: Keuze 1 - Artikel 1 | C35: ARTIKEL1 | D35: =MATCH(C35,OFFSET(DBS_CHOICE_1,0,0,1,COLUMNS(DBS_CHOICE_1)),0) -> 2 | E35: =VLOOKUP(SEL_CHOICE_1,DBS_CHOICE_1,D35,FALSE) -> MPPRVC | F35: =IF(LEFT(E35,1)="-","",VLOOKUP(E35,DBS_PARTLIST,$F$5,FALSE)&" <"&LOWER(TextPerLanguage(SEL_LANGUAGE,14))&" 1>") -> Veiligheid 25-250 bar <keuze 1> | G35: 1 | I35: =VLOOKUP($E35,DBS_PARTLIST,$I$5,FALSE) -> EA | J35: =VLOOKUP($E35,DBS_PARTLIST,$J$5,FALSE) -> 300 | N35: =T(VLOOKUP($E35,DBS_PARTLIST,N$5,FALSE)) -> FE | O35: =VLOOKUP($E35,DBS_PARTLIST,O$5,FALSE) -> 0 | P35: 50 | Q35: 0 | R35: 0 | S35: 0
A36: Keuze 2 - Artikel 1 | C36: ARTIKEL1 | D36: =MATCH(C36,OFFSET(DBS_CHOICE_2,0,0,1,COLUMNS(DBS_CHOICE_2)),0) -> 2 | E36: =VLOOKUP(SEL_CHOICE_2,DBS_CHOICE_2,D36,FALSE) -> MPPCV | F36: =IF(LEFT(E36,1)="-","",VLOOKUP(E36,DBS_PARTLIST,$F$5,FALSE)&" <"&LOWER(TextPerLanguage(SEL_LANGUAGE,14))&" 2>") -> Terugslagklep <keuze 2> | G36: 1 | I36: EA | J36: 300 | N36: FE | O36: 0 | P36: 0 | Q36: 0 | R36: 0 | S36: 0
A37: Keuze 2 - Artikel 2 | C37: ARTIKEL2 | D37: =MATCH(C37,OFFSET(DBS_CHOICE_2,0,0,1,COLUMNS(DBS_CHOICE_2)),0) -> 3 | E37: =VLOOKUP(SEL_CHOICE_2,DBS_CHOICE_2,D37,FALSE) -> - | F37: =IF(LEFT(E37,1)="-","",VLOOKUP(E37,DBS_PARTLIST,$F$5,FALSE)&" <"&LOWER(TextPerLanguage(SEL_LANGUAGE,14))&" 2>") ->  | G37: 1 | O37: 0 | P37: 0 | Q37: 0 | R37: 0 | S37: 0
A38: Keuze 3 - Artikel 1 | B38: =LEFT(SEL_MOUNTING,2)<>"FC" -> TRUE | C38: ARTIKEL1 | D38: =MATCH(C38,OFFSET(DBS_CHOICE_3,0,0,1,COLUMNS(DBS_CHOICE_3)),0) -> 2 | E38: =IF(B38,VLOOKUP(SEL_CHOICE_3,DBS_CHOICE_3,D38,FALSE),"-") -> MPPPSAE82 | F38: =IF(LEFT(E38,1)="-","",VLOOKUP(E38,DBS_PARTLIST,$F$5,FALSE)&" <"&LOWER(TextPerLanguage(SEL_LANGUAGE,14))&" 3>") -> Cavityplug SAE 8-2 <keuze 3> | G38: 1 | I38: EA | J38: 300 | M38: =VLOOKUP(E38,DBS_PARTLIST,$M$5,FALSE) -> 0 | O38: 0 | P38: 0 | Q38: 0 | R38: 0 | S38: 0
A39: Keuze 3 - Artikel 2 | B39: =LEFT(SEL_MOUNTING,2)<>"FC" -> TRUE | C39: ARTIKEL2 | D39: =MATCH(C39,OFFSET(DBS_CHOICE_3,0,0,1,COLUMNS(DBS_CHOICE_3)),0) -> 3 | E39: =IF(B39,VLOOKUP(SEL_CHOICE_3,DBS_CHOICE_3,D39,FALSE),"-") -> - | G39: 1 | M39: =VLOOKUP(E39,DBS_PARTLIST,$M$5,FALSE) -> 0 | O39: 0 | P39: 0 | Q39: 0 | R39: 0 | S39: 0
A40: Keuze 3 - Artikel 1 (FC flens) | B40: =LEFT(SEL_MOUNTING,2)="FC" -> FALSE | C40: ARTIKEL1 | D40: =MATCH(C40,OFFSET(DBS_CHOICE_3_FC,0,0,1,COLUMNS(DBS_CHOICE_3_FC)),0) -> 2 | E40: =IF(B40,VLOOKUP(SEL_CHOICE_3_FC,DBS_CHOICE_3_FC,D40,FALSE),"-") -> - | G40: 1 | M40: =VLOOKUP(E40,DBS_PARTLIST,$M$5,FALSE) -> 0 | O40: 0 | P40: 0 | Q40: 0 | R40: 0 | S40: 0
A41: Keuze 3 - Artikel 2 (FC flens) | B41: =LEFT(SEL_MOUNTING,2)="FC" -> FALSE | C41: ARTIKEL2 | D41: =MATCH(C41,OFFSET(DBS_CHOICE_3_FC,0,0,1,COLUMNS(DBS_CHOICE_3_FC)),0) -> 3 | E41: =IF(B41,VLOOKUP(SEL_CHOICE_3_FC,DBS_CHOICE_3_FC,D41,FALSE),"-") -> - | G41: 1 | M41: =VLOOKUP(E41,DBS_PARTLIST,$M$5,FALSE) -> 0 | O41: 0 | P41: 0 | Q41: 0 | R41: 0 | S41: 0
A42: Keuze 3 - Artikel 3 (FC flens) | B42: =LEFT(SEL_MOUNTING,2)="FC" -> FALSE | C42: ARTIKEL3 | D42: =MATCH(C42,OFFSET(DBS_CHOICE_3_FC,0,0,1,COLUMNS(DBS_CHOICE_3_FC)),0) -> 4 | E42: =IF(B42,VLOOKUP(SEL_CHOICE_3_FC,DBS_CHOICE_3_FC,D42,FALSE),"-") -> - | G42: 2 | M42: =VLOOKUP(E42,DBS_PARTLIST,$M$5,FALSE) -> 0
A43: Keuze 3 - Artikel 4 (FC flens) | B43: =LEFT(SEL_MOUNTING,2)="FC" -> FALSE | C43: ARTIKEL4 | D43: =MATCH(C43,OFFSET(DBS_CHOICE_3_FC,0,0,1,COLUMNS(DBS_CHOICE_3_FC)),0) -> 5 | E43: =IF(B43,VLOOKUP(SEL_CHOICE_3_FC,DBS_CHOICE_3_FC,D43,FALSE),"-") -> - | G43: =SUM(M40:M42) -> 0
A44: Keuze 4 - Artikel 1 | B44: =OR(LEFT(SEL_CHOICE_4,1)<>"A",LEFT(SEL_MOUNTING,2)="FC") -> FALSE | C44: ARTIKEL1 | D44: =MATCH(C44,OFFSET(DBS_CHOICE_4,0,0,1,COLUMNS(DBS_CHOICE_4)),0) -> 2 | E44: =IF(B44,VLOOKUP(SEL_CHOICE_4,DBS_CHOICE_4,D44,FALSE),"-") -> - | F44: =IF(LEFT(E44,1)="-","",VLOOKUP(E44,DBS_PARTLIST,$F$5,FALSE)&" <"&LOWER(TextPerLanguage(SEL_LANGUAGE,14))&" 4>") ->  | G44: 1 | O44: 0 | P44: 0 | Q44: 0 | R44: 0 | S44: 0
A45: Keuze 4 - Artikel 2 | B45: =LEFT(SEL_CHOICE_4,1)<>"A" -> FALSE | C45: ARTIKEL2 | D45: =MATCH(C45,OFFSET(DBS_CHOICE_4,0,0,1,COLUMNS(DBS_CHOICE_4)),0) -> 3 | E45: =IF(B45,VLOOKUP(SEL_CHOICE_4,DBS_CHOICE_4,D45,FALSE),"-") -> - | F45: =IF(LEFT(E45,1)="-","",VLOOKUP(E45,DBS_PARTLIST,$F$5,FALSE)&" <"&LOWER(TextPerLanguage(SEL_LANGUAGE,14))&" 4>") ->  | G45: 1 | O45: 0 | P45: 0 | Q45: 0 | R45: 0 | S45: 0
A46: Keuze 5 - Artikel 1 | B46: =AND(LEFT(SEL_CHOICE_4,1)<>"A",LEFT(SEL_MOUNTING,2)<>"FC") -> FALSE | C46: ARTIKEL1 | D46: =MATCH(C46,OFFSET(DBS_CHOICE_5,0,0,1,COLUMNS(DBS_CHOICE_5)),0) -> 2 | E46: =IF(B46,VLOOKUP(SEL_CHOICE_5,DBS_CHOICE_5,D46,FALSE),"-") -> - | F46: =IF(LEFT(E46,1)="-","",VLOOKUP(E46,DBS_PARTLIST,$F$5,FALSE)&" <"&LOWER(TextPerLanguage(SEL_LANGUAGE,14))&" 5>") ->  | G46: 1 | O46: 0 | P46: 0 | Q46: 0 | R46: 0 | S46: 0
A47: Keuze 5 - Artikel 2 | B47: =AND(LEFT(SEL_CHOICE_4,1)<>"A",LEFT(SEL_MOUNTING,2)<>"FC") -> FALSE | C47: ARTIKEL2 | D47: =MATCH(C47,OFFSET(DBS_CHOICE_5,0,0,1,COLUMNS(DBS_CHOICE_5)),0) -> 3 | E47: =IF(B47,VLOOKUP(SEL_CHOICE_5,DBS_CHOICE_5,D47,FALSE),"-") -> - | F47: =IF(LEFT(E47,1)="-","",VLOOKUP(E47,DBS_PARTLIST,$F$5,FALSE)&" <"&LOWER(TextPerLanguage(SEL_LANGUAGE,14))&" 5>") ->  | G47: 1 | O47: 0 | P47: 0 | Q47: 0 | R47: 0 | S47: 0
A48: Manometer & Afstandsbediening | E48: -*
A49: Manometer - Artikel 1 | C49: ARTIKEL1 | D49: =MATCH(C49,OFFSET(DBS_GAUGE,0,0,1,COLUMNS(DBS_GAUGE)),0) -> 2 | E49: =VLOOKUP(SEL_GAUGE,DBS_GAUGE,D49,FALSE) -> - | F49: =VLOOKUP(E49,DBS_PARTLIST,$F$5,FALSE) ->  | G49: 1 | I49: =VLOOKUP($E49,DBS_PARTLIST,$I$5,FALSE) ->  | J49: =VLOOKUP($E49,DBS_PARTLIST,$J$5,FALSE) ->  | N49: =T(VLOOKUP($E49,DBS_PARTLIST,N$5,FALSE)) ->  | O49: =VLOOKUP($E49,DBS_PARTLIST,O$5,FALSE) -> 0 | P49: 0 | Q49: 0 | R49: 0 | S49: 0
A50: EM18090 | B50: =E49<>"-" -> FALSE | C50: <Fixed> | E50: =IF(B50,"EM18090","-") -> - | F50: =VLOOKUP(E50,DBS_PARTLIST,$F$5,FALSE) ->  | G50: 1 | I50: =VLOOKUP($E50,DBS_PARTLIST,$I$5,FALSE) ->  | J50: =VLOOKUP($E50,DBS_PARTLIST,$J$5,FALSE) ->  | N50: =T(VLOOKUP($E50,DBS_PARTLIST,N$5,FALSE)) ->  | O50: 0 | P50: 0 | Q50: 0 | R50: 0 | S50: 0
A51: Afstandsbediening - Artikel 1 | C51: ARTIKEL1 | D51: =MATCH(C51,OFFSET(DBS_REMOTE_CONTROL,0,0,1,COLUMNS(DBS_REMOTE_CONTROL)),0) -> 2 | E51: =VLOOKUP(SEL_REMOTE_CONTROL,DBS_REMOTE_CONTROL,D51,FALSE) -> - | F51: =VLOOKUP(E51,DBS_PARTLIST,$F$5,FALSE) ->  | G51: 1 | I51: =VLOOKUP($E51,DBS_PARTLIST,$I$5,FALSE) ->  | J51: =VLOOKUP($E51,DBS_PARTLIST,$J$5,FALSE) ->  | N51: =T(VLOOKUP($E51,DBS_PARTLIST,N$5,FALSE)) ->  | O51: 0 | P51: 0 | Q51: 0 | R51: 0 | S51: 0
A52: Cetop02 | E52: -*
A53: Cetop02 - Artikel 1 (basis) | B53: =LEFT(SEL_MOUNTING,2)="C2" -> FALSE | E53: =IF(B53,Cetop02!A2,"-") -> - | F53: =VLOOKUP(E53,DBS_PARTLIST,$F$5,FALSE) ->  | G53: =IF(LEFT(SEL_MOUNTING,2)="C2",Cetop02!B2,0) -> 0 | I53: =VLOOKUP($E53,DBS_PARTLIST,$I$5,FALSE) ->  | J53: =VLOOKUP($E53,DBS_PARTLIST,$J$5,FALSE) ->  | N53: =T(VLOOKUP($E53,DBS_PARTLIST,N$5,FALSE)) ->  | O53: =VLOOKUP($E53,DBS_PARTLIST,O$5,FALSE) -> 0 | P53: 0 | Q53: 0 | R53: 0 | S53: 0
A54: Cetop02 - Artikel 2 | B54: FALSE | E54: =IF(B54,Cetop02!A3,"-") -> - | G54: =IF(LEFT(SEL_MOUNTING,2)="C2",Cetop02!B3,0) -> 0 | M54: =VLOOKUP(E54,DBS_PARTLIST,$M$5,FALSE)*G54 -> 0 | O54: 0 | P54: 0 | Q54: 0 | R54: 0 | S54: 0 | T54: 1
A55: Cetop02 - Artikel 3 | B55: FALSE | E55: =IF(B55,Cetop02!A4,"-") -> - | G55: =IF(LEFT(SEL_MOUNTING,2)="C2",Cetop02!B4,0) -> 0 | M55: 0 | O55: 0 | P55: 0 | Q55: 0 | R55: 0 | S55: 0 | T55: 1
A56: Cetop02 - Artikel 4 | B56: FALSE | E56: =IF(B56,Cetop02!A5,"-") -> - | G56: =IF(LEFT(SEL_MOUNTING,2)="C2",Cetop02!B5,0) -> 0 | M56: 0 | O56: 0 | P56: 0 | Q56: 0 | R56: 0 | S56: 0 | T56: 1
A57: Cetop02 - Artikel 5 | B57: FALSE | E57: =IF(B57,Cetop02!A6,"-") -> - | G57: =IF(LEFT(SEL_MOUNTING,2)="C2",Cetop02!B6,0) -> 0 | M57: 0 | O57: 0 | P57: 0 | Q57: 0 | R57: 0 | S57: 0 | T57: 1
A58: Cetop02 - Artikel 6 | B58: FALSE | E58: =IF(B58,Cetop02!A7,"-") -> - | G58: =IF(LEFT(SEL_MOUNTING,2)="C2",Cetop02!B7,0) -> 0 | M58: 0 | O58: 0 | P58: 0 | Q58: 0 | R58: 0 | S58: 0 | T58: 1
A59: Cetop02 - Artikel 7 | B59: FALSE | E59: =IF(B59,Cetop02!A8,"-") -> - | G59: =IF(LEFT(SEL_MOUNTING,2)="C2",Cetop02!B8,0) -> 0 | M59: 0 | O59: 0 | P59: 0 | Q59: 0 | R59: 0 | S59: 0 | T59: 1
A60: Cetop02 - Artikel 8 | B60: FALSE | E60: =IF(B60,Cetop02!A9,"-") -> - | G60: =IF(LEFT(SEL_MOUNTING,2)="C2",Cetop02!B9,0) -> 0 | M60: 0 | O60: 0 | P60: 0 | Q60: 0 | R60: 0 | S60: 0 | T60: 1
A61: Cetop02 - Artikel 9 | B61: FALSE | E61: =IF(B61,Cetop02!A10,"-") -> - | G61: =IF(LEFT(SEL_MOUNTING,2)="C2",Cetop02!B10,0) -> 0 | M61: 0 | O61: 0 | P61: 0 | Q61: 0 | R61: 0 | S61: 0 | T61: 1
A62: Cetop02 - Artikel 10 | B62: FALSE | E62: =IF(B62,Cetop02!A11,"-") -> - | G62: =IF(LEFT(SEL_MOUNTING,2)="C2",Cetop02!B11,0) -> 0 | M62: 0 | O62: 0 | P62: 0 | Q62: 0 | R62: 0 | S62: 0 | T62: 1
A63: Cetop02 - Artikel 11 | B63: FALSE | E63: =IF(B63,Cetop02!A12,"-") -> - | G63: =IF(LEFT(SEL_MOUNTING,2)="C2",Cetop02!B12,0) -> 0 | M63: 0 | O63: 0 | P63: 0 | Q63: 0 | R63: 0 | S63: 0 | T63: 1
A64: Cetop02 - Artikel 12 | B64: FALSE | E64: =IF(B64,Cetop02!A13,"-") -> - | G64: =IF(LEFT(SEL_MOUNTING,2)="C2",Cetop02!B13,0) -> 0 | M64: 0 | O64: 0 | P64: 0 | Q64: 0 | R64: 0 | S64: 0 | T64: 1
A65: Cetop02 - Artikel 13 | B65: FALSE | E65: =IF(B65,Cetop02!A14,"-") -> - | G65: =IF(LEFT(SEL_MOUNTING,2)="C2",Cetop02!B14,0) -> 0 | M65: 0 | O65: 0 | P65: 0 | Q65: 0 | R65: 0 | S65: 0 | T65: 1
A66: Cetop02 - Artikel 14 - spoel(en) | B66: FALSE | E66: =IF(B66,Cetop02!A15,"-") -> - | G66: =IF(LEFT(SEL_MOUNTING,2)="C2",SUM(M54:M65,0),0) -> 0 | O66: 0 | P66: 0 | Q66: 0 | R66: 0 | S66: 0
A67: Opbouwbasis | E67: -*
A68: Artikel 1 | C68: ARTIKEL1 | D68: =MATCH(C68,OFFSET(DBS_MOUNTING,0,0,1,COLUMNS(DBS_MOUNTING)),0) -> 2 | E68: =VLOOKUP(SEL_MOUNTING,DBS_MOUNTING,D68,FALSE) -> - | F68: =VLOOKUP(E68,DBS_PARTLIST,$F$5,FALSE) ->  | G68: 1 | I68: =VLOOKUP($E68,DBS_PARTLIST,$I$5,FALSE) ->  | J68: =VLOOKUP($E68,DBS_PARTLIST,$J$5,FALSE) ->  | M68: =VLOOKUP(E68,DBS_PARTLIST,$M$5,FALSE) -> 0 | N68: =T(VLOOKUP($E68,DBS_PARTLIST,N$5,FALSE)) ->  | O68: =VLOOKUP($E68,DBS_PARTLIST,O$5,FALSE) -> 0 | P68: 0 | Q68: 0 | R68: 0 | S68: 0
A69: Artikel 2 | C69: ARTIKEL2 | D69: =MATCH(C69,OFFSET(DBS_MOUNTING,0,0,1,COLUMNS(DBS_MOUNTING)),0) -> 3 | E69: =VLOOKUP(SEL_MOUNTING,DBS_MOUNTING,D69,FALSE) -> - | F69: =VLOOKUP(E69,DBS_PARTLIST,$F$5,FALSE) ->  | G69: 1 | I69: =VLOOKUP($E69,DBS_PARTLIST,$I$5,FALSE) ->  | J69: =VLOOKUP($E69,DBS_PARTLIST,$J$5,FALSE) ->  | M69: =VLOOKUP(E69,DBS_PARTLIST,$M$5,FALSE) -> 0 | N69: =T(VLOOKUP($E69,DBS_PARTLIST,N$5,FALSE)) ->  | O69: 0 | P69: 0 | Q69: 0 | R69: 0 | S69: 0
A70: Artikel 3 | C70: ARTIKEL3 | D70: =MATCH(C70,OFFSET(DBS_MOUNTING,0,0,1,COLUMNS(DBS_MOUNTING)),0) -> 4 | E70: =IF(SYS_INCLUDE_BOLTS,VLOOKUP(SEL_MOUNTING,DBS_MOUNTING,D70,FALSE),"-") -> - | F70: =VLOOKUP(E70,DBS_PARTLIST,$F$5,FALSE) ->  | G70: 2 | I70: =VLOOKUP($E70,DBS_PARTLIST,$I$5,FALSE) ->  | J70: =VLOOKUP($E70,DBS_PARTLIST,$J$5,FALSE) ->  | M70: =VLOOKUP(E70,DBS_PARTLIST,$M$5,FALSE) -> 0 | N70: =T(VLOOKUP($E70,DBS_PARTLIST,N$5,FALSE)) ->  | O70: 0 | P70: 0 | Q70: 0 | R70: 0 | S70: 0
A71: Artikel 4 | C71: ARTIKEL4 | D71: =MATCH(C71,OFFSET(DBS_MOUNTING,0,0,1,COLUMNS(DBS_MOUNTING)),0) -> 5 | E71: =IF(G71=0,"-",VLOOKUP(SEL_MOUNTING,DBS_MOUNTING,D71,FALSE)) -> VSR04WD | F71: =VLOOKUP(E71,DBS_PARTLIST,$F$5,FALSE) -> Afsluitplug inbus VSR 1/4 BSP | G71: =TableSearch(DBS_MOUNTING,SEL_MOUNTING,"Aantal4") -> 1 | I71: =VLOOKUP($E71,DBS_PARTLIST,$I$5,FALSE) -> EA | J71: =VLOOKUP($E71,DBS_PARTLIST,$J$5,FALSE) -> 300 | N71: =T(VLOOKUP($E71,DBS_PARTLIST,N$5,FALSE)) ->  | O71: 0 | P71: 0 | Q71: 0 | R71: 0 | S71: 0
A72: Opbouw.1 | E72: -*
A73: Opbouw 1 - Stuurschuif | B73: =AND(SEL_MOUNT_COUNT>=1,TRIM(SEL_SECT1_VALVE)<>"") -> FALSE | C73: ARTIKEL1 | D73: =MATCH(C73,OFFSET(DBS_VALVE,0,0,1,COLUMNS(DBS_VALVE)),0) -> 2 | E73: =IF(B73,VLOOKUP(SEL_SECT1_VALVE,DBS_VALVE,D73,FALSE),"-") -> - | F73: =VLOOKUP(E73,DBS_PARTLIST,$F$5,FALSE) ->  | G73: 1 | I73: =VLOOKUP($E73,DBS_PARTLIST,$I$5,FALSE) ->  | J73: =VLOOKUP($E73,DBS_PARTLIST,$J$5,FALSE) ->  | L73: =VLOOKUP(E73,DBS_PARTLIST,$L$5,FALSE) -> 0 | M73: =VLOOKUP(E73,DBS_PARTLIST,$M$5,FALSE) -> 0 | N73: =T(VLOOKUP($E73,DBS_PARTLIST,N$5,FALSE)) ->  | O73: =VLOOKUP($E73,DBS_PARTLIST,O$5,FALSE) -> 0 | P73: 0 | Q73: 0 | R73: 0 | S73: 0 | T73: 1
A74: Opbouw 1 - Onderbouw 1 - Artikel 1 | B74: =AND(SEL_MOUNT_COUNT>=1,TRIM(SEL_SECT1_FUNCT1)<>"") -> FALSE | C74: ARTIKEL1 | D74: =MATCH(C74,OFFSET(DBS_VALVE_MOD,0,0,1,COLUMNS(DBS_VALVE_MOD)),0) -> 2 | E74: =IF(B74,VLOOKUP(SEL_SECT1_FUNCT1,DBS_VALVE_MOD,D74,FALSE),"-") -> - | G74: 1 | L74: 0 | O74: 0 | P74: 0 | Q74: 0 | R74: 0 | S74: 0 | T74: 1
A75: Opbouw 1 - Onderbouw 1 - Artikel 2 | B75: =AND(SEL_MOUNT_COUNT>=1,TRIM(SEL_SECT1_FUNCT1)<>"") -> FALSE | C75: ARTIKEL2 | D75: =MATCH(C75,OFFSET(DBS_VALVE_MOD,0,0,1,COLUMNS(DBS_VALVE_MOD)),0) -> 3 | E75: =IF(B75,VLOOKUP(SEL_SECT1_FUNCT1,DBS_VALVE_MOD,D75,FALSE),"-") -> - | G75: 1 | L75: 0 | O75: 0 | P75: 0 | Q75: 0 | R75: 0 | S75: 0 | T75: 1
A76: Opbouw 1 - Onderbouw 2 - Artikel 1 | B76: =AND(SEL_MOUNT_COUNT>=1,TRIM(SEL_SECT1_FUNCT2)<>"") -> FALSE | D76: =D74 -> 2 | E76: =IF(B76,VLOOKUP(SEL_SECT1_FUNCT2,DBS_VALVE_MOD,D76,FALSE),"-") -> - | G76: 1 | L76: 0 | O76: 0 | P76: 0 | Q76: 0 | R76: 0 | S76: 0 | T76: 1
A77: Opbouw 1 - Onderbouw 2 - Artikel 2 | B77: =AND(SEL_MOUNT_COUNT>=1,TRIM(SEL_SECT1_FUNCT2)<>"") -> FALSE | D77: =D75 -> 3 | E77: =IF(B77,VLOOKUP(SEL_SECT1_FUNCT2,DBS_VALVE_MOD,D77,FALSE),"-") -> - | G77: 1 | L77: 0 | O77: 0 | P77: 0 | Q77: 0 | R77: 0 | S77: 0 | T77: 1
A78: Opbouw 1 - Onderbouw 3 - Artikel 1 | B78: =AND(SEL_MOUNT_COUNT>=1,TRIM(SEL_SECT1_FUNCT3)<>"") -> FALSE | D78: =D74 -> 2 | E78: =IF(B78,VLOOKUP(SEL_SECT1_FUNCT3,DBS_VALVE_MOD,D78,FALSE),"-") -> - | G78: 1 | L78: 0 | O78: 0 | P78: 0 | Q78: 0 | R78: 0 | S78: 0 | T78: 1
A79: Opbouw 1 - Onderbouw 3 - Artikel 2 | B79: =AND(SEL_MOUNT_COUNT>=1,TRIM(SEL_SECT1_FUNCT3)<>"") -> FALSE | D79: =D75 -> 3 | E79: =IF(B79,VLOOKUP(SEL_SECT1_FUNCT3,DBS_VALVE_MOD,D79,FALSE),"-") -> - | G79: 1 | L79: 0 | O79: 0 | P79: 0 | Q79: 0 | R79: 0 | S79: 0 | T79: 1
A80: Afdekplaat | B80: =AND(LEFT(E73,1)<>"-",LEFT(E73,9)<>"KREV903DEK") -> FALSE | C80: <Fixed> | D80: =D74 -> 2 | E80: =IF(B80,"KREV95"&(SUM(L73:L80)),"-") -> - | G80: 1 | L80: =IF(SUM(L73:L78)>150,5,0) -> 0 | O80: 0 | P80: 0 | Q80: 0 | R80: 0 | S80: 0 | T80: 1
E81: -* | F81: Opbouw.2
A82: Opbouw 2 - Stuurschuif | B82: =AND(SEL_MOUNT_COUNT>=2,TRIM(SEL_SECT2_VALVE)<>"") -> FALSE | D82: =D73 -> 2 | E82: =IF(B82,VLOOKUP(SEL_SECT2_VALVE,DBS_VALVE,D82,FALSE),"-") -> - | F82: =VLOOKUP(E82,DBS_PARTLIST,$F$5,FALSE) ->  | G82: 1 | I82: =VLOOKUP($E82,DBS_PARTLIST,$I$5,FALSE) ->  | J82: =VLOOKUP($E82,DBS_PARTLIST,$J$5,FALSE) ->  | L82: =VLOOKUP(E82,DBS_PARTLIST,$L$5,FALSE) -> 0 | M82: =VLOOKUP(E82,DBS_PARTLIST,$M$5,FALSE) -> 0 | N82: =T(VLOOKUP($E82,DBS_PARTLIST,N$5,FALSE)) ->  | O82: =VLOOKUP($E82,DBS_PARTLIST,O$5,FALSE) -> 0 | P82: 0 | Q82: 0 | R82: 0 | S82: 0 | T82: 2
A83: Opbouw 2 - Onderbouw 1 - Artikel 1 | B83: =AND(SEL_MOUNT_COUNT>=2,TRIM(SEL_SECT2_FUNCT1)<>"") -> FALSE | D83: =D74 -> 2 | E83: =IF(B83,VLOOKUP(SEL_SECT2_FUNCT1,DBS_VALVE_MOD,D83,FALSE),"-") -> - | G83: 1 | L83: 0 | O83: 0 | P83: 0 | Q83: 0 | R83: 0 | S83: 0 | T83: 2
A84: Opbouw 2 - Onderbouw 1 - Artikel 2 | B84: =AND(SEL_MOUNT_COUNT>=2,TRIM(SEL_SECT2_FUNCT1)<>"") -> FALSE | D84: =D75 -> 3 | E84: =IF(B84,VLOOKUP(SEL_SECT2_FUNCT1,DBS_VALVE_MOD,D84,FALSE),"-") -> - | G84: 1 | L84: 0 | O84: 0 | P84: 0 | Q84: 0 | R84: 0 | S84: 0 | T84: 2
A85: Opbouw 2 - Onderbouw 2 - Artikel 1 | B85: =AND(SEL_MOUNT_COUNT>=2,TRIM(SEL_SECT2_FUNCT2)<>"") -> FALSE | D85: =D74 -> 2 | E85: =IF(B85,VLOOKUP(SEL_SECT2_FUNCT2,DBS_VALVE_MOD,D85,FALSE),"-") -> - | G85: 1 | L85: 0 | O85: 0 | P85: 0 | Q85: 0 | R85: 0 | S85: 0 | T85: 2
A86: Opbouw 2 - Onderbouw 2 - Artikel 2 | B86: =AND(SEL_MOUNT_COUNT>=2,TRIM(SEL_SECT2_FUNCT2)<>"") -> FALSE | D86: =D75 -> 3 | E86: =IF(B86,VLOOKUP(SEL_SECT2_FUNCT2,DBS_VALVE_MOD,D86,FALSE),"-") -> - | G86: 1 | L86: 0 | O86: 0 | P86: 0 | Q86: 0 | R86: 0 | S86: 0 | T86: 2
A87: Opbouw 2 - Onderbouw 3 - Artikel 1 | B87: =AND(SEL_MOUNT_COUNT>=2,TRIM(SEL_SECT2_FUNCT3)<>"") -> FALSE | D87: =D74 -> 2 | E87: =IF(B87,VLOOKUP(SEL_SECT2_FUNCT3,DBS_VALVE_MOD,D87,FALSE),"-") -> - | G87: 1 | L87: 0 | O87: 0 | P87: 0 | Q87: 0 | R87: 0 | S87: 0 | T87: 2
A88: Opbouw 2 - Onderbouw 3 - Artikel 2 | B88: =AND(SEL_MOUNT_COUNT>=2,TRIM(SEL_SECT2_FUNCT3)<>"") -> FALSE | D88: =D75 -> 3 | E88: =IF(B88,VLOOKUP(SEL_SECT2_FUNCT3,DBS_VALVE_MOD,D88,FALSE),"-") -> - | G88: 1 | L88: 0 | O88: 0 | P88: 0 | Q88: 0 | R88: 0 | S88: 0 | T88: 2
A89: Afdekplaat | B89: =AND(LEFT(E82,1)<>"-",LEFT(E82,9)<>"KREV903DEK") -> FALSE | C89: <Fixed> | D89: =D74 -> 2 | E89: =IF(B89,"KREV95"&(SUM(L82:L89)),"-") -> - | G89: 1 | L89: =IF(SUM(L82:L87)>150,5,0) -> 0 | O89: 0 | P89: 0 | Q89: 0 | R89: 0 | S89: 0 | T89: 2
E90: -* | F90: Opbouw.3
A91: Opbouw 3 - Stuurschuif | B91: =AND(SEL_MOUNT_COUNT>=3,TRIM(SEL_SECT3_VALVE)<>"") -> FALSE | D91: =D73 -> 2 | E91: =IF(B91,VLOOKUP(SEL_SECT3_VALVE,DBS_VALVE,D91,FALSE),"-") -> - | F91: =VLOOKUP(E91,DBS_PARTLIST,$F$5,FALSE) ->  | G91: 1 | I91: =VLOOKUP($E91,DBS_PARTLIST,$I$5,FALSE) ->  | J91: =VLOOKUP($E91,DBS_PARTLIST,$J$5,FALSE) ->  | L91: =VLOOKUP(E91,DBS_PARTLIST,$L$5,FALSE) -> 0 | M91: =VLOOKUP(E91,DBS_PARTLIST,$M$5,FALSE) -> 0 | N91: =T(VLOOKUP($E91,DBS_PARTLIST,N$5,FALSE)) ->  | O91: =VLOOKUP($E91,DBS_PARTLIST,O$5,FALSE) -> 0 | P91: 0 | Q91: 0 | R91: 0 | S91: 0 | T91: 3
A92: Opbouw 3 - Onderbouw 1 - Artikel 1 | B92: =AND(SEL_MOUNT_COUNT>=3,TRIM(SEL_SECT3_FUNCT1)<>"") -> FALSE | D92: =D74 -> 2 | E92: =IF(B92,VLOOKUP(SEL_SECT3_FUNCT1,DBS_VALVE_MOD,D92,FALSE),"-") -> - | G92: 1 | L92: 0 | O92: 0 | P92: 0 | Q92: 0 | R92: 0 | S92: 0 | T92: 3
A93: Opbouw 3 - Onderbouw 1 - Artikel 2 | B93: =AND(SEL_MOUNT_COUNT>=3,TRIM(SEL_SECT3_FUNCT1)<>"") -> FALSE | D93: =D75 -> 3 | E93: =IF(B93,VLOOKUP(SEL_SECT3_FUNCT1,DBS_VALVE_MOD,D93,FALSE),"-") -> - | G93: 1 | L93: 0 | O93: 0 | P93: 0 | Q93: 0 | R93: 0 | S93: 0 | T93: 3
A94: Opbouw 3 - Onderbouw 2 - Artikel 1 | B94: =AND(SEL_MOUNT_COUNT>=3,TRIM(SEL_SECT3_FUNCT2)<>"") -> FALSE | D94: =D74 -> 2 | E94: =IF(B94,VLOOKUP(SEL_SECT3_FUNCT2,DBS_VALVE_MOD,D94,FALSE),"-") -> - | G94: 1 | L94: 0 | O94: 0 | P94: 0 | Q94: 0 | R94: 0 | S94: 0 | T94: 3
A95: Opbouw 3 - Onderbouw 2 - Artikel 2 | B95: =AND(SEL_MOUNT_COUNT>=3,TRIM(SEL_SECT3_FUNCT2)<>"") -> FALSE | D95: =D75 -> 3 | E95: =IF(B95,VLOOKUP(SEL_SECT3_FUNCT2,DBS_VALVE_MOD,D95,FALSE),"-") -> - | G95: 1 | L95: 0 | O95: 0 | P95: 0 | Q95: 0 | R95: 0 | S95: 0 | T95: 3
A96: Opbouw 3 - Onderbouw 3 - Artikel 1 | B96: =AND(SEL_MOUNT_COUNT>=3,TRIM(SEL_SECT3_FUNCT3)<>"") -> FALSE | D96: =D74 -> 2 | E96: =IF(B96,VLOOKUP(SEL_SECT3_FUNCT3,DBS_VALVE_MOD,D96,FALSE),"-") -> - | G96: 1 | L96: 0 | O96: 0 | P96: 0 | Q96: 0 | R96: 0 | S96: 0 | T96: 3
A97: Opbouw 3 - Onderbouw 3 - Artikel 2 | B97: =AND(SEL_MOUNT_COUNT>=3,TRIM(SEL_SECT3_FUNCT3)<>"") -> FALSE | D97: =D75 -> 3 | E97: =IF(B97,VLOOKUP(SEL_SECT3_FUNCT3,DBS_VALVE_MOD,D97,FALSE),"-") -> - | G97: 1 | L97: 0 | O97: 0 | P97: 0 | Q97: 0 | R97: 0 | S97: 0 | T97: 3
A98: Afdekplaat | B98: =AND(LEFT(E91,1)<>"-",LEFT(E91,9)<>"KREV903DEK") -> FALSE | C98: <Fixed> | D98: =D74 -> 2 | E98: =IF(B98,"KREV95"&(SUM(L91:L98)),"-") -> - | G98: 1 | L98: =IF(SUM(L91:L96)>150,5,0) -> 0 | O98: 0 | P98: 0 | Q98: 0 | R98: 0 | S98: 0 | T98: 3
E99: -* | F99: Opbouw.4
A100: Opbouw 4 - Stuurschuif | B100: =AND(SEL_MOUNT_COUNT=4,TRIM(SEL_SECT4_VALVE)<>"") -> FALSE | D100: =D73 -> 2 | E100: =IF(B100,VLOOKUP(SEL_SECT4_VALVE,DBS_VALVE,D100,FALSE),"-") -> - | F100: =VLOOKUP(E100,DBS_PARTLIST,$F$5,FALSE) ->  | G100: 1 | I100: =VLOOKUP($E100,DBS_PARTLIST,$I$5,FALSE) ->  | J100: =VLOOKUP($E100,DBS_PARTLIST,$J$5,FALSE) ->  | L100: =VLOOKUP(E100,DBS_PARTLIST,$L$5,FALSE) -> 0 | M100: =VLOOKUP(E100,DBS_PARTLIST,$M$5,FALSE) -> 0 | N100: =T(VLOOKUP($E100,DBS_PARTLIST,N$5,FALSE)) ->  | O100: =VLOOKUP($E100,DBS_PARTLIST,O$5,FALSE) -> 0 | P100: 0 | Q100: 0 | R100: 0 | S100: 0 | T100: 4
A101: Opbouw 4 - Onderbouw 1 - Artikel 1 | B101: =AND(SEL_MOUNT_COUNT=4,TRIM(SEL_SECT4_FUNCT1)<>"") -> FALSE | D101: =D74 -> 2 | E101: =IF(B101,VLOOKUP(SEL_SECT4_FUNCT1,DBS_VALVE_MOD,D101,FALSE),"-") -> - | G101: 1 | L101: 0 | O101: 0 | P101: 0 | Q101: 0 | R101: 0 | S101: 0 | T101: 4
A102: Opbouw 4 - Onderbouw 1 - Artikel 2 | B102: =AND(SEL_MOUNT_COUNT=4,TRIM(SEL_SECT4_FUNCT1)<>"") -> FALSE | D102: =D75 -> 3 | E102: =IF(B102,VLOOKUP(SEL_SECT4_FUNCT1,DBS_VALVE_MOD,D102,FALSE),"-") -> - | G102: 1 | L102: 0 | O102: 0 | P102: 0 | Q102: 0 | R102: 0 | S102: 0 | T102: 4
A103: Opbouw 4 - Onderbouw 2 - Artikel 1 | B103: =AND(SEL_MOUNT_COUNT=4,TRIM(SEL_SECT4_FUNCT2)<>"") -> FALSE | D103: =D74 -> 2 | E103: =IF(B103,VLOOKUP(SEL_SECT4_FUNCT2,DBS_VALVE_MOD,D103,FALSE),"-") -> - | G103: 1 | L103: 0 | O103: 0 | P103: 0 | Q103: 0 | R103: 0 | S103: 0 | T103: 4
A104: Opbouw 4 - Onderbouw 2 - Artikel 2 | B104: =AND(SEL_MOUNT_COUNT=4,TRIM(SEL_SECT4_FUNCT2)<>"") -> FALSE | D104: =D75 -> 3 | E104: =IF(B104,VLOOKUP(SEL_SECT4_FUNCT2,DBS_VALVE_MOD,D104,FALSE),"-") -> - | G104: 1 | L104: 0 | O104: 0 | P104: 0 | Q104: 0 | R104: 0 | S104: 0 | T104: 4
A105: Opbouw 4 - Onderbouw 3 - Artikel 1 | B105: =AND(SEL_MOUNT_COUNT=4,TRIM(SEL_SECT4_FUNCT3)<>"") -> FALSE | D105: =D74 -> 2 | E105: =IF(B105,VLOOKUP(SEL_SECT4_FUNCT3,DBS_VALVE_MOD,D105,FALSE),"-") -> - | G105: 1 | L105: 0 | O105: 0 | P105: 0 | Q105: 0 | R105: 0 | S105: 0 | T105: 4
A106: Opbouw 4 - Onderbouw 3 - Artikel 2 | B106: =AND(SEL_MOUNT_COUNT=4,TRIM(SEL_SECT4_FUNCT3)<>"") -> FALSE | D106: =D75 -> 3 | E106: =IF(B106,VLOOKUP(SEL_SECT4_FUNCT3,DBS_VALVE_MOD,D106,FALSE),"-") -> - | G106: 1 | L106: 0 | O106: 0 | P106: 0 | Q106: 0 | R106: 0 | S106: 0 | T106: 4
A107: Afdekplaat | B107: =AND(LEFT(E100,1)<>"-",LEFT(E100,9)<>"KREV903DEK") -> FALSE | C107: <Fixed> | D107: =D74 -> 2 | E107: =IF(B107,"KREV95"&(SUM(L100:L107)),"-") -> - | G107: 1 | L107: =IF(SUM(L100:L105)>150,5,0) -> 0 | O107: 0 | P107: 0 | Q107: 0 | R107: 0 | S107: 0 | T107: 4
E108: -* | F108: SP666 & kleinmateriaal
A109: SP666 | B109: =G109>0 -> FALSE | C109: <Fixed> | E109: =IF(B109,"SP666","-") -> - | F109: =VLOOKUP(E109,DBS_PARTLIST,$F$5,FALSE) ->  | G109: =M114 -> 0 | I109: =VLOOKUP($E109,DBS_PARTLIST,$I$5,FALSE) ->  | J109: =VLOOKUP($E109,DBS_PARTLIST,$J$5,FALSE) ->  | N109: =T(VLOOKUP($E109,DBS_PARTLIST,N$5,FALSE)) ->  | O109: =VLOOKUP($E109,DBS_PARTLIST,O$5,FALSE) -> 0 | P109: =VLOOKUP($E109,DBS_PARTLIST,P$5,FALSE) -> 0 | Q109: =VLOOKUP($E109,DBS_PARTLIST,Q$5,FALSE) -> 0 | R109: =VLOOKUP($E109,DBS_PARTLIST,R$5,FALSE) -> 0 | S109: =VLOOKUP($E109,DBS_PARTLIST,S$5,FALSE) -> 0
A110: Finish | B110: =LEFT(SEL_FINISH,1)<>"<" -> FALSE | E110: =IF(B110,"PAINT","-") -> - | F110: =VLOOKUP(SEL_FINISH,LST_FINISH,1,0) -> <ongespoten> | G110: =IF(NOT(B110),0,4) -> 0 | I110: =VLOOKUP($E110,DBS_PARTLIST,$I$5,FALSE) ->  | J110: =VLOOKUP($E110,DBS_PARTLIST,$J$5,FALSE) -> 
A111: Voorziening tbv diverse kleine materialen | E111: KSCKLMAT | F111: =VLOOKUP(E111,DBS_PARTLIST,$F$5,FALSE) -> <montage materiaal> | G111: 1 | I111: =VLOOKUP($E111,DBS_PARTLIST,$I$5,FALSE) -> EA | J111: =VLOOKUP($E111,DBS_PARTLIST,$J$5,FALSE) -> 300
A112: Engineering | C112: <Fixed> | E112: ENG | F112: =VLOOKUP(E112,DBS_PARTLIST,$F$5,FALSE) -> <engineering> | G112: 15 | I112: EA | J112: =VLOOKUP($E112,DBS_PARTLIST,$J$5,FALSE) -> 300
A113: Bewerkingstijd | E113: KSCB1 | F113: =VLOOKUP(E113,DBS_PARTLIST,$F$5,FALSE) -> Servicemonteur - Intern - 7-18 uur - ma-vr | G113: =SYS_CLC_ASSEMBLY_HOURS -> 0.75 | I113: =VLOOKUP($E113,DBS_PARTLIST,$I$5,FALSE) -> HRS | J113: =VLOOKUP($E113,DBS_PARTLIST,$J$5,FALSE) -> 300
E114: =TODAY() -> 2019-03-13 | M114: =SUM(M9:M107) -> 0

Sheet Partlist (hidden)
B1: Maat-typen:
B2: TB = Tank Basis maten.
B3: TE = Tank Effect maten (max. maat wordt opgeteld bij TB). | J3: Ref.Z1
B4: FB = Flens Basis. | I4: Ref.Y1 | J4: • | K4: Ref.Y2
B5: FE = Flens Effect maten (max. maat wordt opgeteld bij FB). | G5: 25 | J5: Ref.Z2
B6: EB = Elektromotor Basis maten. | G6: Y-Correctie Voetplaat | J6: Achteraanzicht Elektromotor
B7: EE = Elektromotor Effect maten (max. maat wordt opgeteld bij EB).
B8: OB = Opbouwventielen Basis maten.
B9: OE = Opbouwventielen Effect maten (max. maat wordt opgeteld bij OB).
B10: FO = Idem FE maar de X-maat wordt gebruikt bij het bepalen van de configuratie-lengte. | H10: X=Lengte | I10: Y=Breedte | K10: Z=Hoogte
B11: FZ = Idien aanwezig in configuratie dan worden de Z1-maten van de opbouwventielen niet meegenomen. | H11: (hartlijn electromotor)
A13: Artikel | B13: Oms | D13: Inb.Hoogte | E13: SP666 | F13: Image | G13: Type | H13: Eff.X | I13: Eff.Y1 | J13: Eff.Y2 | K13: Eff.Z1 | L13: Eff.Z2 | M13: UOM | N13: STOCKNO | O13: ORIGIN | P13: OMS_DUT | Q13: OMS_ENG | R13: OMS_GER | S13: OMS_FRE
A15: -
A16: EMF12 | B16: =CHOOSE(SEL_LANGUAGE,P16,Q16,R16,S16) -> MW knie bi-bu KIS ½ x ½ | M16: EA | N16: 300 | P16: MW knie bi-bu KIS ½ x ½ | Q16: Elbow 1/2 x 1/2 | R16: Winkelverschraubung 1/2 x 1/2 | S16: Coude 1/2 x 1/2 ext./int.
A17: ENG | B17: <engineering> | M17: EA | N17: 300 | P17: <engineering> | Q17: <engineering> | R17: <engineering> | S17: <engineering>
A18: 912616 | B18: Inbusbout M6x16 | M18: EA | N18: 300 | P18: Inbusbout M6x16 | Q18: Hex socket bolt M 6x16 | R18: Zyl.Schr. M6x16 | S18: Boulon à six pans creux M6x16
A19: 9128110129B | B19: Inbusbout M 8x110 12.9 Din 912 | M19: EA | N19: 300 | P19: Inbusbout M 8x110 12.9 Din 912 | Q19: Hex socket bolt M 8x110 12.9 | R19: Zyl.Schr. M8x110 12.9 DIN912 | S19: Boulon à six pans creux M8x110 12.9 DIN912
A20: 9128130129BP001 | B20: Inbusbout M 8x130 12.9 Din 912 | M20: EA | N20: 300 | P20: Inbusbout M 8x130 12.9 Din 912 | Q20: Hex socket bolt M 8x130 12.9 | R20: Zyl.Schr. M8x130 12.9 DIN912 | S20: Boulon à six pans creux M8x130 12.9 DIN912
A21: 9128140129B | B21: Inbusbout M 8x140 12.9 Din 912 | M21: EA | N21: 300 | P21: Inbusbout M 8x140 12.9 Din 912 | Q21: Hex socket bolt M 8x140 12.9 | R21: Zyl.Schr. M8x140 12.9 DIN912 | S21: Boulon à six pans creux M8x140 12.9 DIN912
A22: 9128145129B | B22: Inbusbout M 8x145 12.9 Din 912 | M22: EA | N22: 300 | P22: Inbusbout M 8x145 12.9 Din 912 | Q22: Hex socket bolt M 8x145 12.9 | R22: Zyl.Schr. M8x145 12.9 DIN912 | S22: Boulon à six pans creux M8x145 12.9 DIN912
A23: 912825 | B23: Inbusbout M8x25 | M23: EA | N23: 300 | P23: Inbusbout M8x25 | Q23: Hex socket bolt M 8x25 | R23: Zyl.Schr. M8x25 | S23: Boulon à six pans creux M8x25
A24: 912840 | B24: Inbusbout M8x40 8.8 DIN912 | M24: EA | N24: 300 | P24: Inbusbout M8x40 8.8 DIN912 | Q24: Hex socket bolt M8x40 8.8 DIN912 | R24: Zyl.Schr. M8x40 8.8 DIN912 | S24: Boulon à six pans creux M8x40 8.8 DIN912
A25: 912840129B | B25: Inbusbout M 8x 40 12.9 Din 912 | M25: EA | N25: 300 | P25: Inbusbout M 8x 40 12.9 Din 912 | Q25: Hex socket bolt M 8x40 12.9 | R25: Zyl.Schr. M8x40 12.9 DIN912 | S25: Boulon à six pans creux M8x40 12.9 DIN912
A26: 912860 | B26: Inbusbout M8x60 | M26: EA | N26: 300 | P26: Inbusbout M8x60 | Q26: Hex socket bolt M 8x60 | R26: Zyl.Schr. M8x60 | S26: Boulon à six pans creux M8x60
A27: 912890129B | B27: Inbusbout M8x90 -12.9 DIN 912 | M27: EA | N27: 300 | P27: Inbusbout M8x90 -12.9 DIN 912 | Q27: Hex socket bolt M 8x90 12.9 | R27: Zyl.Schr. M8x90 12.9 DIN912 | S27: Boulon à six pans creux M8x90 12.9 DIN912
A28: CB10HVM03009 | B28: Balanceerklep NG6 | D28: 50 | F28: CB10HVM03009 | G28: OB | H28: 0 | I28: 0 | J28: 0 | K28: 50 | L28: 0 | M28: EA | N28: 300 | P28: Balanceerklep NG6 | Q28: Counterbalance valve | R28: Gegenhalteventil | S28: Valve d'équilibrage
A29: CB10HVM03017 | B29: Balanceerklep NG6 | D29: 50 | F29: CB10HVM03017 | G29: OB | H29: 0 | I29: 0 | J29: 0 | K29: 50 | L29: 0 | M29: EA | N29: 300 | P29: Balanceerklep NG6 | Q29: Counterbalance valve | R29: Gegenhalteventil | S29: Valve d'équilibrage
A30: COB81400 | B30: Elektr.bediening DC unit2 knops 4m Kabel | M30: EA | N30: 300 | P30: Elektr.bediening DC unit2 knops 4m Kabel | Q30: Electr. Control DC UNIT 4MTR. | R30: Elek Bedienung DC Aggregat 4 meter Kabel | S30: Commande électrique Centrale DC cable de 4 mètres
A31: COB81600 | B31: Elektr.bediening DC unit2 knops 6m Kabel | M31: EA | N31: 300 | P31: Elektr.bediening DC unit2 knops 6m Kabel | Q31: Electr. Control DC UNIT 6MTR. | R31: Elek Bedienung DC Aggregat 6 meter Kabel | S31: Commande électrique Centrale DC cable de 6 mètres
A32: EM100LA4B141A0AKR | B32: E-motor 2,2kW 1500rpm B14 230V A 0 | G32: EB | H32: =368-58 -> 310 | I32: 177 | J32: =I32 -> 177 | K32: =195/2 -> 97.5 | L32: =I32 -> 177 | M32: EA | N32: 300 | P32: E-motor 2,2kW 1500rpm B14 230V A 0 | Q32: Electric motor 2,20 kW | R32: Elektromotor 2,20 kW | S32: Moteur électrique 2,20 kW
A33: EM100LA4B14300IE3A | B33: E-motor 2.2kW-1500rpm-B14-2/4-0-0 IE3 | G33: EB | H33: =368-58 -> 310 | I33: 177 | J33: =I33 -> 177 | K33: =195/2 -> 97.5 | L33: =I33 -> 177 | M33: EA | N33: 300 | P33: E-motor 2.2kW-1500rpm-B14-2/4-0-0 IE3 | Q33: Electric motor 2,20 kW IE3 | R33: Elektromotor 2,20 kW IE3 | S33: Moteur électrique 2,20 kW IE3
A34: EM100LB4B14500IE3A | B34: E-motor 3kW-1500rpm-B14-4/6-0-0 IE3 | G34: EB | H34: =368-58 -> 310 | I34: 177 | J34: =I34 -> 177 | K34: =195/2 -> 97.5 | L34: =I34 -> 177 | M34: EA | N34: 300 | P34: E-motor 3kW-1500rpm-B14-4/6-0-0 IE3 | Q34: Electric motor 3,00 kW IE3 | R34: Elektromotor 3,00 kW IE3 | S34: Moteur électrique 3,00 kW IE3
A35: EM18090 | B35: Manometer afsluiter EM 180-90' | M35: EA | N35: 300 | P35: Manometer afsluiter EM 180-90' | Q35: Pressure gauge shut-off valve | R35: Manometerabsperrhahn | S35: Robinet de fermeture pour manomètre
A36: EM71B2B141B0AKR | B36: E-motor 0.55kW-3000rpm-B14-230V-B-0 CCW | G36: EB | H36: 215 | I36: 110 | J36: =I36 -> 110 | K36: =141/2 -> 70.5 | L36: =I36 -> 110 | M36: EA | N36: 300 | P36: E-motor 0.55kW-3000rpm-B14-230V-B-0 CCW | Q36: Electric motor 0,55 kW | R36: Elektromotor 0,55 kW | S36: Moteur électrique 0,55 kW
A37: EM71B4B14300IE1AKR | B37: E-motor 0.37kW-1500rpm-B14-2/4-0-0 | G37: EB | H37: 215 | I37: 110 | J37: 110 | K37: =141/2 -> 70.5 | L37: 110 | M37: EA | N37: 300 | P37: E-motor 0.37kW-1500rpm-B14-2/4-0-0 | Q37: Electric motor 0,37 kW | R37: Elektromotor 0,37 kW | S37: Moteur électrique 0,37 kW
A38: EM80A2B141B0AKR | B38: E-motor 0.75kW-3000rpm-B14-230V-B-0 CCW | G38: EB | H38: =264-22 -> 242 | I38: 152 | J38: 152 | K38: =160/2 -> 80 | L38: 152 | M38: EA | N38: 300 | P38: E-motor 0.75kW-3000rpm-B14-230V-B-0 CCW | Q38: Electric motor 0,75 kW | R38: Elektromotor 0,75 kW | S38: Moteur électrique 0,75 kW
A39: EM80A4B141B0AKR | B39: E-motor 0.55kW-1500rpm-B14-230V-B-0 | G39: EB | H39: 242 | I39: 152 | J39: 152 | K39: 80 | L39: 152 | M39: EA | N39: 300 | P39: E-motor 0.55kW-1500rpm-B14-230V-B-0 | Q39: Electric motor 0,55 kW | R39: Elektromotor 0,55 kW | S39: Moteur électrique 0,55 kW
A40: EM80A4MPP1B0 | B40: E-motor 0.55kW-1500rpm-B14-230V-B-0 <Compact> | G40: EB | H40: 242 | I40: 152 | J40: =I40 -> 152 | K40: 80 | L40: =I40 -> 152 | M40: EA | N40: 300 | P40: =P39&" <Compact>" -> E-motor 0.55kW-1500rpm-B14-230V-B-0 <Compact> | Q40: =Q39&" <Compact>" -> Electric motor 0,55 kW <Compact> | R40: =R39&" <Compact>" -> Elektromotor 0,55 kW <Compact> | S40: =S39&" <Compact>" -> Moteur électrique 0,55 kW <Compact>
A41: EM80A4B14300IE1AKR | B41: E-motor 0.55 kW-1500rpm-B14-2/4-0-0 | G41: EB | H41: 242 | I41: 152 | J41: 152 | K41: 80 | L41: 152 | M41: EA | N41: 300 | P41: E-motor 0.55 kW-1500rpm-B14-2/4-0-0 | Q41: Electric motor 0,55 kW | R41: Elektromotor 0,55 kW | S41: Moteur électrique 0,55 kW
A42: EM80B2B141A0AKR | B42: E-motor 1.1kW-3000rpm-B14-230V-A-0 CCW | G42: EB | H42: 242 | I42: 152 | J42: 152 | K42: 80 | L42: 152 | M42: EA | N42: 300 | P42: E-motor 1.1kW-3000rpm-B14-230V-A-0 CCW | Q42: Electric motor 1,10 kW | R42: Elektromotor 1,10 kW | S42: Moteur électrique 1,10 kW
A43: EM80B4B141B0AKR | B43: E-motor 0.75kW-1500rpm-B14-230V-B-0 | G43: EB | H43: 242 | I43: 152 | J43: 152 | K43: 80 | L43: 152 | M43: EA | N43: 300 | P43: E-motor 0.75kW-1500rpm-B14-230V-B-0 | Q43: Electric motor 0,75 kW | R43: Elektromotor 0,75 kW | S43: Moteur électrique 0,75 kW
A44: EM80B4MPP1B0 | B44: E-motor 0.75kW-1500rpm-B14-230V-B-0 <Compact> | G44: EB | H44: 242 | I44: 152 | J44: =I44 -> 152 | K44: 80 | L44: =I44 -> 152 | M44: EA | N44: 300 | P44: =P43&" <Compact>" -> E-motor 0.75kW-1500rpm-B14-230V-B-0 <Compact> | Q44: =Q43&" <Compact>" -> Electric motor 0,75 kW <Compact> | R44: Elektromotor 0,75 kW <Compact> | S44: Moteur électrique 0,75 kW <Compact>
A45: EM80B4B14300IE3AKR | B45: E-motor 0.75 kW-1500rpm-B14-2/4-0-0 IE3 | G45: EB | H45: 242 | I45: 152 | J45: 152 | K45: 80 | L45: 152 | M45: EA | N45: 300 | P45: E-motor 0.75 kW-1500rpm-B14-2/4-0-0 IE3 | Q45: Electric motor 0,75 kW IE3 | R45: Elektromotor 0,75 kW IE3 | S45: Moteur électrique 0,75 kW IE3
A46: EM90L2B141A0 | B46: E-motor 2.2kW-3000rpm-B14-230V-A-0 CCW | G46: EB | H46: =314-32 -> 282 | I46: 158 | J46: 158 | K46: =178/2 -> 89 | L46: 158 | M46: EA | N46: 300 | P46: E-motor 2.2kW-3000rpm-B14-230V-A-0 CCW | Q46: Electric motor 2,20 kW | R46: Elektromotor 2,20 kW | S46: Moteur électrique 2,20 kW
A47: EM90L4B141A0AKR | B47: E-motor 1.5 kW-1500rpm-B14-230V-A-0 | G47: EB | H47: =314-32 -> 282 | I47: 158 | J47: 158 | K47: 89 | L47: 158 | M47: EA | N47: 300 | P47: E-motor 1.5 kW-1500rpm-B14-230V-A-0 | Q47: Electric motor 1,50 kW | R47: Elektromotor 1,50 kW | S47: Moteur électrique 1,50 kW
A48: EM90L4B14300IE3AKR | B48: E-motor 1.5 kW-1500rpm-B14-2/4-0-0 IE3 | G48: EB | H48: =314-32 -> 282 | I48: 158 | J48: 158 | K48: 89 | L48: 158 | M48: EA | N48: 300 | P48: E-motor 1.5 kW-1500rpm-B14-2/4-0-0 IE3 | Q48: Electric motor 1,50 kW IE3 | R48: Elektromotor 1,50 kW IE3 | S48: Moteur électrique 1,50 kW IE3
A49: EM90L4MPP300IE2 | B49: E-motor 1.5 kW-1500rpm-B14-2/4-0-0 IE3 <Compact> | G49: EB | H49: =314-32 -> 282 | I49: 158 | J49: =I49 -> 158 | K49: 89 | L49: =I49 -> 158 | M49: EA | N49: 300 | P49: =P48&" <Compact>" -> E-motor 1.5 kW-1500rpm-B14-2/4-0-0 IE3 <Compact> | Q49: =Q48&" <Compact>" -> Electric motor 1,50 kW IE3 <Compact> | R49: Elektromotor 1,50 kW IE3 <Compact> | S49: Moteur électrique 1,50 kW IE3 <Compact>
A50: EM90S2B141A0AKR | B50: E-motor 1.5kW-3000rpm-B14-230V-A-0 CCW | G50: EB | H50: =300-32 -> 268 | I50: 158 | J50: 158 | K50: 89 | L50: 158 | M50: EA | N50: 300 | P50: E-motor 1.5kW-3000rpm-B14-230V-A-0 CCW | Q50: Electric motor 1,50 kW | R50: Elektromotor 1,50 kW | S50: Moteur électrique 1,50 kW
A51: EM90S4B141A0AKR | B51: E-motor 1.1kW-1500rpm-B14-230V-A-0 | G51: EB | H51: =300-32 -> 268 | I51: 158 | J51: 158 | K51: 89 | L51: 158 | M51: EA | N51: 300 | P51: E-motor 1.1kW-1500rpm-B14-230V-A-0 | Q51: Electric motor 1,10 kW | R51: Elektromotor 1,10 kW | S51: Moteur électrique 1,10 kW
A52: EM90S4B14300IE3AKR | B52: E-motor 1.1kW-4-B14-3-0-0 IE3 | G52: EB | H52: =300-32 -> 268 | I52: 158 | J52: 158 | K52: 89 | L52: 158 | M52: EA | N52: 300 | P52: E-motor 1.1kW-4-B14-3-0-0 IE3 | Q52: Electric motor 1,10 kW IE3 | R52: Elektromotor 1,10 kW IE3 | S52: Moteur électrique 1,10 kW IE3
A53: EM90S4MPP300IE2 | B53: E-motor 1.1kW-4-B14-3-0-0 IE3 <Compact> | G53: EB | H53: =300-32 -> 268 | I53: 158 | J53: =I53 -> 158 | K53: 89 | L53: =I53 -> 158 | M53: EA | N53: 300 | P53: =P52&" <Compact>" -> E-motor 1.1kW-4-B14-3-0-0 IE3 <Compact> | Q53: =Q52&" <Compact>" -> Electric motor 1,10 kW IE3 <Compact> | R53: Elektromotor 1,10 kW IE3 <Compact> | S53: Moteur électrique 1,10 kW IE3 <Compact>
A54: FGP012625 | B54: Spiestaal 3/16" x 3/16" l=300 | M54: EA | N54: 300 | P54: Spiestaal 3/16" x 3/16" l=300
A55: FHM0061S | B55: Persfilter FHM-006-1-S-A-A/A10-T2 | D55: 60 | F55: FHM0061S | G55: OB | H55: 0 | I55: 0 | J55: 0 | K55: 60 | L55: 0 | M55: EA | N55: 300 | P55: Persfilter FHM-006-1-S-A-A/A10-T2 | Q55: Pressurefiltre FHM-006-1-S-A-A/A10-T2 | R55: Druckfilter FHM-006-1-S-A-A/A10-T2 | S55: Filtre à pression FHM-006-1-S-A-A/A10-T2
A56: GX160UT2QX4OH | B56: Motor Honda 5.5 pk 3/4" | G56: EB | H56: 425 | I56: 123 | J56: =360-I56 -> 237 | K56: 108 | L56: =380-K56 -> 272 | M56: EA | N56: 300 | P56: Motor Honda 5.5 pk 3/4" | Q56: Motor Honda 5.5 hp 3/4" | R56: Motor Honda 5.5 ps 3/4" | S56: Motor Honda 5.5 cv 3/4"
A57: H12PBTRAILER | B57: Draadloos afstandbediening | M57: EA | N57: 300 | P57: Draadloos afstandbediening | Q57: Wireless remote control | R57: Drahtlose Fernbedienung | S57: Télécommande
A58: K55TO | B58: Drukschakelaar K55 | G58: OB | H58: 0 | I58: 0 | J58: 0 | K58: 40 | L58: 0 | M58: EA | N58: 300 | P58: Drukschakelaar K55 | Q58: Pressure-switch K55 | R58: Druckschalter K55 | S58: Pressostat K55
A59: K59P | B59: Drukschakelaar K59 | G59: OB | H59: 0 | I59: 0 | J59: 0 | K59: 40 | L59: 0 | M59: EA | N59: 300 | P59: Drukschakelaar K59 | Q59: Pressure-switch K59 | R59: Druckschalter K59 | S59: Pressostat K59
A60: KREV02S96100 | B60: Boutenset voor KREV02S 3 secti KREV 02S-9-6100 | M60: SET | N60: 300 | O60: Cetop02 | P60: Boutenset voor KREV02S 3 secti KREV 02S-9-6100 | Q60: Screw set for SEV02S 3-section KREV 02S-9-6100 | R60: Schraubensatz f. SEV02S 3-Sek. KREV 02S-9-6100 | S60: Jeu de boulons p. SEV02S sec.3 KREV 02S-9-6100
A61: KREV02S96130 | B61: Boutenset voor KREV02S 4 secti KREV 02S-9-6130 | M61: SET | N61: 300 | O61: Cetop02 | P61: Boutenset voor KREV02S 4 secti KREV 02S-9-6130 | Q61: Screw set for SEV02S 4-section KREV 02S-9-6130 | R61: Schraubensatz f. SEV02S 4-Sek. KREV 02S-9-6130 | S61: Jeu de boulons p. SEV02S sec.4 KREV 02S-9-6130
A62: KREV02S96165 | B62: Boutenset voor KREV02S 5 secti KREV 02S-9-6165 | M62: SET | N62: 300 | O62: Cetop02 | P62: Boutenset voor KREV02S 5 secti KREV 02S-9-6165 | Q62: Screw set for SEV02S 5-section KREV 02S-9-6165 | R62: Schraubensatz f. SEV02S 5-Sek. KREV 02S-9-6165 | S62: Jeu de boulons p. SEV02S sec.5 KREV 02S-9-6165
A63: KREV02S96195 | B63: Boutenset voor KREV02S 6 secti KREV 02S-9-6195 | M63: SET | N63: 300 | O63: Cetop02 | P63: Boutenset voor KREV02S 6 secti KREV 02S-9-6195 | Q63: Screw set for SEV02S 6-section KREV 02S-9-6195 | R63: Schraubensatz f. SEV02S 6-Sek. KREV 02S-9-6195 | S63: Jeu de boulons p. SEV02S sec.6 KREV 02S-9-6195
A64: KREV02S9640 | B64: Boutenset voor KREV02S 1 secti KREV 02S-9-640 | M64: SET | N64: 300 | O64: Cetop02 | P64: Boutenset voor KREV02S 1 secti KREV 02S-9-640 | Q64: Screw set for SEV02S 1-section KREV 02S-9-640 | R64: Schraubensatz f. SEV02S 1-Sek. KREV 02S-9-640 | S64: Jeu de boulons p. SEV02S sec.1 KREV 02S-9-640
A65: KREV02S9670 | B65: Boutenset voor KREV02S 2 secti KREV 02S-9-670 | M65: SET | N65: 300 | O65: Cetop02 | P65: Boutenset voor KREV02S 2 secti KREV 02S-9-670 | Q65: Screw set for SEV02S 2-section KREV 02S-9-670 | R65: Schraubensatz f. SEV02S 2-Sek. KREV 02S-9-670 | S65: Jeu de boulons p. SEV02S sec.2 KREV 02S-9-670
A66: KREV02SC2000 | B66: Stuurventiel elektr. KREV-02S- KREV 02S-C2-000 | D66: 45 | E66: 2 | F66: SEV03C2 | G66: OB | H66: 0 | I66: =(172/2)-SYS_DIMS_OB_Y_OFFSET -> 61 | J66: =(172/2)+SYS_DIMS_OB_Y_OFFSET -> 111 | K66: 0 | L66: 0 | M66: EA | N66: 300 | O66: Cetop02 | P66: Stuurventiel elektr. KREV-02S- KREV 02S-C2-000 | Q66: Elec. control valve KREV-02S-C KREV 02S-C2-000 | R66: Steuerventil elektr. KREV-02S- KREV 02S-C2-000 | S66: Distributeur electr. KREV-02S KREV 02S-C2-000
A67: KREV02SC4000 | B67: Stuurventiel elektr. KREV-02S- KREV 02S-C4-000 | D67: 45 | E67: 2 | F67: SEV03C4 | G67: OB | H67: 0 | I67: =(172/2)-SYS_DIMS_OB_Y_OFFSET -> 61 | J67: =(172/2)+SYS_DIMS_OB_Y_OFFSET -> 111 | K67: 0 | L67: 0 | M67: EA | N67: 300 | O67: Cetop02 | P67: Stuurventiel elektr. KREV-02S- KREV 02S-C4-000 | Q67: Elec. control valve KREV-02S-C KREV 02S-C4-000 | R67: Steuerventil elektr. KREV-02S- KREV 02S-C4-000 | S67: Distributeur electr. KREV-02S KREV 02S-C4-000
A68: KREV02SEC2000 | B68: Stuurventiel elektr. KREV-02S- KREV 02S-E-C2-000 | D68: 45 | E68: 2 | F68: SEV03C2 | G68: OB | H68: 0 | I68: =(172/2)-SYS_DIMS_OB_Y_OFFSET -> 61 | J68: =(172/2)+SYS_DIMS_OB_Y_OFFSET -> 111 | K68: 0 | L68: 0 | M68: EA | N68: 300 | O68: Cetop02 | P68: Stuurventiel elektr. KREV-02S- KREV 02S-E-C2-000 | Q68: Elec. control valve KREV-02S-E KREV 02S-E-C2-000 | R68: Steuerventil elektr. KREV-02S- KREV 02S-E-C2-000 | S68: Distributeur electr. KREV-02S KREV 02S-E-C2-000
A69: KREV02SEC4000 | B69: Stuurventiel elektr. KREV-02S- KREV 02S-E-C4-000 | D69: 45 | E69: 2 | F69: SEV03C4 | G69: OB | H69: 0 | I69: =(172/2)-SYS_DIMS_OB_Y_OFFSET -> 61 | J69: =(172/2)+SYS_DIMS_OB_Y_OFFSET -> 111 | K69: 0 | L69: 0 | M69: EA | N69: 300 | O69: Cetop02 | P69: Stuurventiel elektr. KREV-02S- KREV 02S-E-C4-000 | Q69: Elec. control valve KREV-02S-E KREV 02S-E-C4-000 | R69: Steuerventil elektr. KREV-02S- KREV 02S-E-C4-000 | S69: Distributeur electr. KREV-02S KREV 02S-E-C4-000
A70: KREV02SEP | B70: Eindplaat voor KREV-02S KREV 02S-EP | M70: EA | N70: 300 | O70: Cetop02 | P70: Eindplaat voor KREV-02S KREV 02S-EP | Q70: Cover plate for KREV-02S KREV 02S-EP | R70: Endplatte fur KREV-02S KREV 02S-EP | S70: Plaque d'extremite p. KREV-02S KREV 02S-EP
A71: KREV02SMC2000 | B71: Stuurventiel elektr. KREV-02S- KREV 02S-M-C2-000 | D71: 45 | E71: 2 | F71: SEV03C2 | G71: OB | H71: 0 | I71: =(172/2)-SYS_DIMS_OB_Y_OFFSET -> 61 | J71: =(172/2)+SYS_DIMS_OB_Y_OFFSET -> 111 | K71: 0 | L71: 0 | M71: EA | N71: 300 | O71: Cetop02 | P71: Stuurventiel elektr. KREV-02S- KREV 02S-M-C2-000 | Q71: Elec. control valve KREV-02S-M KREV 02S-M-C2-000 | R71: Steuerventil elektr. KREV-02S- KREV 02S-M-C2-000 | S71: Distributeur electr. KREV-02S KREV 02S-M-C2-000
A72: KREV02SMC4000 | B72: Stuurventiel elektr. KREV-02S- KREV 02S-M-C4-000 | D72: 45 | E72: 2 | F72: SEV03C4 | G72: OB | H72: 0 | I72: =(172/2)-SYS_DIMS_OB_Y_OFFSET -> 61 | J72: =(172/2)+SYS_DIMS_OB_Y_OFFSET -> 111 | K72: 0 | L72: 0 | M72: EA | N72: 300 | O72: Cetop02 | P72: Stuurventiel elektr. KREV-02S- KREV 02S-M-C4-000 | Q72: Elec. control valve KREV-02S-M KREV 02S-M-C4-000 | R72: Steuerventil elektr. KREV-02S- KREV 02S-M-C4-000 | S72: Distributeur electr. KREV-02S KREV 02S-M-C4-000
A73: KREV03B2012C | B73: Stuurventiel elektrisch NG6 KREV 03-B2-012C | D73: 45 | E73: 1 | F73: SEV03B2 | G73: OB | H73: 0 | I73: =(214/2)-SYS_DIMS_OB_Y_OFFSET -> 82 | J73: =(214/2)+SYS_DIMS_OB_Y_OFFSET -> 132 | K73: 88 | L73: 0 | M73: EA | N73: 300 | P73: Stuurventiel elektrisch NG6 KREV 03-B2-012C | Q73: Electric control valve NG6 KREV 03-B2-012C | R73: Steuerventil NG6, 350bar, 12V KREV 03-B2-012C | S73: Distributeur electrique NG6 KREV 03-B2-012C
A74: KREV03B20230A | B74: Stuurventiel elektrisch NG6 KREV 03-B20-230A | D74: 45 | E74: 1 | F74: SEV03B20 | G74: OB | H74: 0 | I74: 82 | J74: 132 | K74: 88 | L74: 0 | M74: EA | N74: 300 | P74: Stuurventiel elektrisch NG6 KREV 03-B20-230A | Q74: Electric control valve NG6 KREV 03-B20-230A | R74: Steuerventil NG6, 350bar, 230V KREV 03-B20-230A | S74: Distributeur electrique NG6 KREV 03-B20-230A
A75: KREV03B2024C | B75: Stuurventiel elektrisch NG6 KREV 03-B2-024C | D75: 45 | E75: 1 | F75: SEV03B20 | G75: OB | H75: 0 | I75: 82 | J75: 132 | K75: 88 | L75: 0 | M75: EA | N75: 300 | P75: Stuurventiel elektrisch NG6 KREV 03-B2-024C | Q75: Electric control valve NG6 KREV 03-B2-024C | R75: Steuerventil elektr. NG6 KREV 03-B2-024C | S75: Distributeur electrique NG6 KREV 03-B2-024C
A76: KREV03B2230A | B76: Stuurventiel elektrisch NG6 KREV 03-B2-230A | D76: 45 | E76: 1 | F76: SEV03B2 | G76: OB | H76: 0 | I76: 82 | J76: 132 | K76: 88 | L76: 0 | M76: EA | N76: 300 | P76: Stuurventiel elektrisch NG6 KREV 03-B2-230A | Q76: Electric control valve NG6 KREV 03-B2-230A | R76: Steuerventil NG6, 350bar, 230V KREV 03-B2-230A | S76: Distributeur electrique NG6 KREV 03-B2-230A
A77: KREV03B3230A | B77: Stuurventiel elektrisch NG6 KREV 03-B3-230A | D77: 45 | E77: 1 | F77: SEV03B3 | G77: OB | H77: 0 | I77: 82 | J77: 132 | K77: 88 | L77: 0 | M77: EA | N77: 300 | P77: Stuurventiel elektrisch NG6 KREV 03-B3-230A | Q77: Electric control valve NG6 KREV 03-B3-230A | R77: Steuerventil NG6, 350bar, 230V KREV 03-B3-230A | S77: Distributeur electrique NG6 KREV 03-B3-230A
A78: KREV03B3S230A | B78: Stuurventiel elektrisch NG6 KREV 03-B3S-230A | D78: 45 | E78: 1 | F78: SEV03B3S | G78: OB | H78: 0 | I78: 82 | J78: 132 | K78: 88 | L78: 0 | M78: EA | N78: 300 | P78: Stuurventiel elektrisch NG6 KREV 03-B3S-230A | Q78: Electric control valve NG6 KREV 03-B3S-230A | R78: Steuerventil NG6, 350bar, 230V KREV 03-B3S-230A | S78: Distributeur electrique NG6 KREV 03-B3S-230A
A79: KREV03C2230A | B79: Stuurventiel elektrisch NG6 KREV 03-C2-230A | D79: 45 | E79: 2 | F79: SEV03C2 | G79: OB | H79: 0 | I79: 82 | J79: 132 | K79: 88 | L79: 0 | M79: EA | N79: 300 | P79: Stuurventiel elektrisch NG6 KREV 03-C2-230A | Q79: Electric control valve NG6 KREV 03-C2-230A | R79: Steuerventil NG6, 350bar, 230V KREV 03-C2-230A | S79: Distributeur electrique NG6 KREV 03-C2-230A
A80: KREV03C3230A | B80: Stuurventiel elektrisch NG6 KREV 03-C3-230A | D80: 45 | E80: 2 | F80: SEV03C3 | G80: OB | H80: 0 | I80: 82 | J80: 132 | K80: 88 | L80: 0 | M80: EA | N80: 300 | P80: Stuurventiel elektrisch NG6 KREV 03-C3-230A | Q80: Electric control valve NG6 KREV 03-C3-230A | R80: Steuerventil NG6, 350bar, 230V KREV 03-C3-230A | S80: Distributeur electrique NG6 KREV 03-C3-230A
A81: KREV03C3B230A | B81: Stuurventiel elektrisch NG6 KREV 03-C3B-230A | D81: 45 | E81: 1 | F81: SEV03C3B | G81: OB | H81: 0 | I81: 82 | J81: 132 | K81: 88 | L81: 0 | M81: EA | N81: 300 | P81: Stuurventiel elektrisch NG6 KREV 03-C3B-230A | Q81: Electric control valve NG6 KREV 03-C3B-230A | R81: Steuerventil NG6, 350bar, 230V KREV 03-C3B-230A | S81: Distributeur electrique NG6 KREV 03-C3B-230A
A82: KREV03C4230A | B82: Stuurventiel elektrisch NG6 KREV 03-C4-230A | D82: 45 | E82: 2 | F82: SEV03C4 | G82: OB | H82: 0 | I82: 82 | J82: 132 | K82: 88 | L82: 0 | M82: EA | N82: 300 | P82: Stuurventiel elektrisch NG6 KREV 03-C4-230A | Q82: Electric control valve NG6 KREV 03-C4-230A | R82: Steuerventil NG6, 350bar, 230V KREV 03-C4-230A | S82: Distributeur electrique NG6 KREV 03-C4-230A
A83: KREV03C6230A | B83: Stuurventiel elektrisch NG6 KREV 03-C6-230A | D83: 45 | E83: 2 | F83: SEV03C6 | G83: OB | H83: 0 | I83: 82 | J83: 132 | K83: 88 | L83: 0 | M83: EA | N83: 300 | P83: Stuurventiel elektrisch NG6 KREV 03-C6-230A | Q83: Electric control valve NG6 KREV 03-C6-230A | R83: Steuerventil NG6, 350bar, 230V KREV 03-C6-230A | S83: Distributeur electrique NG6 KREV 03-C6-230A
A84: KREV03C6LO | B84: Handbed.Stuurschuif HD3-LO-4-C-*-*- (3 pos.) NG6 | D84: 45 | F84: KREV03C6LO | G84: OB | H84: 0 | I84: 0 | J84: 0 | K84: 45 | L84: 0 | M84: EA | N84: 300 | P84: Handbed.Stuurschuif HD3-LO-4-C-*-*- (3 pos.) NG6 | Q84: Control valvemanual control NG | R84: Steuerventil Handbedienung NG6 | S84: Distributeur manuel NG6
A85: KREV03SB20012C | B85: =CHOOSE(SEL_LANGUAGE,P85,Q85,R85,S85) -> Stuurventiel elektrisch NG6 KREV 03S-B20-012C | D85: 45 | E85: 2 | F85: SEV03B20 | G85: OB | H85: 0 | I85: =(199/2)-SYS_DIMS_OB_Y_OFFSET -> 74.5 | J85: =(199/2)+SYS_DIMS_OB_Y_OFFSET -> 124.5 | K85: 88 | L85: 0 | M85: EA | N85: 300 | P85: Stuurventiel elektrisch NG6 KREV 03S-B20-012C | Q85: Electric control valve NG6 KREV 03S-B20-012C | R85: Steuerventil NG6, 320bar, 12V KREV 03S-B20-012C | S85: Distributeur electrique NG6 KREV 03S-B20-012C
A86: KREV03SB20024C | B86: Stuurventiel elektrisch NG6 KREV 03S-B20-024C | D86: 45 | E86: 2 | F86: SEV03B20 | G86: OB | H86: 0 | I86: 74.5 | J86: 124.5 | K86: 88 | L86: 0 | M86: EA | N86: 300 | P86: Stuurventiel elektrisch NG6 KREV 03S-B20-024C | Q86: Electric control valve NG6 KREV 03S-B20-024C | R86: Steuerventil NG6, 320bar, 24V KREV 03S-B20-024C | S86: Distributeur electrique NG6 KREV 03S-B20-024C
A87: KREV03SB3012C | B87: Stuurventiel elektrisch NG6 KREV 03S-B3-012C | D87: 45 | E87: 2 | F87: SEV03B3 | G87: OB | H87: 0 | I87: 74.5 | J87: 124.5 | K87: 88 | L87: 0 | M87: EA | N87: 300 | P87: Stuurventiel elektrisch NG6 KREV 03S-B3-012C | Q87: Electric control valve NG6 KREV 03S-B3-012C | R87: Steuerventil NG6, 320bar, 12V KREV 03S-B3-012C | S87: Distributeur electrique NG6 KREV 03S-B3-012C
A88: KREV03SB3024C | B88: Stuurventiel elektrisch NG6 KREV 03S-B3-024C | D88: 45 | E88: 2 | F88: SEV03B3 | G88: OB | H88: 0 | I88: 74.5 | J88: 124.5 | K88: 88 | L88: 0 | M88: EA | N88: 300 | P88: Stuurventiel elektrisch NG6 KREV 03S-B3-024C | Q88: Electric control valve NG6 KREV 03S-B3-024C | R88: Steuerventil NG6, 320bar, 24V KREV 03S-B3-024C | S88: Distributeur electrique NG6 KREV 03S-B3-024C
A89: KREV03SB3S012C | B89: Stuurventiel elektrisch NG6 KREV 03S-B3S-012C | D89: 45 | E89: 2 | F89: SEV03B3S | G89: OB | H89: 0 | I89: 74.5 | J89: 124.5 | K89: 88 | L89: 0 | M89: EA | N89: 300 | P89: Stuurventiel elektrisch NG6 KREV 03S-B3S-012C | Q89: Electric control valve NG6 KREV 03S-B3S-012C | R89: Steuerventil NG6, 320bar, 12V KREV 03S-B3S-012C | S89: Distributeur electrique NG6 KREV 03S-B3S-012C
A90: KREV03SB3S024C | B90: Stuurventiel elektrisch NG6 KREV 03S-B3S-024C | D90: 45 | E90: 2 | F90: SEV03B3S | G90: OB | H90: 0 | I90: 74.5 | J90: 124.5 | K90: 88 | L90: 0 | M90: EA | N90: 300 | P90: Stuurventiel elektrisch NG6 KREV 03S-B3S-024C | Q90: Electric control valve NG6 KREV 03S-B3S-024C | R90: Steuerventil NG6, 320bar, 24V KREV 03S-B3S-024C | S90: Distributeur electrique NG6 KREV 03S-B3S-024C
A91: KREV03SC2012C | B91: Stuurventiel elektrisch NG6 KREV 03S-C2-012C | D91: 45 | E91: 2 | F91: SEV03C2 | G91: OB | H91: 0 | I91: 74.5 | J91: 124.5 | K91: 88 | L91: 0 | M91: EA | N91: 300 | P91: Stuurventiel elektrisch NG6 KREV 03S-C2-012C | Q91: Electric control valve NG6 KREV 03S-C2-012C | R91: Steuerventil NG6, 320bar, 12V KREV 03S-C2-012C | S91: Distributeur electrique NG6 KREV 03S-C2-012C
A92: KREV03SC2024C | B92: Stuurventiel elektrisch NG6 KREV 03S-C2-024C | D92: 45 | E92: 2 | F92: SEV03C2 | G92: OB | H92: 0 | I92: 74.5 | J92: 124.5 | K92: 88 | L92: 0 | M92: EA | N92: 300 | P92: Stuurventiel elektrisch NG6 KREV 03S-C2-024C | Q92: Electric control valve NG6 KREV 03S-C2-024C | R92: Steuerventil NG6, 320bar, 24V KREV 03S-C2-024C | S92: Distributeur electrique NG6 KREV 03S-C2-024C
A93: KREV03SC3012C | B93: Stuurventiel elektrisch NG6 KREV 03S-C3-012C | D93: 45 | E93: 2 | F93: SEV03C3 | G93: OB | H93: 0 | I93: 74.5 | J93: 124.5 | K93: 88 | L93: 0 | M93: EA | N93: 300 | P93: Stuurventiel elektrisch NG6 KREV 03S-C3-012C | Q93: Electric control valve NG6 KREV 03S-C3-012C | R93: Steuerventil NG6, 320bar, 12V KREV 03S-C3-012C | S93: Distributeur electrique NG6 KREV 03S-C3-012C
A94: KREV03SC3024C | B94: Stuurventiel elektrisch NG6 KREV 03S-C3-024C | D94: 45 | E94: 2 | F94: SEV03C3 | G94: OB | H94: 0 | I94: 74.5 | J94: 124.5 | K94: 88 | L94: 0 | M94: EA | N94: 300 | P94: Stuurventiel elektrisch NG6 KREV 03S-C3-024C | Q94: Electric control valve NG6 KREV 03S-C3-024C | R94: Steuerventil NG6, 320bar, 24V KREV 03S-C3-024C | S94: Distributeur electrique NG6 KREV 03S-C3-024C
A95: KREV03SC3B012C | B95: Stuurventiel elektrisch NG6 KREV 03S-C3B-012C | D95: 45 | E95: 2 | F95: SEV03C3B | G95: OB | H95: 0 | I95: 74.5 | J95: 124.5 | K95: 88 | L95: 0 | M95: EA | N95: 300 | P95: Stuurventiel elektrisch NG6 KREV 03S-C3B-012C | Q95: Electric control valve NG6 KREV 03S-C3B-012C | R95: Steuerventil NG6, 320bar, 12V KREV 03S-C3B-012C | S95: Distributeur electrique NG6 KREV 03S-C3B-012C
A96: KREV03SC3B024C | B96: Stuurventiel elektrisch NG6 KREV 03S-C3B-024C | D96: 45 | E96: 2 | F96: SEV03C3B | G96: OB | H96: 0 | I96: 74.5 | J96: 124.5 | K96: 88 | L96: 0 | M96: EA | N96: 300 | P96: Stuurventiel elektrisch NG6 KREV 03S-C3B-024C | Q96: Electric control valve NG6 KREV 03S-C3B-024C | R96: Steuerventil NG6, 320bar, 24V KREV 03S-C3B-024C | S96: Distributeur electrique NG6 KREV 03S-C3B-024C
A97: KREV03SC4012C | B97: Stuurventiel elektrisch NG6 KREV 03S-C4-012C | D97: 45 | E97: 2 | F97: SEV03C4 | G97: OB | H97: 0 | I97: 74.5 | J97: 124.5 | K97: 88 | L97: 0 | M97: EA | N97: 300 | P97: Stuurventiel elektrisch NG6 KREV 03S-C4-012C | Q97: Electric control valve NG6 KREV 03S-C4-012C | R97: Steuerventil NG6, 320bar, 12V KREV 03S-C4-012C | S97: Distributeur electrique NG6 KREV 03S-C4-012C
A98: KREV03SC4024C | B98: Stuurventiel elektrisch NG6 KREV-03S-C4-024C | D98: 45 | E98: 2 | F98: SEV03C4 | G98: OB | H98: 0 | I98: 74.5 | J98: 124.5 | K98: 88 | L98: 0 | M98: EA | N98: 300 | P98: Stuurventiel elektrisch NG6 KREV-03S-C4-024C | Q98: Electric control valve NG6 KREV-03S-C4-024C | R98: Steuerventil NG6, 320bar, 24V KREV-03S-C4-024C | S98: Distributeur electrique NG6 KREV-03S-C4-024C
A99: KREV03SC6012C | B99: Stuurventiel elektrisch NG6 KREV 03S-C6-012C | D99: 45 | E99: 2 | F99: SEV03C6 | G99: OB | H99: 0 | I99: 74.5 | J99: 124.5 | K99: 88 | L99: 0 | M99: EA | N99: 300 | P99: Stuurventiel elektrisch NG6 KREV 03S-C6-012C | Q99: Electric control valve NG6 KREV 03S-C6-012C | R99: Steuerventil NG6, 320bar, 12V KREV 03S-C6-012C | S99: Distributeur electrique NG6 KREV 03S-C6-012C
A100: KREV03SC6024C | B100: Stuurventiel elektrisch NG6 KREV 03S-C6-024C | D100: 45 | E100: 2 | F100: SEV03C6 | G100: OB | H100: 0 | I100: 74.5 | J100: 124.5 | K100: 88 | L100: 0 | M100: EA | N100: 300 | P100: Stuurventiel elektrisch NG6 KREV 03S-C6-024C | Q100: Electric control valve NG6 KREV 03S-C6-024C | R100: Steuerventil NG6, 320bar, 24V KREV 03S-C6-024C | S100: Distributeur electrique NG6 KREV 03S-C6-024C
A101: KREV902012C | B101: Spoel v. KREV-02(S) 12 VDC KREV 9-02-012C | M101: EA | N101: 300 | O101: Cetop02 | P101: Spoel v. KREV-02(S) 12 VDC KREV 9-02-012C | Q101: Coil for KREV-02(S) 12 V DC KREV 9-02-012C | R101: Spule fur KREV-02(S) 12 V DC KREV 9-02-012C | S101: Bobine p. KREV-02(S) 12 V c.c. KREV 9-02-012C
A102: KREV902024C | B102: Spoel v. KREV-02(S) 24 VDC KREV 9-02-024C | M102: EA | N102: 300 | O102: Cetop02 | P102: Spoel v. KREV-02(S) 24 VDC KREV 9-02-024C | Q102: Coil for KREV-02(S) 24 V DC KREV 9-02-024C | R102: Spule fur KREV-02(S) 24 V DC KREV 9-02-024C | S102: Bobine p. KREV-02(S) 24 V c.c. KREV 9-02-024C
A103: KREV902230A | B103: Spoel v. KREV-02(S) 230 VAC KREV 9-02-230A | M103: EA | N103: 300 | O103: Cetop02 | P103: Spoel v. KREV-02(S) 230 VAC KREV 9-02-230A | Q103: Coil for KREV-02(S) 230 V AC KREV 9-02-230A | R103: Spule fur KREV-02(S) 230 V AC KREV 9-02-230A | S103: Bobine p. KREV-02(S) 230V c.a. KREV 9-02-230A
A104: KREV903DEK | B104: Afdekplaat NG-6 KREV 9-03-DEK | D104: 30 | F104: SEV903DEK | G104: OB | H104: 0 | I104: 0 | J104: 0 | K104: 15 | L104: 0 | M104: EA | N104: 300 | P104: Afdekplaat NG-6 KREV 9-03-DEK | Q104: Cover plate NG-6 KREV 9-03-DEK | R104: Abdeckplatte NG-6 KREV 9-03-DEK | S104: Plaque de recouvrement NG-6 KREV 9-03-DEK
A105: KREV95105 | B105: Set bouten M5 x 105 (4) NG6 KREV 9-5105 | M105: SET | N105: 300 | P105: Set bouten M5 x 105 (4) NG6 KREV 9-5105 | Q105: Set of screws, M5 x 105 (4) NG6 KREV 9-5105 | R105: Satz Schrauben M5 x 105 (4) NG6 KREV 9-5105 | S105: Jeu de boulons M5 x 105 (4) NG6 KREV 9-5105
A106: KREV95125 | B106: Set bouten M5 x 125 (4) NG6 KREV 9-5125 | M106: SET | N106: 300 | P106: Set bouten M5 x 125 (4) NG6 KREV 9-5125 | Q106: Set of screws, M5 x 125 (4) NG6 KREV 9-5125 | R106: Satz Schrauben M5 x 125 (4) NG6 KREV 9-5125 | S106: Jeu de boulons M5 x 125 (4) NG6 KREV 9-5125
A107: KREV95135 | B107: Set bouten M5 x 135 (4) NG6 KREV 9-5135 | M107: SET | N107: 300 | P107: Set bouten M5 x 135 (4) NG6 KREV 9-5135 | Q107: Set of screws, M5 x 135 (4) NG6 KREV 9-5135 | R107: Satz Schrauben M5 x 135 (4) NG6 KREV 9-5135 | S107: Jeu de boulons M5 x 135 (4) NG6 KREV 9-5135
A108: KREV95145 | B108: Set bouten M5 x 145 (4) NG6 KREV 9-5145 | M108: SET | N108: 300 | P108: Set bouten M5 x 145 (4) NG6 KREV 9-5145 | Q108: Set of screws, M5 x 145 (4) NG6 KREV 9-5145 | R108: Satz Schrauben M5 x 145 (4) NG6 KREV 9-5145 | S108: Jeu de boulons M5 x 145 (4) NG6 KREV 9-5145
A109: KREV95170 | B109: Set bouten M5 x 170 (4) NG6 KREV 9-5170 | M109: SET | N109: 300 | P109: Set bouten M5 x 170 (4) NG6 KREV 9-5170 | Q109: Set of screws, M5 x 170 (4) NG6 KREV 9-5170 | R109: Satz Schrauben M5 x 170 (4) NG6 KREV 9-5170 | S109: Jeu de boulons M5 x 170 (4) NG6 KREV 9-5170
A110: KREV95180 | B110: Set bouten M5 x 180 (4) NG6 KREV 9-5180 | M110: SET | N110: 300 | P110: Set bouten M5 x 180 (4) NG6 KREV 9-5180 | Q110: Set of screws, M5 x 180 (4) NG6 KREV 9-5180 | R110: Satz Schrauben M5 x 180 (4) NG6 KREV 9-5180 | S110: Jeu de boulons M5 x 180 (4) NG6 KREV 9-5180
A111: KREV95190 | B111: Set bouten M5 x 190 (4) NG6 KREV 9-5190 | M111: SET | N111: 300 | P111: Set bouten M5 x 190 (4) NG6 KREV 9-5190 | Q111: Set of screws, M5 x 190 (4) NG6 KREV 9-5190 | R111: Satz Schrauben M5 x 190 (4) NG6 KREV 9-5190 | S111: Jeu de boulons M5 x 190 (4) NG6 KREV 9-5190
A112: KREV9530 | B112: =CHOOSE(SEL_LANGUAGE,P112,Q112,R112,S112) -> Set bouten M5 x 30 (4) NG6 KREV 9-530 | M112: SET | N112: 300 | P112: Set bouten M5 x 30 (4) NG6 KREV 9-530 | Q112: Set of screws, M5 x 30 (4) NG6 KREV 9-530 | R112: Satz Schrauben M5 x 30 (4) NG6 KREV 9-530 | S112: Jeu de boulons M5 x 30 (4) NG6 KREV 9-530
A113: KREV9545 | B113: Set bouten M5 x 45 (4) NG6 KREV 9-545 | M113: SET | N113: 300 | P113: Set bouten M5 x 45 (4) NG6 KREV 9-545 | Q113: Set of screws, M5 x 45 (4) NG6 KREV 9-545 | R113: Satz Schrauben M5 x 45 (4) NG6 KREV 9-545 | S113: Jeu de boulons M5 x 45 (4) NG6 KREV 9-545
A114: KREV9585 | B114: Set bouten M5 x 85 (4) NG6 KREV 9-585 | M114: SET | N114: 300 | P114: Set bouten M5 x 85 (4) NG6 KREV 9-585 | Q114: Set of screws, M5 x 85 (4) NG6 KREV 9-585 | R114: Satz Schrauben M5 x 85 (4) NG6 KREV 9-585 | S114: Jeu de boulons M5 x 85 (4) NG6 KREV 9-585
A115: KREV9595 | B115: Set bouten M5 x 95 (4) NG6 KREV 9-595 | M115: SET | N115: 300 | P115: Set bouten M5 x 95 (4) NG6 KREV 9-595 | Q115: Set of screws, M5 x 95 (4) NG6 KREV 9-595 | R115: Satz Schrauben M5 x 95 (4) NG6 KREV 9-595 | S115: Jeu de boulons M5 x 95 (4) NG6 KREV 9-595
A116: KRMPC02SW | B116: Gest terugslagklep SMPC-02S-W NG4 | G116: OB | H116: 0 | I116: 0 | J116: 0 | K116: 40 | L116: 0 | M116: EA | N116: 300 | O116: Cetop02 | P116: Gest terugslagklep SMPC-02S-W NG4 | Q116: Check-valve SMPC-02S-W NG4 | R116: Rückschlagventil SMPC-02S-W NG4 | S116: Clapet anti-retour piloté SMPC-02S-W NG4
A117: KRMPC03A | B117: Gest terugslagklep SMPC-03-A NG6 (veer 2Bar) | D117: 40 | F117: SMPC03A | G117: OB | H117: 0 | I117: 0 | J117: 0 | K117: 40 | L117: 0 | M117: EA | N117: 300 | P117: Gest terugslagklep SMPC-03-A NG6 (veer 2Bar) | Q117: 03-Saturn Pilot check Valve | R117: Entsp.bares Rückschlagventil N | S117: Clapet anti-retour piloté SMPC-03-A NG6 (veer 2Bar)
A118: KRMPC03B | B118: Gest terugslagklep SMPC-03-B NG6 | D118: 40 | F118: SMPC03B | G118: OB | H118: 0 | I118: 0 | J118: 0 | K118: 40 | L118: 0 | M118: EA | N118: 300 | P118: Gest terugslagklep SMPC-03-B NG6 | Q118: 03-Saturn Pilot check Valve | R118: Entsp.bares Rückschlagventil N | S118: Clapet anti-retour piloté SMPC-03-B NG6
A119: KRMPC03W | B119: Gest terugslagklep SMPC-03W-4 NG6 | D119: 40 | F119: SMPC03W | G119: OB | H119: 0 | I119: 0 | J119: 0 | K119: 40 | L119: 0 | M119: EA | N119: 300 | P119: Gest terugslagklep SMPC-03W-4 NG6 | Q119: 03-Saturn Pilot check Valve | R119: Entsp.bares Rückschlagventil N | S119: Clapet anti-retour piloté SMPC-03W-4 NG6
A120: KRMPR03A3 | B120: Reduceerklep SMPR-03-A-S-3/ P in A NG6 | D120: 40 | F120: SMPR03A3 | G120: OB | H120: 0 | I120: 0 | J120: 0 | K120: 40 | L120: 0 | M120: EA | N120: 300 | P120: Reduceerklep SMPR-03-A-S-3/ P in A NG6 | Q120: 03-Saturn Reducing Valve | R120: Druckminderventil NW 6 | S120: Réducteur de pression SMPR-03-A-S-3/ P dans A NG6
A121: KRMPR03B3 | B121: Reduceerklep SMPR-03-B-S-3/P in B NG6 | D121: 40 | F121: SMPR03B3 | G121: OB | H121: 0 | I121: 0 | J121: 0 | K121: 40 | L121: 0 | M121: EA | N121: 300 | P121: Reduceerklep SMPR-03-B-S-3/P in B NG6 | Q121: 03-Saturn Reducing Valve | R121: Druckminderventil NW 6 | S121: Réducteur de pression SMPR-03-B-S-3/P dans B NG6
A122: KRMPS9030 | B122: Tussenplaat MPS-03-0 PS ongeboord | D122: 40 | F122: SMPS030 | G122: OB | H122: 0 | I122: 0 | J122: 0 | K122: 40 | L122: 0 | M122: EA | N122: 300 | P122: Tussenplaat MPS-03-0 PS ongeboord | Q122: 03 Intermediate Plate (no bore) | R122: Zwischenplatte MPS-02-0 | S122: Plaque intermédiaire MPS-03-0 PS
A123: KRMPS903A | B123: Tussenplaat MPS-03-A PS in A-poort | D123: 40 | F123: SMPS03A | G123: OB | H123: 0 | I123: 0 | J123: 0 | K123: 40 | L123: 0 | M123: EA | N123: 300 | P123: Tussenplaat MPS-03-A PS in A-poort | Q123: Intermediate Plate A-Cetop 03 | R123: Zwischenplatte MPS-02-A | S123: Plaque intermédiaire MPS-03-A PS en A
A124: KRMPS903B | B124: Tussenplaat MPS-03-B PS in B-poort | D124: 40 | F124: SMPS03B | G124: OB | H124: 0 | I124: 0 | J124: 0 | K124: 40 | L124: 0 | M124: EA | N124: 300 | P124: Tussenplaat MPS-03-B PS in B-poort | Q124: Intermediate Plate B-Cetop 03 | R124: Zwischenplatte MPS-02-B | S124: Plaque intermédiaire MPS-03-B PS en B
A125: KRMRF02SC3 | B125: Drukregelklep SMRF-02S-C-3 NG4 | G125: OB | H125: 0 | I125: 0 | J125: 0 | K125: 40 | L125: 0 | M125: EA | N125: 300 | O125: Cetop02 | P125: Drukregelklep SMRF-02S-C-3 NG4 | Q125: Relief-valve SMRF-02S-C-3 NG4 | R125: Druckbegrenzungsventil SMRF-02S-C-3 NG4 | S125: Valve de réglage de pression SMRF-02S-C-3 NG4
A126: KRMRF03A3 | B126: Drukregelklep SMRF-03-A-S-3 NG6 | D126: 40 | F126: SMRF03A3 | G126: OB | H126: 0 | I126: 0 | J126: 0 | K126: 40 | L126: 0 | M126: EA | N126: 300 | P126: Drukregelklep SMRF-03-A-S-3 NG6 | Q126: 03-Saturn Relief Valve | R126: Druckbegrenzungsventil NW 6 | S126: Valve de réglage de pression SMRF-03-A-S-3 NG6
A127: KRMRF03B3 | B127: Drukregelklep SMRF-03-B-S-3 NG6 | D127: 40 | F127: SMRF03B3 | G127: OB | H127: 0 | I127: 0 | J127: 0 | K127: 40 | L127: 0 | M127: EA | N127: 300 | P127: Drukregelklep SMRF-03-B-S-3 NG6 | Q127: 03-Saturn Relief Valve | R127: Druckbegrenzungsventil NW 6 | S127: Valve de réglage de pression SMRF-03-B-S-3 NG6
A128: KRMRF03C3 | B128: Drukregelklep SMRF-03-C-S-3 NG6 | D128: 40 | F128: SMRF03C3 | G128: OB | H128: 0 | I128: 0 | J128: 0 | K128: 40 | L128: 0 | M128: EA | N128: 300 | P128: Drukregelklep SMRF-03-C-S-3 NG6 | Q128: 03-Saturn Relief Valve | R128: Druckbegrenzungsventil NW 6 | S128: Valve de réglage de pression SMRF-03-C-S-3 NG6
A129: KRMRF03D3 | B129: Drukregelklep SMRF-03-D-S-3 NG6 | D129: 40 | F129: SMRF03D3 | G129: OB | H129: 0 | I129: 0 | J129: 0 | K129: 40 | L129: 0 | M129: EA | N129: 300 | P129: Drukregelklep SMRF-03-D-S-3 NG6 | Q129: 03-Saturn Relief Valve | R129: Druckbegrenzungsventil NW 6 | S129: Valve de réglage de pression SMRF-03-D-S-3 NG6
A130: KRMSC03A012C | B130: Elek. terugslagklep MSC-03A-12 NG6 | D130: 40 | F130: SMSC03A | G130: OB | H130: 0 | I130: 0 | J130: 0 | K130: 40 | L130: 0 | M130: EA | N130: 300 | P130: Elek. terugslagklep MSC-03A-12 NG6 | Q130: solenoid check valve | R130: Rückschlagventil elektr. NG6 | S130: Clapet anti-retour électrique MSC-03A-12 NG6
A131: KRMSC03A024C | B131: Elek. terugslagklep MSC-03A-24 NG6 | D131: 40 | F131: SMSC03A | G131: OB | H131: 0 | I131: 0 | J131: 0 | K131: 40 | L131: 0 | M131: EA | N131: 300 | P131: Elek. terugslagklep MSC-03A-24 NG6 | Q131: solenoid check valve | R131: Rückschlagventil elektr. NG6 | S131: Clapet anti-retour électrique MSC-03A-24 NG6
A132: KRMSC03B012C | B132: Elek. terugslagklep MSC-03B-12 NG6 | D132: 40 | F132: SMSC03B | G132: OB | H132: 0 | I132: 0 | J132: 0 | K132: 40 | L132: 0 | M132: EA | N132: 300 | P132: Elek. terugslagklep MSC-03B-12 NG6 | Q132: solenoid check valve | R132: Rückschlagventil elektr. NG6 | S132: Clapet anti-retour électrique MSC-03B-12 NG6
A133: KRMSC03B024C | B133: Elek. terugslagklep MSC-03B-24 NG6 | D133: 40 | F133: SMSC03B | G133: OB | H133: 0 | I133: 0 | J133: 0 | K133: 40 | L133: 0 | M133: EA | N133: 300 | P133: Elek. terugslagklep MSC-03B-24 NG6 | Q133: solenoid check valve | R133: Rückschlagventil elektr. NG6 | S133: Clapet anti-retour électrique MSC-03B-24 NG6
A134: KRMSC03W012C | B134: Elek. terugslagklep MSC-03W-12 NG6 | D134: 40 | F134: SMSC03W | G134: OB | H134: 0 | I134: 0 | J134: 0 | K134: 40 | L134: 0 | M134: EA | N134: 300 | P134: Elek. terugslagklep MSC-03W-12 NG6 | Q134: solenoid check valve | R134: Rückschlagventil elektr. NG6 | S134: Clapet anti-retour électrique MSC-03W-12 NG6
A135: KRMSC03W024C | B135: Elek. terugslagklep MSC-03W-24 NG6 | D135: 40 | F135: SMSC03W | G135: OB | H135: 0 | I135: 0 | J135: 0 | K135: 40 | L135: 0 | M135: EA | N135: 300 | P135: Elek. terugslagklep MSC-03W-24 NG6 | Q135: solenoid check valve | R135: Rückschlagventil elektr. NG6 | S135: Clapet anti-retour électrique MSC-03W-24 NG6
A136: KRMTI03A | B136: Smoorterugslagklep SMTI-03A-S A in NG6 | D136: 40 | F136: SMTI03A | G136: OB | H136: 0 | I136: 0 | J136: 0 | K136: 40 | L136: 0 | M136: EA | N136: 300 | P136: Smoorterugslagklep SMTI-03A-S A in NG6 | Q136: 03-Saturn Throtted check Valve | R136: Drosselrückschlagventil NW6 | S136: Etrangleur de débit unidirectionnel SMTI-03A-S A in NG6
A137: KRMTI03B | B137: Smoorterugslagklep SMTI-03B-SB in NG6 | D137: 40 | F137: SMTI03B | G137: OB | H137: 0 | I137: 0 | J137: 0 | K137: 40 | L137: 0 | M137: EA | N137: 300 | P137: Smoorterugslagklep SMTI-03B-SB in NG6 | Q137: 03-Saturn Throtted check Valve | R137: Drosselrückschlagventil NW6 | S137: Etrangleur de débit unidirectionnel SMTI-03B-SB in NG6
A138: KRMTI03W | B138: Smoorterugslagklep SMTI-03-W-S A+B in NG6 | D138: 40 | F138: SMTI03W | G138: OB | H138: 0 | I138: 0 | J138: 0 | K138: 40 | L138: 0 | M138: EA | N138: 300 | P138: Smoorterugslagklep SMTI-03-W-S A+B in NG6 | Q138: 03-Saturn Throtted check Valve | R138: Drosselrückschlagventil NW6 | S138: Etrangleur de débit unidirectionnel SMTI-03-W-S A+B in NG6
A139: KRMTO03A | B139: Smoorterugslagklep SMTO-03-A-S A uit NG6 | D139: 40 | F139: SMTO03A | G139: OB | H139: 0 | I139: 0 | J139: 0 | K139: 40 | L139: 0 | M139: EA | N139: 300 | P139: Smoorterugslagklep SMTO-03-A-S A uit NG6 | Q139: 03-Saturn Throtted check Valve | R139: Drosselrückschlagventil NW6 | S139: Etrangleur de débit unidirectionnel SMTO-03-A-S A uit NG6
A140: KRMTO03B | B140: Smoorterugslagklep SMTO-03-B-S B uit NG6 | D140: 40 | F140: SMTO03B | G140: OB | H140: 0 | I140: 0 | J140: 0 | K140: 40 | L140: 0 | M140: EA | N140: 300 | P140: Smoorterugslagklep SMTO-03-B-S B uit NG6 | Q140: 03-Saturn Throtted check Valve | R140: Drosselrückschlagventil NW6 | S140: Etrangleur de débit unidirectionnel SMTO-03-B-S B uit NG6
A141: KRMTO03W | B141: Smoorterugslagklep SMTO-03W-S A+B uit NG6 | D141: 40 | F141: SMTO03W | G141: OB | H141: 0 | I141: 0 | J141: 0 | K141: 40 | L141: 0 | M141: EA | N141: 300 | P141: Smoorterugslagklep SMTO-03W-S A+B uit NG6 | Q141: 03-Saturn Throtted check Valve | R141: Drosselrückschlagventil NW6 | S141: Etrangleur de débit unidirectionnel SMTO-03W-S A+B uit NG6
A142: KSCB1 | B142: Servicemonteur - Intern - 7-18 uur - ma-vr | M142: HRS | N142: 300 | P142: Servicemonteur - Intern - 7-18 uur - ma-vr | Q142: Service Technician - Internal - 7-18 uur Mon-Fri | R142: Servicetechniker - Intern - 7-18 uur Mo-Fr | S142: Service Technician - Internal - 7-18 uur - Lun-Ven
A143: KSCKLMAT | B143: <montage materiaal> | M143: EA | N143: 300 | P143: <montage materiaal> | Q143: <mounting material> | R143: <Montagematerial> | S143: <matériel de fixation>
A144: LC08C1H | B144: Spoel voor LSV2 12VDC | E144: 1 | M144: EA | N144: 300 | P144: Spoel voor LSV2 12VDC | Q144: Coil for LSV2 12VDC | R144: Spule für LSV2 12VDC | S144: Bobine pour LSV2 12VDC
A145: LC08C2H | B145: Spoel voor LSV2 24VDC | E145: 1 | M145: EA | N145: 300 | P145: Spoel voor LSV2 24VDC | Q145: Coil for LSV2 24VDC | R145: Spule für LSV2 24VDC | S145: Bobine pour LSV2 24VDC
A146: LC08C4H | B146: Spoel voor LSV2 230C | E146: 1 | M146: EA | N146: 300 | P146: Spoel voor LSV2 230C | Q146: Coil for LSV2 230C | R146: Spule für LSV2 230C | S146: Bobine pour LSV2 230C
A147: LSV0834O | B147: 4/3 klep AB open | E147: 2 | G147: FE | H147: 0 | I147: 0 | J147: 88 | K147: 0 | L147: 0 | M147: EA | N147: 300 | P147: 4/3 klep AB open | Q147: 4/3 valve AB open | R147: 4/3 Wegeventil AB offen | S147: 4/3 vanne AB open
A148: LSV0834T | B148: 4/3 klep AB dicht | E148: 2 | G148: FE | H148: 0 | I148: 0 | J148: 88 | K148: 0 | L148: 0 | M148: EA | N148: 300 | P148: 4/3 klep AB dicht | Q148: 4/3 valve AB closed | R148: 4/3 Wegeventil AB geschlossen | S148: 4/3 vanne AB closed
A149: LSV2082NCP | B149: 2/2 klep LSV2-08-2NCP | G149: FE | H149: 0 | I149: 0 | J149: 50 | K149: 0 | L149: 0 | M149: EA | N149: 300 | P149: 2/2 klep LSV2-08-2NCP | Q149: 2/2 valve LSV2-08-2NCP | R149: 2/2 Wegeventil LSV2-08-2NCP | S149: Vanne 2/2 LSV2-08-2NCP
A150: LSV2082NCPM | B150: 2/2 klep LSV2-08-2NCP-M | G150: FE | H150: 0 | I150: 0 | J150: 60 | K150: 0 | L150: 0 | M150: EA | N150: 300 | P150: 2/2 klep LSV2-08-2NCP-M | Q150: 2/2 valve LSV2-08-2NCP-M | R150: 2/2 Wegeventil LSV2-08-2NCP-M | S150: Vanne 2/2 LSV2-08-2NCP-M
A151: LSV2082NOP | B151: =CHOOSE(SEL_LANGUAGE,P151,Q151,R151,S151) -> 2/2 klep LSV2-08-2NOP | G151: FE | H151: 0 | I151: 0 | J151: 53 | K151: 0 | L151: 0 | M151: EA | N151: 300 | P151: 2/2 klep LSV2-08-2NOP | Q151: 2/2 valve LSV2-08-2NOP | R151: 2/2 Wegeventil LSV2-08-2NOP | S151: Vanne 2/2 LSV2-08-2NOP
A152: LSV2084CO | B152: 4/2 klep | E152: 1 | G152: FE | H152: 0 | I152: 0 | J152: 48 | K152: 0 | L152: 0 | M152: EA | N152: 300 | P152: 4/2 klep | Q152: 4/2 valve | R152: 4/2 Wegeventil | S152: 4/2 vanne
A153: MA63100L04PLGF | B153: Manometer D. 63 0-100 Bar onderaansl. | G153: OE | H153: 0 | I153: 0 | J153: 0 | K153: 63 | L153: 0 | M153: EA | N153: 300 | P153: Manometer D. 63 0-100 Bar onderaansl. | Q153: Gauge (back) d. 63 0-100 bar | R153: Manometer D. 63 0-100 Bar . | S153: Manomètre D. 63 0-100 Bar raccordement en dessous
A154: MA63160L04PLGF | B154: Manometer D. 63 0-160 Bar onderaansl. | G154: OE | H154: 0 | I154: 0 | J154: 0 | K154: 63 | L154: 0 | M154: EA | N154: 300 | P154: Manometer D. 63 0-160 Bar onderaansl. | Q154: Gauge (back) d. 63 0-160 bar | R154: Manometer D. 63 0-160 Bar . | S154: Manomètre D. 63 0-160 Bar raccordement en dessous
A155: MA63250L04PLGF | B155: Manometer D. 63 0-250 Bar onderaansl. | G155: OE | H155: 0 | I155: 0 | J155: 0 | K155: 63 | L155: 0 | M155: EA | N155: 300 | P155: Manometer D. 63 0-250 Bar onderaansl. | Q155: Gauge (back) d. 63 0-250 bar | R155: Manometer D. 63 0-250 Bar . | S155: Manomètre D. 63 0-250 Bar raccordement en dessous
A156: MEV2018 | B156: Meetpuntkoppeling MEV 20-R 1/8 BSP | M156: EA | N156: 300 | P156: Meetpuntkoppeling MEV 20-R 1/8 BSP | Q156: Pressure gauge connector | R156: Messpunktverschraubung | S156: Raccord minimess
A157: MPP09D | B157: Pump 0.85 cc D gr.1 | M157: EA | N157: 300 | P157: Pomp 0.85 cc D gr.1 | Q157: Pump 0.85 cc D gr.1 | R157: Pumpe 0.85 cc D Gr.1 | S157: Pompe 0.85 cc D Gr.1
A158: MPP12D | B158: Pump 1.2 cc D gr.1 | M158: EA | N158: 300 | P158: Pomp 1.2 cc D gr.1 | Q158: Pump 1.2 cc D gr.1 | R158: Pumpe 1.2 cc D Gr.1 | S158: Pompe 1.2 cc D Gr.1
A159: MPP16D | B159: Pump 1.7 cc D gr.1 | M159: EA | N159: 300 | P159: Pomp 1.7 cc D gr.1 | Q159: Pump 1.7 cc D gr.1 | R159: Pumpe 1.7 cc D Gr.1 | S159: Pompe 1.7 cc D Gr.1
A160: MPP20D | B160: Pump 2.0 cc D gr.1 | M160: EA | N160: 300 | P160: Pomp 2.0 cc D gr.1 | Q160: Pump 2.0 cc D gr.1 | R160: Pumpe 2.0 cc D Gr.1 | S160: Pompe 2.0 cc D Gr.1
A161: MPP22DS | B161: Pump 2.2 cc D gr.1 *silent* | M161: EA | N161: 300 | P161: Pomp 2.2 cc D gr.1 *stil* | Q161: Pump 2.2 cc D gr.1 *silent* | R161: Pumpe 2.2 cc D Gr.1 *still* | S161: Pompe 2.2 cc D Gr.1 *silencieux*
A162: MPP25D | B162: Pump 2.6 cc D gr.1 | M162: EA | N162: 300 | P162: Pomp 2.6 cc D gr.1 | Q162: Pump 2.6 cc D gr.1 | R162: Pumpe 2.6 cc D Gr.1 | S162: Pompe 2.6 cc D Gr.1
A163: MPP26DS | B163: Pump 2.6 cc D gr.1 *silent* | M163: EA | N163: 300 | P163: Pomp 2.6 cc D gr.1 *stil* | Q163: Pump 2.6 cc D gr.1 *silent* | R163: Pumpe 2.6 cc D Gr.1 *still* | S163: Pompe 2.6 cc D Gr.1 *silencieux*
A164: MPP2DS | B164: Pump 2.0 cc D gr.1 *silent* | M164: EA | N164: 300 | P164: Pomp 2.0 cc D gr.1 *stil* | Q164: Pump 2.0 cc D gr.1 *silent* | R164: Pumpe 2.0 cc D Gr.1 *still* | S164: Pompe 2.0 cc D Gr.1 *silencieux*
A165: MPP32D | B165: Pump 3.2 cc D gr.1 | M165: EA | N165: 300 | P165: Pomp 3.2 cc D gr.1 | Q165: Pump 3.2 cc D gr.1 | R165: Pumpe 3.2 cc D Gr.1 | S165: Pompe 3.2 cc D Gr.1
A166: MPP32DS | B166: Pump 3.2 cc D gr.1 *silent* | M166: EA | N166: 300 | P166: Pomp 3.2 cc D gr.1 *stil* | Q166: Pump 3.2 cc D gr.1 *silent* | R166: Pumpe 3.2 cc D Gr.1 *still* | S166: Pompe 3.2 cc D Gr.1 *silencieux*
A167: MPP37D | B167: Pump 3.8 cc D gr.1 | M167: EA | N167: 300 | P167: Pomp 3.8 cc D gr.1 | Q167: Pump 3.8 cc D gr.1 | R167: Pumpe 3.8 cc D Gr.1 | S167: Pompe 3.8 cc D Gr.1
A168: MPP38DS | B168: Pump 3.8 cc D gr.1 *silent* | M168: EA | N168: 300 | P168: Pomp 3.8 cc D gr.1 *stil* | Q168: Pump 3.8 cc D gr.1 *silent* | R168: Pumpe 3.8 cc D Gr.1 *still* | S168: Pompe 3.8 cc D Gr.1 *silencieux*
A169: MPP42D | B169: Pump 4.3 cc D gr.1 | M169: EA | N169: 300 | P169: Pomp 4.3 cc D gr.1 | Q169: Pump 4.3 cc D gr.1 | R169: Pumpe 4.3 cc D Gr.1 | S169: Pompe 4.3 cc D Gr.1
A170: MPP43DS | B170: Pump 4.3 cc D gr.1 *silent* | M170: EA | N170: 300 | P170: Pomp 4.3 cc D gr.1 *stil* | Q170: Pump 4.3 cc D gr.1 *silent* | R170: Pumpe 4.3 cc D Gr.1 *still* | S170: Pompe 4.3 cc D Gr.1 *silencieux*
A171: MPP50D | B171: Pump 5.0 cc D gr.1 | M171: EA | N171: 300 | P171: Pomp 5.0 cc D gr.1 | Q171: Pump 5.0 cc D gr.1 | R171: Pumpe 5.0 cc D Gr.1 | S171: Pompe 5.0 cc D Gr.1
A172: MPP5DS | B172: Pump 5.0 cc D gr.1 *silent* | M172: EA | N172: 300 | P172: Pomp 5.0 cc D gr.1 *stil* | Q172: Pump 5.0 cc D gr.1 *silent* | R172: Pumpe 5.0 cc D Gr.1 *still* | S172: Pompe 5.0 cc D Gr.1 *silencieux*
A173: MPP63D | B173: Pump 6.0 cc D gr.1 | M173: EA | N173: 300 | P173: Pomp 6.0 cc D gr.1 | Q173: Pump 6.0 cc D gr.1 | R173: Pumpe 6.0 cc D Gr.1 | S173: Pompe 6.0 cc D Gr.1
A174: MPP78D | B174: Pump 7.8 cc D gr.1 | M174: EA | N174: 300 | P174: Pomp 7.8 cc D gr.1 | Q174: Pump 7.8 cc D gr.1 | R174: Pumpe 7.8 cc D Gr.1 | S174: Pompe 7.8 cc D Gr.1
A175: MPP98D | B175: Pump 9.8 cc D gr.1 | M175: EA | N175: 300 | P175: Pomp 9.8 cc D gr.1 | Q175: Pump 9.8 cc D gr.1 | R175: Pumpe 9.8 cc D Gr.1 | S175: Pompe 9.8 cc D Gr.1
A176: MPP2649D | B176: Double pump 2.6-4.9 cc D | M176: EA | N176: 300 | P176: Dubbelpomp 2.6-4.9 cc D | Q176: Double pump 2.6-4.9 cc D | R176: Doppelpumpe 2.6-4.9 cc D | S176: Pompe double 2.6-4.9 cc D
A177: MPP9MC100 | B177: Koppeling voor EM100B14 | H177: 0 | I177: 0 | J177: 0 | K177: 0 | L177: 0 | M177: EA | N177: 300 | P177: Koppeling voor EM100B14 | Q177: IEC100B14A Motor Coupling | R177: IEC100B14A Motor Kupplung | S177: Accouplement pour EM100B14
A178: MPP9MC71 | B178: Koppeling voor EM71B14 | H178: 0 | I178: 0 | J178: 0 | K178: 0 | L178: 0 | M178: EA | N178: 300 | P178: Koppeling voor EM71B14 | Q178: IEC71B14A Motor Coupling | R178: IEC71B14A Motor Kupplung | S178: Accouplement pour EM71B14
A179: MPP9MC71HD | B179: Koppeling voor EM71B14 HD | H179: 0 | I179: 0 | J179: 0 | K179: 0 | L179: 0 | M179: EA | N179: 300 | P179: Koppeling voor EM71B14 HD | Q179: IEC71B14A Motor Coupling HD | R179: IEC71B14A Motor Kupplung HD | S179: Accouplement pour EM71B14 HD
A180: MPP9MC80 | B180: Koppeling voor EM80B14 | H180: 0 | I180: 0 | J180: 0 | K180: 0 | L180: 0 | M180: EA | N180: 300 | P180: Koppeling voor EM80B14 | Q180: IEC80B14A Motor Coupling | R180: IEC80B14A Motor Kupplung | S180: Accouplement pour EM80B14
A181: MPP9MC90 | B181: Koppeling voor EM90B14 | H181: 0 | I181: 0 | J181: 0 | K181: 0 | L181: 0 | M181: EA | N181: 300 | P181: Koppeling voor EM90B14 | Q181: IEC90B14A Motor Coupling | R181: IEC90B14A Motor Kupplung | S181: Accouplement pour EM90B14
A182: MPP9MCBSH | B182: Motorkoppeling Honda | M182: EA | N182: 300 | P182: Motorkoppeling Honda | Q182: Motor coupling Honda | R182: Motorkupplung Honda | S182: Accouplenemt pour Honda
A183: MPP9MF100 | B183: Flens voor EM100B14 | G183: EE | H183: 58 | I183: 0 | J183: 0 | K183: 0 | L183: 0 | M183: EA | N183: 300 | P183: Flens voor EM100B14 | Q183: IEC100B14A Flange | R183: IEC100B14A Flansch | S183: Bride pour EM100B14
A184: MPP9MF71 | B184: Flens voor EM71B14 | G184: EE | H184: 20 | I184: 0 | J184: 0 | K184: 0 | L184: 0 | M184: EA | N184: 300 | P184: Flens voor EM71B14 | Q184: IEC71B14A Flange | R184: IEC71B14A Flansch | S184: Bride pour EM71B14
A185: MPP9MF80 | B185: Flens voor EM80B14 | G185: EE | H185: 22 | I185: 0 | J185: 0 | K185: 0 | L185: 0 | M185: EA | N185: 300 | P185: Flens voor EM80B14 | Q185: IEC80B14A Flange | R185: IEC80B14A Flansch | S185: Bride pour EM80B14
A186: MPP9MF90 | B186: Flens voor EM90B14 | G186: EE | H186: 32 | I186: 0 | J186: 0 | K186: 0 | L186: 0 | M186: EA | N186: 300 | P186: Flens voor EM90B14 | Q186: IEC90B14A Flange | R186: IEC90B14A Flansch | S186: Bride pour EM90B14
A187: MPPMF90H | B187: Flens Adapter IEC90-GX160 | M187: EA | N187: 300 | P187: Flens Adapter IEC90-GX160 | Q187: Flange Adaptor IEC90-GX160 | R187: Flansch Adapter IEC90-GX160 | S187: MPP Bride Adaptateur IEC90-GX160
A188: MPP9PCAC | B188: Pompkoppeling voor AC-motor | M188: EA | N188: 300 | P188: Pompkoppeling voor AC-motor | Q188: Drive Coupling for AC-motor | R188: Kupplung für AC Motor | S188: Accouplenemt moteur-AC
A189: MPP9PCAC05 | B189: Pompkoppeling voor AC-motor Gr. 0.5 | M189: EA | N189: 300 | P189: Pompkoppeling voor AC-motor Gr. 0.5 | Q189: Drive Coupling for AC-motor Gr. 0.5 | R189: Kupplung für AC Motor Gr. 0.5 | S189: Accouplenemt moteur-AC Gr. 0.5
A190: MPPBF | B190: Montagevoet | G190: FE | H190: 0 | I190: 0 | J190: 0 | K190: 0 | L190: 48 | M190: EA | N190: 300 | P190: Montagevoet | Q190: Mounting Bracket | R190: Montagefuss | S190: pied de montage
A191: MPPCV | B191: Terugslagklep | G191: FE | H191: 0 | I191: 0 | J191: 0 | K191: 0 | L191: 0 | M191: EA | N191: 300 | P191: Terugslagklep | Q191: Check Valve | R191: Rückschlagventil | S191: clapet anti-retour
A192: MPPCVMP | B192: Terugslagklep met meetpuntaansluiting | G192: FE | H192: 0 | I192: 0 | J192: 41 | K192: 0 | L192: 0 | M192: EA | N192: 300 | P192: Terugslagklep met meetpuntaansluiting | Q192: Check Valve with pressure gauge connector | R192: Rückschlagventil mit Messpunkt Anschluss | S192: clapet anti-retour
A193: MPPDCM12V2100N | B193: DC-motor 12VDC 2100W incl. relais | G193: EB | H193: 201 | I193: =112/2 -> 56 | J193: =I193+62 -> 118 | K193: =I193 -> 56 | L193: =I193 -> 56 | M193: EA | N193: 300 | P193: DC-motor 12VDC 2100W incl. relais | Q193: DC-motor 12VDC 2100W starter | R193: Gleichstrommotor 12VDC 2100W mit Relais | S193: Moteur-DC 12VDC 2100Wrelais incl.
A194: MPPDCM12V2500N | B194: DC-motor 12VDC 2500W B14A IEC90 | G194: EB | H194: 316 | I194: =220/2 -> 110 | J194: =I194 -> 110 | K194: 110 | L194: 110 | M194: EA | N194: 300 | P194: DC-motor 12VDC 2500W B14A IEC90 | Q194: DC-motor 12VDC 2500W B14AIEC90 1700rpm CCW | R194: Gleichstrommotor 12VDC 2500W B14A IEC90 | S194: Moteur-DC 12VDC 2500W B14A IEC90
A195: MPPDCM12V800N | B195: DC-motor 12VDC 800W incl. relais | G195: EB | H195: 138 | I195: =80/2 -> 40 | J195: =I195+62 -> 102 | K195: 40 | L195: 40 | M195: EA | N195: 300 | P195: DC-motor 12VDC 800W incl. relais | Q195: DC-motor 12VDC 800W starter | R195: Gleichstrommotor 12VDC 800W mit Relais | S195: Moteur-DC 12VDC 800W relais incl.
A196: MPPDCM24V2100N | B196: DC-motor 24VDC 2100W incl. relais | G196: EB | H196: 201 | I196: =112/2 -> 56 | J196: =I196+62 -> 118 | K196: 56 | L196: 56 | M196: EA | N196: 300 | P196: DC-motor 24VDC 2100W incl. relais | Q196: DC-motor 24VDC 2100W starter | R196: Gleichstrommotor 24VDC 2100W mit Relais | S196: Moteur-DC 24VDC 2100W relais incl.
A197: MPPDCM24V3000N | B197: DC-motor 24VDC 3000W B14A IEC90 | G197: EB | H197: 316 | I197: =220/2 -> 110 | J197: =I197 -> 110 | K197: 110 | L197: 110 | M197: EA | N197: 300 | P197: DC-motor 24VDC 3000W B14A IEC90 | Q197: DC-motor 24VDC 3000W B14AIEC90 1700rpm CCW | R197: Gleichstrommotor 24VDC 3000W B14A IEC90 | S197: Moteur-DC 24VDC 3000W B14A IEC90
A198: MPPDCM24V800N | B198: DC-motor 24VDC 800W incl. relais | G198: EB | H198: 138 | I198: =80/2 -> 40 | J198: =I198+62 -> 102 | K198: 40 | L198: 40 | M198: EA | N198: 300 | P198: DC-motor 24VDC 800W incl. relais | Q198: DC-motor 24VDC 800W starter | R198: Gleichstrommotor 24VDC 800W mit Relais | S198: Moteur-DC 24VDC 800W relais incl.
A199: MPPDCMC2200 | B199: DC-motor koppeling 2200 W | M199: EA | N199: 300 | P199: DC-motor koppeling 2200 W | Q199: Drive Coupling - 2200/Gr1 | R199: Kupplung für 2100 W Motor | S199: Accouplenemt moteur-DC 2200 W
A200: MPPDCMC800 | B200: DC-motor koppeling 800 W Gr. 1 | M200: EA | N200: 300 | P200: DC-motor koppeling 800 W Gr. 1 | Q200: Drive Coupling - 800 W Gr. 1 | R200: Kupplung für 800 W Motor Gr. 1 | S200: Accouplement moteur-DC 800 W Gr. 1
A201: MPPDCMC805 | B201: DC-motor koppeling 800 W Gr. 0.5 | M201: EA | N201: 300 | P201: DC-motor koppeling 800 W Gr. 0.5 | Q201: Drive Coupling - 800 W Gr. 0.5 | R201: Kupplung für 800 W Motor Gr. 0.5 | S201: Accouplement moteur-DC 800 W Gr. 0.5
A202: MPPDCMCB2200 | B202: DC-motorkabel relais<>motor L=150mm | M202: EA | N202: 300 | P202: DC-motorkabel relais<>motor L=150mm | Q202: MPP DC-motor cable relais <> m | R202: MPP DC-Motor Kabel Relais <> M | S202: Cable de moteur DC relais<>moteur L=150mm
... 72 more rows

Sheet Calculations (hidden)
A1: Tijd-staffel-tabel | G1: Berekenen max. werkdruk en inschakelduur
A3: Secties | B3: 1 t/m 5 | C3: 6 t/m 10 | D3: > 10 | G3: MOTOR/CC | H3: 0.26 | I3: 0.38 | J3: 0.64 | K3: 0.85 | L3: 1.2 | M3: 1.7 | N3: 2 | O3: 2.2 | P3: 2.6 | Q3: 3.2 | R3: 3.8 | S3: 4.3 | T3: 5 | U3: 6 | V3: 7.8 | W3: 9.8
A4: 0 | B4: 40 | C4: 35 | D4: 30 | G4: MPPDCM12V2100N | K4: 210 | L4: 210 | M4: 210 | N4: 120 | O4: 110 | P4: 105 | Q4: 90 | R4: 75
A5: 1 | B5: =B4+3 -> 43 | C5: =C4+3 -> 38 | D5: =D4+3 -> 33 | G5: MPPDCM24V2100N | K5: 210 | L5: 210 | M5: 210 | N5: 150 | O5: 135 | P5: 125 | Q5: 110 | R5: 100 | S5: 80 | T5: 65 | U5: 55 | V5: 45
A6: 2 | B6: =B4+6 -> 46 | C6: =C4+6 -> 41 | D6: =D4+6 -> 36 | G6: MPPDCM12V800N | H6: 210 | I6: 210 | J6: 140 | K6: 100 | L6: 80 | M6: 60 | N6: 50 | O6: 45
A7: 3 | B7: =B6+3 -> 49 | C7: =C6+3 -> 44 | D7: =D6+3 -> 39 | G7: MPPDCM24V800N | H7: 210 | I7: 210 | J7: 160 | K7: 110 | L7: 90 | M7: 70 | N7: 60 | O7: 55
A8: 4 | B8: =B6+6 -> 52 | C8: =C6+6 -> 47 | D8: =D6+6 -> 42 | G8: MPPDCM12V2500N | M8: 210 | N8: 210 | O8: 200 | P8: 190 | Q8: 170 | R8: 140 | S8: 115 | T8: 110 | U8: 100
G9: MPPDCM24V3000N | M9: 210 | N9: 210 | O9: 210 | P9: 210 | Q9: 210 | R9: 200 | S9: 160 | T9: 150 | U9: 130
A10: Montage uren
G11: MOTOR | H11: Duur
A12: Aantal ledige voetplaat | D12: =VALUE(SEL_MOUNT_COUNT) -> 0 | G12: MPPDCM12V2100N | H12: 1
A13: Aantal units | D13: =SEL_QUANTITY -> 1 | G13: MPPDCM24V2100N | H13: 4
A14: Extra montagetijd | D14: =TableSearch(DBS_MOTOR,SEL_MOTOR,"ExtraMontagetijd") -> 5 | G14: MPPDCM12V800N | H14: 4
A15: Finish | D15: =60*IF(LEFT(SEL_FINISH,1)="<",0,0.75) -> 0 | G15: MPPDCM24V800N | H15: 4
A16: Montage minuten | D16: =IF(D13<6,(VLOOKUP(D12,A3:D8,2,FALSE)),IF(D13<11,(VLOOKUP(D12,A3:D8,3,FALSE)),VLOOKUP(D12,A3:D8,4,FALSE)))+SUM(D14:D15) -> 45 | E16: =TEXT((D16-MOD(D16,60))/60,"#0")&":"&TEXT(MOD(D16,60),"00") -> 0:45 | G16: MPPDCM12V2500N | H16: 16
E17: =ROUND(D16/60,2) -> 0.75 | G17: MPPDCM24V3000N | H17: 16
G19: Geselecteerde Motor
G20: SEL_MOTOR | H20: =SEL_MOTOR -> B : DC-motor 24 Volt, 2100 Watt
G21: SEL_MOTOR(AC/DC) | H21: =TableSearch(DBS_MOTOR,SEL_MOTOR,"AcDc") -> DC
G22: SEL_MOTOR(ARTIKEL) | H22: =VLOOKUP(SEL_MOTOR,DBS_MOTOR,2,0) -> MPPDCM24V2100N
G23: SEL_MOTOR(kW) | H23: =TableSearch(DBS_MOTOR,SEL_MOTOR,"kW") -> 2.1
G24: SEL_MOTOR(Rendement) | H24: =TableSearch(DBS_MOTOR,SEL_MOTOR,"Rendement") -> 0.85
G25: SEL_MOTOR(Flow) | H25: =TableSearch(DBS_MOTOR,SEL_MOTOR,"Flow") -> nvt
G27: Geselecteerde Pomp
G28: SEL_PUMP | H28: =SEL_PUMP -> 32 : Pomp 3.2 cc D gr.1
G29: SEL_PUMP(CC) | H29: =TableSearch(DBS_PUMP,SEL_PUMP,"CC") -> 3.2
G30: SEL_PUMP(MaxWP) | H30: =TableSearch(DBS_PUMP,SEL_PUMP,"MaxWP") -> 210
G32: Calculatie | I32: DC | J32: AC
G33: Max. werkdruk (bar) | H33: =IF(H21<>"DC",MIN(H30,J33),I33) -> 110 | I33: =IF(H21="DC",TableSearch(SYS_DC_MOTOR_MAX_WP,H22,H29),0) -> 110 | J33: =IF(H21="AC",FLOOR((H23*600*H24)/H25,5),0) -> 0
G34: Inschakelduur (min.) | H34: =IF(H21<>"DC",0,VLOOKUP(H22,SYS_DC_MOTOR_MAX_INSCHAKELDUUR,2,0)) -> 4
G36: SYS_CLC_MAX_WP
G37: =IF(SYS_CLC_MAX_WP_BAR>0,SYS_CLC_MAX_WP_BAR&" bar"&IF(H34>0," ("&H34&" min.)",""),TextPerLanguage(SEL_LANGUAGE,167)) -> 110 bar (4 min.)
G39: SYS_CLC_FLOW
G40: =IF(ISNUMBER(H25),H25&" ltr/min",TextPerLanguage(SEL_LANGUAGE,167)) -> Niet van toepassing

Sheet Translations (hidden)
A1: ID | B1: Nederlands | C1: English | D1: Deutsch | E1: Français
A2: 1 | B2: Taal | C2: Language | D2: Sprache | E2: Langue
A3: 2 | B3: Bedrijfsnaam: | C3: Company name: | D3: Firma: | E3: Nom de client:
A4: 3 | B4: Contactpersoon: | C4: Att.: | D4: Zu Händen: | E4: à l'att.de:
A5: 4 | B5: in overleg | C5: to be agreed upon | D5: nach Vereinbarung | E5: à déterminer
A6: 5 | B6: Artikel: | C6: Part: | D6: Artikel: | E6: Article:
A7: 6 | B7: Datum: | C7: Date: | D7: Datum: | E7: Date:
A8: 7 | B8: Tank: | C8: Oil tank: | D8: Ölbehälter: | E8: Réservoir:
A9: 8 | B9: Pomp: | C9: Pump: | D9: Pumpe: | E9: Pompe:
A10: 9 | B10: Motor: | C10: Motor: | D10: Motor: | E10: Moteur:
A11: 10 | B11: Opbouw: | C11: Cetop mounting: | D11: Zwischenplatten: | E11: Montage Cetop:
A12: 11 | B12: Tekeningnummer: | C12: Drawing number: | D12: Zeichnungsnummer: | E12: Numéro de dessin:
A13: 12 | B13: Max. werkdruk: | C13: Max. pressure: | D13: Max. Druck: | E13: Pression max.:
A14: 13 | B14: Flow: | C14: Flow: | D14: Förderstrom: | E14: Débit:
A15: 14 | B15: Keuze | C15: Choice | D15: Auswahl | E15: Choix
A16: 15 | B16: Lengte | C16: Length | D16: Länge | E16: Longueur
A17: 16 | B17: Breedte | C17: Width | D17: Breite | E17: Largeur
A18: 17 | B18: Hoogte | C18: Height | D18: Höhe | E18: Hauteur
A19: 18 | B19: Manometer: | C19: Pressure Gauge: | D19: Manometer: | E19: Manomètre:
A20: 19 | B20: Voltage opbouw: | C20: Voltage cetop: | D20: Spannung Ventile: | E20: Voltage cetop:
A21: 20 | B21: Aantal units: | C21: Number of units: | D21: Anzahl der Einheiten: | E21: Quantité centrales:
A22: 21 | B22: Opbouwsecties: | C22: Cetop mounting: | D22: Ventilaufbau: | E22: Montage Cetop:
A23: 22 | B23: Klantspecifiek | C23: Customised | D23: Kundenspezifisch | E23: Spécifiquement pour client
A24: 23 | B24: Nettoprijs: | C24: Net price: | D24: Netto-Preis: | E24: Prix net:
A25: 24 | B25: Levertijd: | C25: Deliverytime: | D25: Liefertermin: | E25: Délai:
A26: 25 | B26: Ongeldige Pomp/Motor combinatie! | C26: Invalid Pump/Motor combination! | D26: Ungültige Pumpe/Motor-Kombination! | E26: Blancs Pompe/Moteur combinaison!
A27: 26 | B27: De unit is compleet gemonteerd, getest op de max. werkdruk. | C27: The complete assembled mini powerpack is tested to the max. pressure. | D27: Das komplett montierte Aggregat ist mit max. Arbeitsdruck getestet. | E27: La mini centrale est testée à pression max.
A28: 27 | B28: De unit is excl. olie en bekabeling. | C28: The mini powerpack is deliverd without oil and electrical cables. | D28: Das Aggregat wird ohne Hydrauliköl und elektrische Verdrahtung geliefert. | E28: La mini centrale est livrée sans huile et cables électrique
A29: 28 | B29: excl. BTW | C29: excl. VAT | D29: zzgl. MWST | E29: TVA non compris
A30: 29 | B30: Deze offerte is geldig tot 30 dagen na dagtekening. | C30: This quotation is valid for 30 days. | D30: Die Geltungsdauer dieses Angebot ist 30 tage. | E30: Validité de l'offre: 30 jours.
A31: 30 | B31: =IF($F31=0,B5,"gereed voor verzending in "&TEXT($F31,"0")&" dagen") -> gereed voor verzending in 3 dagen | C31: =IF($F31=0,C5,"ready to ship in "&TEXT($F31,"0")&" days") -> ready to ship in 3 days | D31: =IF($F31=0,D5,"fertig für Versand in "&TEXT($F31,"0")&" Tage") -> fertig für Versand in 3 Tage | E31: =IF($F31=0,E5,"prêt pour expédition en "&TEXT($F31,"0")&" Jours") -> prêt pour expédition en 3 Jours | F31: 3
A32: 31 | B32: Levertijd (dagen): | C32: Deliverytime (days): | D32: Liefertermin (Tage): | E32: Délai (Jours):
A33: 32 | B33: Levering volgens onze algemene leverings- en montagevoorwaarden | C33: Delivery according to our general terms of delivery and assembly | D33: Lieferung nach unseren allgemeinen Liefer- und Montage-Bedingungen | E33: Livraison suivant notre condition de vente et d'assemblage
A34: 33 | B34: Handtekening | C34: Signature | D34: Unterschrift | E34: Signature
A35: 34 | B35: Referentie: | C35: Reference: | D35: Referenz: | E35: Référence:
A36: 35 | B36: Tank keuze: alleen horizontaal zonder voet is mogelijk! | C36: Choice tank: only horizontal without baseframe is possible! | D36: Auswahl Tank: nur horizontal ohne Fuss ist möglich! | E36: Choix réservoir: seulement horizontale sans pied possible!
A37: 36 | B37: Vulplaat verplicht! | C37: Adapter Plate required! | D37: Distanzplatte benötigt! | E37: Plaque intermédiaire obligatoire!
A38: 140 | B38: Sectie1 - Onderb. 3: | C38: Sect.1 - Mod.valve 3: | D38: Sektion 1 - Z-platte 3: | E38: Sect.1 - Valve mod. 3:
A39: 141 | B39: Sectie1 - Onderb. 2: | C39: Sect.1 - Mod.valve 2: | D39: Sektion 1 - Z-platte 2: | E39: Sect.1 - Valve mod. 2:
A40: 142 | B40: Sectie1 - Onderb. 1: | C40: Sect.1 - Mod.valve 1: | D40: Sektion 1 - Z-platte 1: | E40: Sect.1 - Valve mod. 1:
A41: 143 | B41: Sectie1 - St.schuif: | C41: Sect.1 - Sol.valve: | D41: Sektion 1 - Ventil: | E41: Sect.1 - Distributeur:
A42: 144 | B42: Sectie2 - Onderb. 3: | C42: Sect.2 - Mod.valve 3: | D42: Sektion 2 - Z-platte 3: | E42: Sect.2 - Valve mod. 3:
A43: 145 | B43: Sectie2 - Onderb. 2: | C43: Sect.2 - Mod.valve 2: | D43: Sektion 2 - Z-platte 2: | E43: Sect.2 - Valve mod. 2:
A44: 146 | B44: Sectie2 - Onderb. 1: | C44: Sect.2 - Mod.valve 1: | D44: Sektion 2 - Z-platte 1: | E44: Sect.2 - Valve mod. 1:
A45: 147 | B45: Sectie2 - St.schuif: | C45: Sect.2 - Sol.valve: | D45: Sektion 2 - Ventil: | E45: Sect.2 - Distributeur:
A46: 148 | B46: Sectie3 - Onderb. 3: | C46: Sect.3 - Mod.valve 3: | D46: Sektion 3 - Z-platte 3: | E46: Sect.3 - Valve mod. 3:
A47: 149 | B47: Sectie3 - Onderb. 2: | C47: Sect.3 - Mod.valve 2: | D47: Sektion 3 - Z-platte 2: | E47: Sect.3 - Valve mod. 2:
A48: 150 | B48: Sectie3 - Onderb. 1: | C48: Sect.3 - Mod.valve 1: | D48: Sektion 3 - Z-platte 1: | E48: Sect.3 - Valve mod. 1:
A49: 151 | B49: Sectie3 - St.schuif: | C49: Sect.3 - Sol.valve: | D49: Sektion 3 - Ventil: | E49: Sect.3 - Distributeur:
A50: 152 | B50: Sectie4 - Onderb. 3: | C50: Sect.4 - Mod.valve 3: | D50: Sektion 4 - Z-platte 3: | E50: Sect.4 - Valve mod. 3:
A51: 153 | B51: Sectie4 - Onderb. 2: | C51: Sect.4 - Mod.valve 2: | D51: Sektion 4 - Z-platte 2: | E51: Sect.4 - Valve mod. 2:
A52: 154 | B52: Sectie4 - Onderb. 1: | C52: Sect.4 - Mod.valve 1: | D52: Sektion 4 - Z-platte 1: | E52: Sect.4 - Valve mod. 1:
A53: 155 | B53: Sectie4 - St.schuif: | C53: Sect.4 - Sol.valve: | D53: Sektion 4 - Ventil: | E53: Sect.4 - Distributeur:
A54: 156 | B54: Lantaarnstuk: | C54: Bell housing: | D54: Pümpenträger: | E54: Lanterne:
A55: 157 | B55: Stuklijst | C55: Bill of material | D55: Artikel Liste | E55: Pièces détachées:
A56: 158 | B56: Aantal | C56: Amount | D56: Anzahl | E56: Quantité:
A57: 159 | B57: Kostprijs | C57: Cost price | D57: Kostpreis | E57: Prix de revient:
A58: 160 | B58: Klein materiaal | C58: Small materials | D58: Klein-Material | E58: Materiél divers:
A59: 161 | B59: Kostprijs materiaal: | C59: Cost price materials: | D59: Kosten Material: | E59: Prix de revient matériel:
A60: 162 | B60: minuten | C60: minutes | D60: minuten | E60: Minutes:
A61: 163 | B61: Toeslag: | C61: Extra charge | D61: Zuschlag: | E61: Supplément:
A62: 164 | B62: Verkoop materiaal: | C62: Sales price materials: | D62: Verkaufspreis Material: | E62: Prix de vente:
A63: 165 | B63: Kostprijs uren | C63: Costprice hours | D63: Kostpreis Stunden | E63: Prix des heures de travail:
A64: 166 | B64: Internal use only | C64: Internal use only | D64: Internal use only | E64: Internal use only
A65: 167 | B65: Niet van toepassing | C65: Not calculated | D65: Nicht kalkuliert | E65: Ne pas applicable
A66: 178 | B66: Prijslijst is verlopen. | C66: Price list is not up to date. | D66: Preise sind nicht mehr aktuell. | E66: Liste de prix est expiré
A67: 183 | B67: Offerte | C67: Quotation | D67: Angebot | E67: Offre
A68: 184 | B68: Materiaallijst | C68: Material list | D68: Material Liste | E68: Liste de matériel
A69: 186 | B69: Omschrijving | C69: Description | D69: Umschreibung | E69: Description
A70: 187 | B70: Annuleren | C70: Cancel | D70: Annullieren | E70: Annuler
A71: 188 | B71: Publiceren | C71: Publish | D71: Publizieren | E71: Publish
A72: 189 | B72: Bewerkingstijd | C72: Worktime | D72: Arbeidszeit | E72: Temps de travail
A73: 190 | B73: Afstandsbediening: | C73: Remote control: | D73: Fernbedienung: | E73: Commande à distance:
A74: 191 | B74: Uniparts/Inkoopprijs: | C74: Uniparts/Purchaseprice: | D74: Uniparts/Einkaufspreis: | E74: Uniparts/Prix d'achat
A75: 192 | B75: Marge: | C75: Margin: | D75: Verdienstspanne: | E75: Marge bénéficiaire:
A76: 193 | B76: Verkoopprijs (afgerond): | C76: Salesprice (rounded): | D76: Verkaufspreis (abgerundet): | E76: Prix de vente arrondi:
A77: 195 | B77: Calculatie | C77: Calculation | D77: Kalkulation | E77: Calculation
A78: 196 | B78: Materiaal | C78: Materials | D78: Material | E78: Matériel
A79: 197 | B79: Verkoper | C79: Salesman | D79: Verkäufer | E79: Vendeur
A80: 198 | B80: Tekening | C80: Drawing | D80: Zeichnung | E80: Dessin
A81: 199 | B81: Motorzijde | C81: Motor-side | D81: Motor-Seite | E81: Côté moteur
A82: 200 | B82: Tankzijde | C82: Tank-side | D82: Ölbehälter-Seite | E82: Côté réservoir
A83: 201 | B83: Ongeldige Pomp/Flens combinatie! | C83: Invalid Pump/Flange combination! | D83: Ungültige Pumpe/Flansch-Kombination! | E83: Blancs Pompe/Bride combinaison!
A84: 202 | B84: Opmerkingen | C84: Remarks | D84: Bemerkungen | E84: Remarques
A85: 203 | B85: Opmerkingen (intern gebruik) | C85: Remarks (internal usage) | D85: Bemerkungen (internen Gebrauch) | E85: Remarques (usage interne)
A86: 204 | B86: Uniparts/Inkoopprijs: | C86: Uniparts/Purchaseprice: | D86: Uniparts/Einkaufspreis: | E86: Uniparts/Prix d'achat:
A87: 205 | B87: Advies Verkoopprijs: | C87: Recommended Salesprice: | D87: Empfohlene Verkaufspreis: | E87: Prix ​​de vente conseillé:
A88: 206 | B88: Nettoprijs (aangepast): | C88: Net price (adjusted): | D88: Netto-Preis (angepasst): | E88: Prix net (adapté):
A89: 207 | B89: Afwerking: | C89: Finish: | D89: Finish: | E89: Finition:
A90: 208 | B90: Afwerking niet mogelijk/toegestaan! | C90: Finish not possible/allowed! | D90: Finish nicht möglich/erlaubt! | E90: Finition pas possible/autorisé!
